Body,BodyName,ClearanceDate,UniqueReference,SupplierName,SupplierRefNo,Amount,DepartmentExpenseArea,ExpenseType,ExpenseCode,ExtendedDescription,AccountHolder,MerchantCategory
http://statistics.data.gov.uk/id/local-authority/43UM,WOKING BOROUGH COUNCIL,01/04/2016,GPC/665293807,AMAZON UK MARKETPLACE,PROCUREMENT CARD,82.44,CORPORATE STRATEGY - BOROUGH ELECTIONS,EQUIPMENT,G100,POLLING BOOTH LIGHTS,CHARLOTTE GRIFFITHS,BOOK STORES
http://statistics.data.gov.uk/id/local-authority/43UM,WOKING BOROUGH COUNCIL,01/04/2016,GPC/665295955,COSTA COFFEE,PROCUREMENT CARD,4.40,INDEPENDENT LIVING SERVICES - FAMILY SUPPORT PROGRAMME,FAMILY ENABLING (FSP PROJECT),H137,REFRESHMENTS FOR FAMILY,JULIE COONEY,FAST-FOOD RESTAURANTS (QUICK PAYMENT SERVICE PILOT
http://statistics.data.gov.uk/id/local-authority/43UM,WOKING BOROUGH COUNCIL,01/04/2016,GPC/665294487,LATINO,PROCUREMENT CARD,48.86,CORPORATE STRATEGY - CORPORATE STRATEGY GENERAL EXP,OFFICIAL HOSPITALITY,H310,BUSINESS LUNCH - JONATHAN LORD MP,RAY MORGAN,EATING PLACES RESTAURANTS
http://statistics.data.gov.uk/id/local-authority/43UM,WOKING BOROUGH COUNCIL,01/04/2016,GPC/665294812,SELFSERVE TICKET,PROCUREMENT CARD,22.60,CORPORATE STRATEGY - CORPORATE MANAGEMENT,MILEAGE,F710,TRAIN TO LONDON,MARK ROLT,PASSENGER RAILWAYS
http://statistics.data.gov.uk/id/local-authority/43UM,WOKING BOROUGH COUNCIL,01/04/2016,GPC/665297817,WILKO WOKING,PROCUREMENT CARD,8.00,INDEPENDENT LIVING SERVICES - FAMILY SUPPORT PROGRAMME,FAMILY ENABLING (FSP PROJECT),H137,CRAFTS FOR FAMILY,TANYA CULVER,HOUSEHOLD APPLIANCE STORES
http://statistics.data.gov.uk/id/local-authority/43UM,WOKING BOROUGH COUNCIL,01/04/2016,GPC/665297946,WWW.SOLACE.ORG.UK,PROCUREMENT CARD,203.00,CORPORATE MANAGEMENT GROUP - CORPORATE MANAGEMENT GROUP,PROFESSIONAL FEES,A750,SOLACE MEMBERSHIP RENEWAL - M ROLT,EMERA CHOWN,MEMBERSHIP ORGANIZATIONS-NOT ELSEWHERE CLASSIFIED
http://statistics.data.gov.uk/id/local-authority/43UM,WOKING BOROUGH COUNCIL,02/04/2016,GPC/665293801,AMAZON UK MARKETPLACE,PROCUREMENT CARD,5.85,NEIGHBOURHOOD SERVICES - SHEERWATER COMMUNITY PROJECTS,EQUIPMENT,G100,COOKING CLUB EQUIPMENT,ROBERT MORGAN,MISCELLANEOUS AND SPECIALTY RETAIL STORES
http://statistics.data.gov.uk/id/local-authority/43UM,WOKING BOROUGH COUNCIL,02/04/2016,GPC/665293800,AMAZON UK MARKETPLACE,PROCUREMENT CARD,16.66,NEIGHBOURHOOD SERVICES - SHEERWATER COMMUNITY PROJECTS,EQUIPMENT,G100,COOKING CLUB EQUIPMENT,ROBERT MORGAN,MISCELLANEOUS AND SPECIALTY RETAIL STORES
http://statistics.data.gov.uk/id/local-authority/43UM,WOKING BOROUGH COUNCIL,04/04/2016,0000003488/001,CREATIVE LIVING UK LTD,40550400,5382.08,ASSET MANAGEMENT - BROOKWOOD CEMETERY TEMP COSTS,MAIN CONTRACTOR,Q200,MAIN CONTRACTOR,ASSET MANAGEMENT,BUILDING CONSTRUCTION MATERIALS
http://statistics.data.gov.uk/id/local-authority/43UM,WOKING BOROUGH COUNCIL,04/04/2016,0000003489/001,CREATIVE LIVING UK LTD,40550400,-5382.08,ASSET MANAGEMENT - BROOKWOOD CEMETERY TEMP COSTS,MAIN CONTRACTOR,Q200,MAIN CONTRACTOR,ASSET MANAGEMENT,BUILDING CONSTRUCTION MATERIALS
http://statistics.data.gov.uk/id/local-authority/43UM,WOKING BOROUGH COUNCIL,04/04/2016,0000395163/001,CREATIVE LIVING UK LTD,40550400,-5382.08,ASSET MANAGEMENT - BROOKWOOD CEMETERY TEMP COSTS,MAIN CONTRACTOR,Q200,MAIN CONTRACTOR,ASSET MANAGEMENT,BUILDING CONSTRUCTION MATERIALS
http://statistics.data.gov.uk/id/local-authority/43UM,WOKING BOROUGH COUNCIL,04/04/2016,0000395164/001,CREATIVE LIVING UK LTD,40550400,5382.08,ASSET MANAGEMENT - BROOKWOOD CEMETERY TEMP COSTS,MAIN CONTRACTOR,Q200,MAIN CONTRACTOR,ASSET MANAGEMENT,BUILDING CONSTRUCTION MATERIALS
http://statistics.data.gov.uk/id/local-authority/43UM,WOKING BOROUGH COUNCIL,04/04/2016,GPC/665769260,HORACE SMITH LOCKSMITH,PROCUREMENT CARD,41.67,ASSET MANAGEMENT - FACILITIES MANAGEMENT,FACILITIES MANAGEMENT REPAIRS,D908,IT SAFE LOCK,MR D JONES,HARDWARE STORES
http://statistics.data.gov.uk/id/local-authority/43UM,WOKING BOROUGH COUNCIL,04/04/2016,0000003489/001,J & G DRAIN SERVICES,00006500,28.00,ASSET MANAGEMENT - TOWN CENTRE LEISURE,R&M BUILDINGS - CONTRACTORS,D100,R&M BUILDINGS - CONTRACTORS,ASSET MANAGEMENT,CLEANING & JANITORIAL
http://statistics.data.gov.uk/id/local-authority/43UM,WOKING BOROUGH COUNCIL,04/04/2016,GPC/665768862,LATINO,PROCUREMENT CARD,215.68,CORPORATE STRATEGY - CORPORATE STRATEGY GENERAL EXP,OFFICIAL HOSPITALITY,H310,LUNCH - SIR ROBERT MCALPINE LTD,RAY MORGAN,EATING PLACES RESTAURANTS
http://statistics.data.gov.uk/id/local-authority/43UM,WOKING BOROUGH COUNCIL,04/04/2016,GPC/665770323,ROBERT DYAS HOLDNG LTD,PROCUREMENT CARD,6.65,HOUSING SERVICES - HOUSING OPTIONS,EQUIPMENT,G100,FLY KILLER HANGING,JANET COURTNEY,HARDWARE STORES
http://statistics.data.gov.uk/id/local-authority/43UM,WOKING BOROUGH COUNCIL,04/04/2016,GPC/665770475,TP WOKING,PROCUREMENT CARD,12.60,HOUSING SERVICES - HOME IMPS & BEN AGENCY,HANDYPERSON MATERIALS,G201,HANDRAIL MOPSTICK 50X50MM,IAN DEANE,BUILDING MATERIALS LUMBER STORES
http://statistics.data.gov.uk/id/local-authority/43UM,WOKING BOROUGH COUNCIL,04/04/2016,0000003488/001,W W WHOLESALE FRUITERERS LTD,00116400,21.41,H G WELLS - H G WELLS - FUNCTION ROOMS,PROVISIONS-FOOD,G440,PROVISIONS-FOOD,H G WELLS,CATERING
http://statistics.data.gov.uk/id/local-authority/43UM,WOKING BOROUGH COUNCIL,04/04/2016,GPC/665770322,WILKO WOKING,PROCUREMENT CARD,7.25,HOUSING SERVICES - HOUSING OPTIONS,EQUIPMENT,G100,FLY KILLER,JANET COURTNEY,HOUSEHOLD APPLIANCE STORES
http://statistics.data.gov.uk/id/local-authority/43UM,WOKING BOROUGH COUNCIL,05/04/2016,0000395054/001,A M NELLESS LTD,40404900,769.45,HOUSING SERVICES - PRIVATE SECTOR RENEWAL GRANT,LANDLORD GRANT,Q720,LANDLORD GRANT,HOUSING SERVICES,WORKS (CONSTRUCTION REPAIR MAINTENANCE)
http://statistics.data.gov.uk/id/local-authority/43UM,WOKING BOROUGH COUNCIL,05/04/2016,0000394328/001,ANDERSON STRATHERN LLP,40105500,9300.00,ASSET MANAGEMENT - WOLSEY PLACE,LEGAL FEES,H677,LEGAL FEES,ASSET MANAGEMENT,LEGAL SERVICES
http://statistics.data.gov.uk/id/local-authority/43UM,WOKING BOROUGH COUNCIL,05/04/2016,0000395025/001,ASD LTD T/A KLOECKNER METALS,40548000,39.60,NEIGHBOURHOOD SERVICES - TOWN CTR MANAGEMENT,GROUNDS MAINT-CONTRACTORS,D200,GROUNDS MAINT-CONTRACTORS,NEIGHBOURHOOD SERVICES,BUILDING CONSTRUCTION MATERIALS
http://statistics.data.gov.uk/id/local-authority/43UM,WOKING BOROUGH COUNCIL,05/04/2016,0000395026/001,ASD LTD T/A KLOECKNER METALS,40548000,1140.00,NEIGHBOURHOOD SERVICES - TOWN CTR MANAGEMENT,GROUNDS MAINT-CONTRACTORS,D200,GROUNDS MAINT-CONTRACTORS,NEIGHBOURHOOD SERVICES,BUILDING CONSTRUCTION MATERIALS
http://statistics.data.gov.uk/id/local-authority/43UM,WOKING BOROUGH COUNCIL,05/04/2016,0000394693/001,ASTOR CARE & NURSING AGENCY,01531000,284.40,INDEPENDENT LIVING SERVICES - BATHING SERVICE,SERVICE PROVIDER,H730,SERVICE PROVIDER,INDEPENDENT LIVING SERVICES,SOCIAL COMMUNITY CARE SUP & SERV (ADULT)
http://statistics.data.gov.uk/id/local-authority/43UM,WOKING BOROUGH COUNCIL,05/04/2016,0000394694/001,ASTOR CARE & NURSING AGENCY,01531000,391.05,INDEPENDENT LIVING SERVICES - BATHING SERVICE,SERVICE PROVIDER,H730,SERVICE PROVIDER,INDEPENDENT LIVING SERVICES,SOCIAL COMMUNITY CARE SUP & SERV (ADULT)
http://statistics.data.gov.uk/id/local-authority/43UM,WOKING BOROUGH COUNCIL,05/04/2016,0000394737/001,ASTOR CARE & NURSING AGENCY,01531000,426.60,INDEPENDENT LIVING SERVICES - BATHING SERVICE,SERVICE PROVIDER,H730,SERVICE PROVIDER,INDEPENDENT LIVING SERVICES,SOCIAL COMMUNITY CARE SUP & SERV (ADULT)
http://statistics.data.gov.uk/id/local-authority/43UM,WOKING BOROUGH COUNCIL,05/04/2016,0000395236/001,BIDVEST FOODSERVICE,01190400,303.42,H G WELLS - H G WELLS - CATERING,PROVISIONS-FOOD,G440,PROVISIONS-FOOD,H G WELLS,CATERING
http://statistics.data.gov.uk/id/local-authority/43UM,WOKING BOROUGH COUNCIL,05/04/2016,0000395236/002,BIDVEST FOODSERVICE,01190400,536.90,H G WELLS - H G WELLS - CATERING,EQUIPMENT,G100,EQUIPMENT,H G WELLS,CATERING
http://statistics.data.gov.uk/id/local-authority/43UM,WOKING BOROUGH COUNCIL,05/04/2016,0000395237/001,BIDVEST FOODSERVICE,01190400,-72.62,H G WELLS - H G WELLS - CATERING,PROVISIONS-FOOD,G440,PROVISIONS-FOOD,H G WELLS,CATERING
http://statistics.data.gov.uk/id/local-authority/43UM,WOKING BOROUGH COUNCIL,05/04/2016,0000395239/001,BIDVEST FOODSERVICE,01190400,-146.79,H G WELLS - H G WELLS - CATERING,EQUIPMENT,G100,EQUIPMENT,H G WELLS,CATERING
http://statistics.data.gov.uk/id/local-authority/43UM,WOKING BOROUGH COUNCIL,05/04/2016,0000395240/001,BIDVEST FOODSERVICE,01190400,-152.55,H G WELLS - H G WELLS - CATERING,PROVISIONS-FOOD,G440,PROVISIONS-FOOD,H G WELLS,CATERING
http://statistics.data.gov.uk/id/local-authority/43UM,WOKING BOROUGH COUNCIL,05/04/2016,0000394817/001,BLOCK AID UK LTD,40533700,48.00,ASSET MANAGEMENT - POOLE RD CAR PARK,R&M BUILDINGS - CONTRACTORS,D100,R&M BUILDINGS - CONTRACTORS,ASSET MANAGEMENT,FACILITIES & MANAGEMENT SERVICES
http://statistics.data.gov.uk/id/local-authority/43UM,WOKING BOROUGH COUNCIL,05/04/2016,0000394267/001,BRISTOW & SUTOR,40257600,12.77,HOUSING SERVICES - SALE COUNCIL HOUSES,SOCH DEBT COLLECTION AGENCY,Q910,SOCH DEBT COLLECTION AGENCY,HOUSING SERVICES,FINANCIAL SERVICES
http://statistics.data.gov.uk/id/local-authority/43UM,WOKING BOROUGH COUNCIL,05/04/2016,0000394267/002,BRISTOW & SUTOR,40257600,7.50,HOUSING SERVICES - RENT COLLECTION,DEBT COLLECTION AGENCY COMMISS,H910,DEBT COLLECTION AGENCY COMMISS,HOUSING SERVICES,FINANCIAL SERVICES
http://statistics.data.gov.uk/id/local-authority/43UM,WOKING BOROUGH COUNCIL,05/04/2016,0000394267/003,BRISTOW & SUTOR,40257600,4.50,HOUSING SERVICES - HOUSING OPTIONS,DEBT COLLECTION AGENCY COMMISS,H910,DEBT COLLECTION AGENCY COMMISS,HOUSING SERVICES,FINANCIAL SERVICES
http://statistics.data.gov.uk/id/local-authority/43UM,WOKING BOROUGH COUNCIL,05/04/2016,0000394779/001,BRISTOW & SUTOR,40257600,142.12,REVENUES AND BENEFITS - RENT ALLOWANCES,DEBT COLLECTION AGENCY COMMISS,H910,DEBT COLLECTION AGENCY COMMISS,REVENUES AND BENEFITS,FINANCIAL SERVICES
http://statistics.data.gov.uk/id/local-authority/43UM,WOKING BOROUGH COUNCIL,05/04/2016,GPC/666032246,BRITISH HEART FOUNDATI,PROCUREMENT CARD,148.00,INDEPENDENT LIVING SERVICES - FAMILY SUPPORT PROGRAMME,FAMILY ENABLING (FSP PROJECT),H137,WASHING MACHINE FOR FAMILY,HAZEL SMETHURST,CHARITABLE AND SOCIAL SERVICE ORGANIZATIONS
http://statistics.data.gov.uk/id/local-authority/43UM,WOKING BOROUGH COUNCIL,05/04/2016,0000395152/001,BROOK STREET (UK) LTD,01049600,61.00,H G WELLS - H G WELLS - FUNCTION ROOMS,TEMPORARY STAFF,H687,TEMPORARY STAFF,H G WELLS,HUMAN RESOURCES
http://statistics.data.gov.uk/id/local-authority/43UM,WOKING BOROUGH COUNCIL,05/04/2016,0000395153/001,BROOK STREET (UK) LTD,01049600,79.30,H G WELLS - H G WELLS - BAR,TEMPORARY STAFF,H687,TEMPORARY STAFF,H G WELLS,HUMAN RESOURCES
http://statistics.data.gov.uk/id/local-authority/43UM,WOKING BOROUGH COUNCIL,05/04/2016,0000395161/001,BROOK STREET (UK) LTD,01049600,63.41,H G WELLS - H G WELLS - CATERING,TEMPORARY STAFF,H687,TEMPORARY STAFF,H G WELLS,HUMAN RESOURCES
http://statistics.data.gov.uk/id/local-authority/43UM,WOKING BOROUGH COUNCIL,05/04/2016,0000395162/001,BROOK STREET (UK) LTD,01049600,11.53,H G WELLS - H G WELLS - CATERING,TEMPORARY STAFF,H687,TEMPORARY STAFF,H G WELLS,HUMAN RESOURCES
http://statistics.data.gov.uk/id/local-authority/43UM,WOKING BOROUGH COUNCIL,05/04/2016,0000395230/001,BROOK STREET (UK) LTD,01049600,103.77,H G WELLS - H G WELLS - FUNCTION ROOMS,TEMPORARY STAFF,H687,TEMPORARY STAFF,H G WELLS,HUMAN RESOURCES
http://statistics.data.gov.uk/id/local-authority/43UM,WOKING BOROUGH COUNCIL,05/04/2016,0000394533/001,BT BUSINESS DIRECT LTD,01898800,4870.80,INFORMATION TECHNOLOGY - ICT GENERAL REPLACEMENT 15/16,REPLACEMENT EQUIPMENT,Q010,REPLACEMENT EQUIPMENT,INFORMATION TECHNOLOGY,INFORMATION COMMUNICATION TECHNOLOGY
http://statistics.data.gov.uk/id/local-authority/43UM,WOKING BOROUGH COUNCIL,05/04/2016,0000395199/001,BT PAYMENT SERVICES LTD,00048400,189.00,ASSET MANAGEMENT - WOLSEY PLACE,NETWORK CIRCUITS,G800,NETWORK CIRCUITS,ASSET MANAGEMENT,WORKS (CONSTRUCTION REPAIR MAINTENANCE)
http://statistics.data.gov.uk/id/local-authority/43UM,WOKING BOROUGH COUNCIL,05/04/2016,0000395052/001,CAPITA BUSINESS SERVICES LTD,00585800,91108.18,INFORMATION TECHNOLOGY - I.T.S. ICT,PC & SERVER SYSTEMS SOFTWARE,G193,PC & SERVER SYSTEMS SOFTWARE,INFORMATION TECHNOLOGY,CONSULTANCY
http://statistics.data.gov.uk/id/local-authority/43UM,WOKING BOROUGH COUNCIL,05/04/2016,0000395053/001,CAPITA BUSINESS SERVICES LTD,00585800,24093.15,INFORMATION TECHNOLOGY - I.T.S. ICT,PC & SERVER SYSTEMS SOFTWARE,G193,PC & SERVER SYSTEMS SOFTWARE,INFORMATION TECHNOLOGY,CONSULTANCY
http://statistics.data.gov.uk/id/local-authority/43UM,WOKING BOROUGH COUNCIL,05/04/2016,0000394390/001,CARRINGTON WEST LIMITED,40529100,618.75,NEIGHBOURHOOD SERVICES - REGULATION AND ENFORCEMENT,TEMPORARY STAFF,A110,TEMPORARY STAFF,NEIGHBOURHOOD SERVICES,HUMAN RESOURCES
http://statistics.data.gov.uk/id/local-authority/43UM,WOKING BOROUGH COUNCIL,05/04/2016,0000394231/001,CASH CONTROL MACHINES (FLINTEX LTD),00856400,50.00,H G WELLS - H G WELLS - BAR,EQUIPMENT-HIRE,G115,EQUIPMENT-HIRE,H G WELLS,FINANCIAL SERVICES
http://statistics.data.gov.uk/id/local-authority/43UM,WOKING BOROUGH COUNCIL,05/04/2016,0000394882/001,CATHERINE WILKINSON,40568500,29.00,NEIGHBOURHOOD SERVICES - CENTRAL NEIGHBOURHOOD TEAM,TRAVEL EXPENSES-OFFICERS,F600,TRAVEL EXPENSES-OFFICERS,NEIGHBOURHOOD SERVICES,HUMAN RESOURCES
http://statistics.data.gov.uk/id/local-authority/43UM,WOKING BOROUGH COUNCIL,05/04/2016,0000394190/001,CHASE INVENTORY SERVICES LIMITED,40239800,115.00,HOUSING SERVICES - TENANCY SUPPORT SCHEME,PROPERTY INSPECTIONS,H772,PROPERTY INSPECTIONS,HOUSING SERVICES,CONSULTANCY
http://statistics.data.gov.uk/id/local-authority/43UM,WOKING BOROUGH COUNCIL,05/04/2016,0000394191/001,CHASE INVENTORY SERVICES LIMITED,40239800,75.00,HOUSING SERVICES - TENANCY SUPPORT SCHEME,PROPERTY INSPECTIONS,H772,PROPERTY INSPECTIONS,HOUSING SERVICES,CONSULTANCY
http://statistics.data.gov.uk/id/local-authority/43UM,WOKING BOROUGH COUNCIL,05/04/2016,0000394435/001,CHASE INVENTORY SERVICES LIMITED,40239800,85.00,HOUSING SERVICES - TENANCY SUPPORT SCHEME,PROPERTY INSPECTIONS,H772,PROPERTY INSPECTIONS,HOUSING SERVICES,CONSULTANCY
http://statistics.data.gov.uk/id/local-authority/43UM,WOKING BOROUGH COUNCIL,05/04/2016,0000394821/001,CHEESMAN BROTHERS LTD,01050500,83.00,H G WELLS - H G WELLS - CATERING,PROVISIONS-FOOD,G440,PROVISIONS-FOOD,H G WELLS,CATERING
http://statistics.data.gov.uk/id/local-authority/43UM,WOKING BOROUGH COUNCIL,05/04/2016,0000394822/001,CHEESMAN BROTHERS LTD,01050500,106.33,H G WELLS - H G WELLS - CATERING,PROVISIONS-FOOD,G440,PROVISIONS-FOOD,H G WELLS,CATERING
http://statistics.data.gov.uk/id/local-authority/43UM,WOKING BOROUGH COUNCIL,05/04/2016,0000394823/001,CHEESMAN BROTHERS LTD,01050500,21.00,H G WELLS - H G WELLS - CATERING,PROVISIONS-FOOD,G440,PROVISIONS-FOOD,H G WELLS,CATERING
http://statistics.data.gov.uk/id/local-authority/43UM,WOKING BOROUGH COUNCIL,05/04/2016,0000394832/001,CHEESMAN BROTHERS LTD,01050500,2.00,H G WELLS - H G WELLS - CATERING,PROVISIONS-FOOD,G440,PROVISIONS-FOOD,H G WELLS,CATERING
http://statistics.data.gov.uk/id/local-authority/43UM,WOKING BOROUGH COUNCIL,05/04/2016,0000394833/001,CHEESMAN BROTHERS LTD,01050500,16.21,H G WELLS - H G WELLS - CATERING,PROVISIONS-FOOD,G440,PROVISIONS-FOOD,H G WELLS,CATERING
http://statistics.data.gov.uk/id/local-authority/43UM,WOKING BOROUGH COUNCIL,05/04/2016,0000394834/001,CHEESMAN BROTHERS LTD,01050500,206.69,H G WELLS - H G WELLS - CATERING,PROVISIONS-FOOD,G440,PROVISIONS-FOOD,H G WELLS,CATERING
http://statistics.data.gov.uk/id/local-authority/43UM,WOKING BOROUGH COUNCIL,05/04/2016,0000395108/001,CHEESMAN BROTHERS LTD,01050500,59.09,H G WELLS - H G WELLS - CATERING,PROVISIONS-FOOD,G440,PROVISIONS-FOOD,H G WELLS,CATERING
http://statistics.data.gov.uk/id/local-authority/43UM,WOKING BOROUGH COUNCIL,05/04/2016,0000395109/001,CHEESMAN BROTHERS LTD,01050500,5.60,H G WELLS - H G WELLS - CATERING,PROVISIONS-FOOD,G440,PROVISIONS-FOOD,H G WELLS,CATERING
http://statistics.data.gov.uk/id/local-authority/43UM,WOKING BOROUGH COUNCIL,05/04/2016,GPC/666032553,CHICHESTER DISTRICT CO,PROCUREMENT CARD,1.25,ASSET MANAGEMENT - VALUATION SERVICES,PARKING COSTS,F510,CAR PARKING MEETING WITH SZERELMEY,IAN M TOMES,POLITICAL ORGANIZATIONS
http://statistics.data.gov.uk/id/local-authority/43UM,WOKING BOROUGH COUNCIL,05/04/2016,0000394434/001,CHRISTINE MITCHELL,40364600,11472.68,HOUSING SERVICES - PRIVATE SECTOR LEASING SCHEME,LEASE PAYMENTS TO LANDLORD,H787,LEASE PAYMENTS TO LANDLORD,HOUSING SERVICES,HOUSING MANAGEMENT
http://statistics.data.gov.uk/id/local-authority/43UM,WOKING BOROUGH COUNCIL,05/04/2016,0000394645/001,CLEMENTS ENVIRONMENTAL SERVICES LTD,40512600,1135.00,NEIGHBOURHOOD SERVICES - CONTROL OF DOGS,PAYMENTS TO CONTRACTORS,H780,PAYMENTS TO CONTRACTORS,NEIGHBOURHOOD SERVICES,ENVIRONMENTAL SERVICES
http://statistics.data.gov.uk/id/local-authority/43UM,WOKING BOROUGH COUNCIL,05/04/2016,0000394879/001,DIRECT COLOUR LTD,40568300,500.00,H G WELLS - H G WELLS - FUNCTION ROOMS,ADVERTISING,H400,ADVERTISING,H G WELLS,FACILITIES & MANAGEMENT SERVICES
http://statistics.data.gov.uk/id/local-authority/43UM,WOKING BOROUGH COUNCIL,05/04/2016,0000395086/001,DOLPHIN MOBILITY LTD,00882400,4495.00,HOUSING SERVICES - DISABLED FACILITIES GRANTS,MANDATORY GRANTS,Q712,MANDATORY GRANTS,HOUSING SERVICES,FINANCIAL SERVICES
http://statistics.data.gov.uk/id/local-authority/43UM,WOKING BOROUGH COUNCIL,05/04/2016,0000394858/001,EDEN BROWN LTD,00275500,1497.56,ASSET MANAGEMENT - BUILDING SERVICES,TEMPORARY STAFF,A110,TEMPORARY STAFF,ASSET MANAGEMENT,HUMAN RESOURCES
http://statistics.data.gov.uk/id/local-authority/43UM,WOKING BOROUGH COUNCIL,05/04/2016,0000395111/001,EDEN SPRINGS (UK) LTD,40508700,74.40,ASSET MANAGEMENT - CIVIC OFFICES,VENDING SERVICES,G420,VENDING SERVICES,ASSET MANAGEMENT,CATERING
http://statistics.data.gov.uk/id/local-authority/43UM,WOKING BOROUGH COUNCIL,05/04/2016,0000394702/001,EDF ENERGY CUSTOMERS PLC,01451600,17.14,ASSET MANAGEMENT - UNIT 7 LITTLEWICK CARTHOUSE L,ELECTRICITY,D400,ELECTRICITY,ASSET MANAGEMENT,UTILITIES
http://statistics.data.gov.uk/id/local-authority/43UM,WOKING BOROUGH COUNCIL,05/04/2016,0000394706/001,EDF ENERGY CUSTOMERS PLC,01451600,56.59,ASSET MANAGEMENT - POOLE RD CAR PARK,ELECTRICITY,D400,ELECTRICITY,ASSET MANAGEMENT,UTILITIES
http://statistics.data.gov.uk/id/local-authority/43UM,WOKING BOROUGH COUNCIL,05/04/2016,0000394707/001,EDF ENERGY CUSTOMERS PLC,01451600,22.56,ASSET MANAGEMENT - 19A HIGH STREET,CLIMATE CHANGE LEVY,D430,CLIMATE CHANGE LEVY,ASSET MANAGEMENT,UTILITIES
http://statistics.data.gov.uk/id/local-authority/43UM,WOKING BOROUGH COUNCIL,05/04/2016,0000394707/002,EDF ENERGY CUSTOMERS PLC,01451600,620.33,ASSET MANAGEMENT - 19A HIGH STREET,ELECTRICITY,D400,ELECTRICITY,ASSET MANAGEMENT,UTILITIES
http://statistics.data.gov.uk/id/local-authority/43UM,WOKING BOROUGH COUNCIL,05/04/2016,0000394847/001,ELDER ASSOCIATES,01971700,320.00,HOUSING SERVICES - PFI BID,OTHER CONSULTANTS,Q430,OTHER CONSULTANTS,HOUSING SERVICES,CONSULTANCY
http://statistics.data.gov.uk/id/local-authority/43UM,WOKING BOROUGH COUNCIL,05/04/2016,0000394881/001,ELDER ASSOCIATES,01971700,80.00,HOUSING SERVICES - PFI BID,OTHER CONSULTANTS,Q430,OTHER CONSULTANTS,HOUSING SERVICES,CONSULTANCY
http://statistics.data.gov.uk/id/local-authority/43UM,WOKING BOROUGH COUNCIL,05/04/2016,0000395013/001,ELMBRIDGE BOROUGH COUNCIL,00609700,10.00,CORPORATE MANAGEMENT GROUP - STAFF TRAINING/GENERAL COSTS,TRAINING - CORPORATE,A910,TRAINING - CORPORATE,CORPORATE MANAGEMENT GROUP,WORKS (CONSTRUCTION REPAIR MAINTENANCE)
http://statistics.data.gov.uk/id/local-authority/43UM,WOKING BOROUGH COUNCIL,05/04/2016,0000394797/001,EMCOR GROUP (UK)PLC,00004600,1608.00,CORPORATE STRATEGY - LEISURE MANAGEMENT CONTRACT,R&M BUILDINGS - CONTRACTORS,D100,R&M BUILDINGS - CONTRACTORS,CORPORATE STRATEGY,WORKS (CONSTRUCTION REPAIR MAINTENANCE)
http://statistics.data.gov.uk/id/local-authority/43UM,WOKING BOROUGH COUNCIL,05/04/2016,0000394798/001,EMCOR GROUP (UK)PLC,00004600,4989.72,CORPORATE STRATEGY - LEISURE MANAGEMENT CONTRACT,R&M BUILDINGS - CONTRACTORS,D100,R&M BUILDINGS - CONTRACTORS,CORPORATE STRATEGY,WORKS (CONSTRUCTION REPAIR MAINTENANCE)
http://statistics.data.gov.uk/id/local-authority/43UM,WOKING BOROUGH COUNCIL,05/04/2016,0000394799/001,EMCOR GROUP (UK)PLC,00004600,250.00,ASSET MANAGEMENT - FACILITIES MANAGEMENT,FACILITIES MANAGEMENT REPAIRS,D908,FACILITIES MANAGEMENT REPAIRS,ASSET MANAGEMENT,WORKS (CONSTRUCTION REPAIR MAINTENANCE)
http://statistics.data.gov.uk/id/local-authority/43UM,WOKING BOROUGH COUNCIL,05/04/2016,0000394800/001,EMCOR GROUP (UK)PLC,00004600,9014.93,INFORMATION TECHNOLOGY - I.T.S. ICT,EXPORT HOUSE CHARGES,G131,EXPORT HOUSE CHARGES,INFORMATION TECHNOLOGY,WORKS (CONSTRUCTION REPAIR MAINTENANCE)
http://statistics.data.gov.uk/id/local-authority/43UM,WOKING BOROUGH COUNCIL,05/04/2016,0000395222/001,EMCOR GROUP (UK)PLC,00004600,206.42,H G WELLS - H G WELLS - FUNCTION ROOMS,CCTV SYSTEM MAINTENANCE,D341,CCTV SYSTEM MAINTENANCE,H G WELLS,WORKS (CONSTRUCTION REPAIR MAINTENANCE)
http://statistics.data.gov.uk/id/local-authority/43UM,WOKING BOROUGH COUNCIL,05/04/2016,0000394715/001,E-ON,40077100,6.38,ASSET MANAGEMENT - MABLE ST GARAGE & SHOP,CLIMATE CHANGE LEVY,D430,CLIMATE CHANGE LEVY,ASSET MANAGEMENT,UTILITIES
http://statistics.data.gov.uk/id/local-authority/43UM,WOKING BOROUGH COUNCIL,05/04/2016,0000394715/002,E-ON,40077100,236.04,ASSET MANAGEMENT - MABLE ST GARAGE & SHOP,ELECTRICITY,D400,ELECTRICITY,ASSET MANAGEMENT,UTILITIES
http://statistics.data.gov.uk/id/local-authority/43UM,WOKING BOROUGH COUNCIL,05/04/2016,0000395028/001,E-ON,40077100,205.96,ASSET MANAGEMENT - WOLSEY PLACE,ELECTRICITY,D400,ELECTRICITY,ASSET MANAGEMENT,UTILITIES
http://statistics.data.gov.uk/id/local-authority/43UM,WOKING BOROUGH COUNCIL,05/04/2016,0000395028/002,E-ON,40077100,6.55,ASSET MANAGEMENT - WOLSEY PLACE,CLIMATE CHANGE LEVY,D430,CLIMATE CHANGE LEVY,ASSET MANAGEMENT,UTILITIES
http://statistics.data.gov.uk/id/local-authority/43UM,WOKING BOROUGH COUNCIL,05/04/2016,0000395029/001,E-ON,40077100,419.11,ASSET MANAGEMENT - MABLE ST GARAGE & SHOP,GAS,D420,GAS,ASSET MANAGEMENT,UTILITIES
http://statistics.data.gov.uk/id/local-authority/43UM,WOKING BOROUGH COUNCIL,05/04/2016,0000395029/002,E-ON,40077100,13.51,ASSET MANAGEMENT - MABLE ST GARAGE & SHOP,CLIMATE CHANGE LEVY,D430,CLIMATE CHANGE LEVY,ASSET MANAGEMENT,UTILITIES
http://statistics.data.gov.uk/id/local-authority/43UM,WOKING BOROUGH COUNCIL,05/04/2016,0000394963/001,EUROPEAN PARKING SOLUTIONS LIMITED,00377300,1330.20,NEIGHBOURHOOD SERVICES - DPE PARKING ACCOUNT,PRINTING EXTERNAL,G600,PRINTING EXTERNAL,NEIGHBOURHOOD SERVICES,STREET & TRAFFIC MANAGEMENT
http://statistics.data.gov.uk/id/local-authority/43UM,WOKING BOROUGH COUNCIL,05/04/2016,0000394880/001,EXPERIAN LTD,01372100,2773.00,INFORMATION TECHNOLOGY - I.T.S. ICT,PC & SERVER SYSTEMS SOFTWARE,G193,PC & SERVER SYSTEMS SOFTWARE,INFORMATION TECHNOLOGY,INFORMATION COMMUNICATION TECHNOLOGY
http://statistics.data.gov.uk/id/local-authority/43UM,WOKING BOROUGH COUNCIL,05/04/2016,0000394649/001,FAITH RECRUITMENT,01709500,530.95,FINANCIAL SERVICES - FINANCIAL SERVICES,TEMPORARY STAFF,A110,TEMPORARY STAFF,FINANCIAL SERVICES,HUMAN RESOURCES
http://statistics.data.gov.uk/id/local-authority/43UM,WOKING BOROUGH COUNCIL,05/04/2016,0000394650/001,FAITH RECRUITMENT,01709500,379.31,REVENUES AND BENEFITS - BENEFIT SERVICES,TEMPORARY STAFF,A110,TEMPORARY STAFF,REVENUES AND BENEFITS,HUMAN RESOURCES
http://statistics.data.gov.uk/id/local-authority/43UM,WOKING BOROUGH COUNCIL,05/04/2016,0000394700/001,FAITH RECRUITMENT,01709500,235.88,CORPORATE MANAGEMENT GROUP - HUMAN RESOURCES,TEMPORARY STAFF,A110,TEMPORARY STAFF,CORPORATE MANAGEMENT GROUP,HUMAN RESOURCES
http://statistics.data.gov.uk/id/local-authority/43UM,WOKING BOROUGH COUNCIL,05/04/2016,0000394769/001,FAITH RECRUITMENT,01709500,235.88,CORPORATE MANAGEMENT GROUP - HUMAN RESOURCES,TEMPORARY STAFF,A110,TEMPORARY STAFF,CORPORATE MANAGEMENT GROUP,HUMAN RESOURCES
http://statistics.data.gov.uk/id/local-authority/43UM,WOKING BOROUGH COUNCIL,05/04/2016,0000395024/001,FHP ENGINEER.SERVS.SOLUTIONS LTD,40569400,1750.00,ASSET MANAGEMENT - PROPERTY SERVICES,CONSULTANTS,H670,CONSULTANTS,ASSET MANAGEMENT,CONSULTANCY
http://statistics.data.gov.uk/id/local-authority/43UM,WOKING BOROUGH COUNCIL,05/04/2016,0000394344/001,FRANCES SOPER,00412300,722.00,NEIGHBOURHOOD SERVICES - FOOD SAFETY,PAYMENTS TO CONTRACTORS,H780,PAYMENTS TO CONTRACTORS,NEIGHBOURHOOD SERVICES,ENVIRONMENTAL SERVICES
http://statistics.data.gov.uk/id/local-authority/43UM,WOKING BOROUGH COUNCIL,05/04/2016,0000394339/001,FREEDOM LEISURE,40296500,241.20,INDEPENDENT LIVING SERVICES - MOORCROFT,TEMPORARY STAFF,H687,TEMPORARY STAFF,INDEPENDENT LIVING SERVICES,HUMAN RESOURCES
http://statistics.data.gov.uk/id/local-authority/43UM,WOKING BOROUGH COUNCIL,05/04/2016,0000394339/002,FREEDOM LEISURE,40296500,187.60,INDEPENDENT LIVING SERVICES - THE VYNE,TEMPORARY STAFF,H687,TEMPORARY STAFF,INDEPENDENT LIVING SERVICES,HUMAN RESOURCES
http://statistics.data.gov.uk/id/local-authority/43UM,WOKING BOROUGH COUNCIL,05/04/2016,0000394006/001,G COLLYER T/A F.B.N.,40275500,9000.00,HOUSING SERVICES - PRIVATE SECTOR LEASING SCHEME,LEASE PAYMENTS TO LANDLORD,H787,LEASE PAYMENTS TO LANDLORD,HOUSING SERVICES,HOUSING MANAGEMENT
http://statistics.data.gov.uk/id/local-authority/43UM,WOKING BOROUGH COUNCIL,05/04/2016,0000394864/001,GIBBS & DANDY,40335300,12.73,HOUSING SERVICES - HOME IMPS & BEN AGENCY,HANDYPERSON MATERIALS,G201,HANDYPERSON MATERIALS,HOUSING SERVICES,BUILDING CONSTRUCTION MATERIALS
http://statistics.data.gov.uk/id/local-authority/43UM,WOKING BOROUGH COUNCIL,05/04/2016,0000395120/001,GUILDFORD BOROUGH COUNCIL,00012000,227.25,CORPORATE STRATEGY - DEMOCRATIC REPRESENTATION,APPEALS AND INQUIRIES,H686,APPEALS AND INQUIRIES,CORPORATE STRATEGY,VEHICLE MANAGEMENT
http://statistics.data.gov.uk/id/local-authority/43UM,WOKING BOROUGH COUNCIL,05/04/2016,0000394856/001,HAMPSHIRE COUNTY COUNCIL,00089800,10000.00,CORPORATE STRATEGY - CORPORATE MANAGEMENT,SUBSCRIPTIONS,H110,SUBSCRIPTIONS,CORPORATE STRATEGY,FACILITIES & MANAGEMENT SERVICES
http://statistics.data.gov.uk/id/local-authority/43UM,WOKING BOROUGH COUNCIL,05/04/2016,0000395229/001,HARRY LAMB,01000800,280.00,CORPORATE STRATEGY - PUBLIC RELATIONS,PUBLICATIONS,G606,PUBLICATIONS,CORPORATE STRATEGY,FACILITIES & MANAGEMENT SERVICES
http://statistics.data.gov.uk/id/local-authority/43UM,WOKING BOROUGH COUNCIL,05/04/2016,0000394683/001,HAYS,00228700,1131.27,CORPORATE MANAGEMENT GROUP - HUMAN RESOURCES,TEMPORARY STAFF,A110,TEMPORARY STAFF,CORPORATE MANAGEMENT GROUP,HUMAN RESOURCES
http://statistics.data.gov.uk/id/local-authority/43UM,WOKING BOROUGH COUNCIL,05/04/2016,0000394785/001,HAYS,00228700,1027.08,CORPORATE MANAGEMENT GROUP - HUMAN RESOURCES,TEMPORARY STAFF,A110,TEMPORARY STAFF,CORPORATE MANAGEMENT GROUP,HUMAN RESOURCES
http://statistics.data.gov.uk/id/local-authority/43UM,WOKING BOROUGH COUNCIL,05/04/2016,0000394709/001,HEADLINE DESIGN & PRINT,00016900,902.00,NEIGHBOURHOOD SERVICES - SPORTS DEVELOPMENT,SURREY YOUTH GAMES,H651,SURREY YOUTH GAMES,NEIGHBOURHOOD SERVICES,FINANCIAL SERVICES
http://statistics.data.gov.uk/id/local-authority/43UM,WOKING BOROUGH COUNCIL,05/04/2016,0000394860/001,HEADLINE DESIGN & PRINT,00016900,82.00,HOUSING SERVICES - HOUSING NEEDS SURVEY,MAIN CONTRACTOR,Q200,MAIN CONTRACTOR,HOUSING SERVICES,FINANCIAL SERVICES
http://statistics.data.gov.uk/id/local-authority/43UM,WOKING BOROUGH COUNCIL,05/04/2016,0000394330/001,HOCKLEY & DAWSON,00018500,632.50,ASSET MANAGEMENT - FACILITIES MANAGEMENT,FACILITIES MANAGEMENT REPAIRS,D908,FACILITIES MANAGEMENT REPAIRS,ASSET MANAGEMENT,CONSULTANCY
http://statistics.data.gov.uk/id/local-authority/43UM,WOKING BOROUGH COUNCIL,05/04/2016,0000394888/001,IAN M BROWN,01570700,6633.84,HOUSING SERVICES - PRIVATE SECTOR LEASING SCHEME,LEASE PAYMENTS TO LANDLORD,H787,LEASE PAYMENTS TO LANDLORD,HOUSING SERVICES,HOUSING MANAGEMENT
http://statistics.data.gov.uk/id/local-authority/43UM,WOKING BOROUGH COUNCIL,05/04/2016,0000394884/001,ICL MEDIA,01821200,175.00,H G WELLS - H G WELLS - FUNCTION ROOMS,AUDIO VISUAL TECHNICIANS,G124,AUDIO VISUAL TECHNICIANS,H G WELLS,INFORMATION COMMUNICATION TECHNOLOGY
http://statistics.data.gov.uk/id/local-authority/43UM,WOKING BOROUGH COUNCIL,05/04/2016,0000394885/001,ICL MEDIA,01821200,350.00,H G WELLS - H G WELLS - FUNCTION ROOMS,AUDIO VISUAL TECHNICIANS,G124,AUDIO VISUAL TECHNICIANS,H G WELLS,INFORMATION COMMUNICATION TECHNOLOGY
http://statistics.data.gov.uk/id/local-authority/43UM,WOKING BOROUGH COUNCIL,05/04/2016,0000394886/001,ICL MEDIA,01821200,400.00,H G WELLS - H G WELLS - FUNCTION ROOMS,EQUIPMENT,G100,EQUIPMENT,H G WELLS,INFORMATION COMMUNICATION TECHNOLOGY
http://statistics.data.gov.uk/id/local-authority/43UM,WOKING BOROUGH COUNCIL,05/04/2016,0000394887/001,ICL MEDIA,01821200,474.55,H G WELLS - H G WELLS - FUNCTION ROOMS,EQUIPMENT,G100,EQUIPMENT,H G WELLS,INFORMATION COMMUNICATION TECHNOLOGY
http://statistics.data.gov.uk/id/local-authority/43UM,WOKING BOROUGH COUNCIL,05/04/2016,0000395169/001,ICL MEDIA,01821200,125.00,H G WELLS - H G WELLS - FUNCTION ROOMS,AUDIO VISUAL TECHNICIANS,G124,AUDIO VISUAL TECHNICIANS,H G WELLS,INFORMATION COMMUNICATION TECHNOLOGY
http://statistics.data.gov.uk/id/local-authority/43UM,WOKING BOROUGH COUNCIL,05/04/2016,0000394581/001,INSIDE HOUSING SOLUTIONS LTD,01772300,4710.00,NEIGHBOURHOOD SERVICES - REGULATION AND ENFORCEMENT,SECURITY OUTOFHRS CONTRACTOR,H608,SECURITY OUTOFHRS CONTRACTOR,NEIGHBOURHOOD SERVICES,FACILITIES & MANAGEMENT SERVICES
http://statistics.data.gov.uk/id/local-authority/43UM,WOKING BOROUGH COUNCIL,05/04/2016,0000394535/001,J D STONARD & M STONARD,01427800,8712.00,HOUSING SERVICES - PRIVATE SECTOR LEASING SCHEME,LEASE PAYMENTS TO LANDLORD,H787,LEASE PAYMENTS TO LANDLORD,HOUSING SERVICES,HOUSING MANAGEMENT
http://statistics.data.gov.uk/id/local-authority/43UM,WOKING BOROUGH COUNCIL,05/04/2016,0000395010/001,JEMMA WALDOCK,40569300,250.00,NEIGHBOURHOOD SERVICES - WOKING SPORTS COUNCIL,GRANTS,H100,GRANTS,NEIGHBOURHOOD SERVICES,FINANCIAL SERVICES
http://statistics.data.gov.uk/id/local-authority/43UM,WOKING BOROUGH COUNCIL,05/04/2016,GPC/666333189,JEWSONS,PROCUREMENT CARD,20.90,HOUSING SERVICES - HOME IMPS & BEN AGENCY,HANDYPERSON MATERIALS,G201,50X50 RWD MOPSTICK,IAN DEANE,BUILDING MATERIALS LUMBER STORES
http://statistics.data.gov.uk/id/local-authority/43UM,WOKING BOROUGH COUNCIL,05/04/2016,0000394379/001,KENT COUNTY COUNCIL (KCS),00050800,27.55,HOUSING SERVICES - LANDLORDS EXPENSES,ELECTRICITY,D400,ELECTRICITY,HOUSING SERVICES,UTILITIES
http://statistics.data.gov.uk/id/local-authority/43UM,WOKING BOROUGH COUNCIL,05/04/2016,0000394695/001,KENT COUNTY COUNCIL (KCS),00050800,330.81,INDEPENDENT LIVING SERVICES - ALPHA RD COMMUNITY HALL,GAS,D420,GAS,INDEPENDENT LIVING SERVICES,UTILITIES
http://statistics.data.gov.uk/id/local-authority/43UM,WOKING BOROUGH COUNCIL,05/04/2016,0000394696/001,KENT COUNTY COUNCIL (KCS),00050800,556.27,ASSET MANAGEMENT - PROVINCIAL HOUSE,GAS,D420,GAS,ASSET MANAGEMENT,UTILITIES
http://statistics.data.gov.uk/id/local-authority/43UM,WOKING BOROUGH COUNCIL,05/04/2016,0000394696/002,KENT COUNTY COUNCIL (KCS),00050800,41.96,ASSET MANAGEMENT - PROVINCIAL HOUSE,CLIMATE CHANGE LEVY,D430,CLIMATE CHANGE LEVY,ASSET MANAGEMENT,UTILITIES
http://statistics.data.gov.uk/id/local-authority/43UM,WOKING BOROUGH COUNCIL,05/04/2016,0000394697/001,KENT COUNTY COUNCIL (KCS),00050800,2664.69,ASSET MANAGEMENT - PROVINCIAL HOUSE,ELECTRICITY,D400,ELECTRICITY,ASSET MANAGEMENT,UTILITIES
http://statistics.data.gov.uk/id/local-authority/43UM,WOKING BOROUGH COUNCIL,05/04/2016,0000394697/002,KENT COUNTY COUNCIL (KCS),00050800,147.48,ASSET MANAGEMENT - PROVINCIAL HOUSE,CLIMATE CHANGE LEVY,D430,CLIMATE CHANGE LEVY,ASSET MANAGEMENT,UTILITIES
http://statistics.data.gov.uk/id/local-authority/43UM,WOKING BOROUGH COUNCIL,05/04/2016,0000394698/001,KENT COUNTY COUNCIL (KCS),00050800,304.03,ASSET MANAGEMENT - TOWN CENTRE LEISURE,GAS,D420,GAS,ASSET MANAGEMENT,UTILITIES
http://statistics.data.gov.uk/id/local-authority/43UM,WOKING BOROUGH COUNCIL,05/04/2016,0000394698/002,KENT COUNTY COUNCIL (KCS),00050800,20.15,ASSET MANAGEMENT - TOWN CENTRE LEISURE,CLIMATE CHANGE LEVY,D430,CLIMATE CHANGE LEVY,ASSET MANAGEMENT,UTILITIES
http://statistics.data.gov.uk/id/local-authority/43UM,WOKING BOROUGH COUNCIL,05/04/2016,0000394714/001,KENT COUNTY COUNCIL (KCS),00050800,74.49,ASSET MANAGEMENT - UNIT 15A MON WAY EAST,CLIMATE CHANGE LEVY,D430,CLIMATE CHANGE LEVY,ASSET MANAGEMENT,UTILITIES
http://statistics.data.gov.uk/id/local-authority/43UM,WOKING BOROUGH COUNCIL,05/04/2016,0000394714/002,KENT COUNTY COUNCIL (KCS),00050800,994.56,ASSET MANAGEMENT - UNIT 15A MON WAY EAST,GAS,D420,GAS,ASSET MANAGEMENT,UTILITIES
http://statistics.data.gov.uk/id/local-authority/43UM,WOKING BOROUGH COUNCIL,05/04/2016,0000394770/001,KENT COUNTY COUNCIL (KCS),00050800,326.41,NEIGHBOURHOOD SERVICES - MUSLIM BURIAL GRND PEACE GARDE,ELECTRICITY,D400,ELECTRICITY,NEIGHBOURHOOD SERVICES,UTILITIES
http://statistics.data.gov.uk/id/local-authority/43UM,WOKING BOROUGH COUNCIL,05/04/2016,0000394826/001,KENT COUNTY COUNCIL (KCS),00050800,2145.46,ASSET MANAGEMENT - PROVINCIAL HOUSE,ELECTRICITY,D400,ELECTRICITY,ASSET MANAGEMENT,UTILITIES
http://statistics.data.gov.uk/id/local-authority/43UM,WOKING BOROUGH COUNCIL,05/04/2016,0000394826/002,KENT COUNTY COUNCIL (KCS),00050800,118.56,ASSET MANAGEMENT - PROVINCIAL HOUSE,CLIMATE CHANGE LEVY,D430,CLIMATE CHANGE LEVY,ASSET MANAGEMENT,UTILITIES
http://statistics.data.gov.uk/id/local-authority/43UM,WOKING BOROUGH COUNCIL,05/04/2016,0000394964/001,KENT COUNTY COUNCIL (KCS),00050800,57.61,HOUSING SERVICES - LANDLORDS EXPENSES,ELECTRICITY,D400,ELECTRICITY,HOUSING SERVICES,UTILITIES
http://statistics.data.gov.uk/id/local-authority/43UM,WOKING BOROUGH COUNCIL,05/04/2016,0000394965/001,KENT COUNTY COUNCIL (KCS),00050800,58.55,HOUSING SERVICES - LANDLORDS EXPENSES,ELECTRICITY,D400,ELECTRICITY,HOUSING SERVICES,UTILITIES
http://statistics.data.gov.uk/id/local-authority/43UM,WOKING BOROUGH COUNCIL,05/04/2016,0000394966/001,KENT COUNTY COUNCIL (KCS),00050800,81.56,HOUSING SERVICES - LANDLORDS EXPENSES,ELECTRICITY,D400,ELECTRICITY,HOUSING SERVICES,UTILITIES
http://statistics.data.gov.uk/id/local-authority/43UM,WOKING BOROUGH COUNCIL,05/04/2016,0000394967/001,KENT COUNTY COUNCIL (KCS),00050800,60.56,HOUSING SERVICES - LANDLORDS EXPENSES,ELECTRICITY,D400,ELECTRICITY,HOUSING SERVICES,UTILITIES
http://statistics.data.gov.uk/id/local-authority/43UM,WOKING BOROUGH COUNCIL,05/04/2016,0000394968/001,KENT COUNTY COUNCIL (KCS),00050800,273.53,HOUSING SERVICES - LANDLORDS EXPENSES,ELECTRICITY,D400,ELECTRICITY,HOUSING SERVICES,UTILITIES
http://statistics.data.gov.uk/id/local-authority/43UM,WOKING BOROUGH COUNCIL,05/04/2016,0000394969/001,KENT COUNTY COUNCIL (KCS),00050800,50.37,HOUSING SERVICES - LANDLORDS EXPENSES,ELECTRICITY,D400,ELECTRICITY,HOUSING SERVICES,UTILITIES
http://statistics.data.gov.uk/id/local-authority/43UM,WOKING BOROUGH COUNCIL,05/04/2016,0000394970/001,KENT COUNTY COUNCIL (KCS),00050800,21.78,HOUSING SERVICES - LANDLORDS EXPENSES,ELECTRICITY,D400,ELECTRICITY,HOUSING SERVICES,UTILITIES
http://statistics.data.gov.uk/id/local-authority/43UM,WOKING BOROUGH COUNCIL,05/04/2016,0000394971/001,KENT COUNTY COUNCIL (KCS),00050800,256.74,HOUSING SERVICES - LANDLORDS EXPENSES,ELECTRICITY,D400,ELECTRICITY,HOUSING SERVICES,UTILITIES
http://statistics.data.gov.uk/id/local-authority/43UM,WOKING BOROUGH COUNCIL,05/04/2016,0000394972/001,KENT COUNTY COUNCIL (KCS),00050800,360.02,HOUSING SERVICES - LANDLORDS EXPENSES,ELECTRICITY,D400,ELECTRICITY,HOUSING SERVICES,UTILITIES
http://statistics.data.gov.uk/id/local-authority/43UM,WOKING BOROUGH COUNCIL,05/04/2016,0000394973/001,KENT COUNTY COUNCIL (KCS),00050800,1243.70,HOUSING SERVICES - LANDLORDS EXPENSES,ELECTRICITY,D400,ELECTRICITY,HOUSING SERVICES,UTILITIES
http://statistics.data.gov.uk/id/local-authority/43UM,WOKING BOROUGH COUNCIL,05/04/2016,0000394974/001,KENT COUNTY COUNCIL (KCS),00050800,79.23,HOUSING SERVICES - LANDLORDS EXPENSES,ELECTRICITY,D400,ELECTRICITY,HOUSING SERVICES,UTILITIES
http://statistics.data.gov.uk/id/local-authority/43UM,WOKING BOROUGH COUNCIL,05/04/2016,0000394975/001,KENT COUNTY COUNCIL (KCS),00050800,160.71,HOUSING SERVICES - LANDLORDS EXPENSES,ELECTRICITY,D400,ELECTRICITY,HOUSING SERVICES,UTILITIES
http://statistics.data.gov.uk/id/local-authority/43UM,WOKING BOROUGH COUNCIL,05/04/2016,0000394976/001,KENT COUNTY COUNCIL (KCS),00050800,58.55,HOUSING SERVICES - LANDLORDS EXPENSES,ELECTRICITY,D400,ELECTRICITY,HOUSING SERVICES,UTILITIES
http://statistics.data.gov.uk/id/local-authority/43UM,WOKING BOROUGH COUNCIL,05/04/2016,0000394977/001,KENT COUNTY COUNCIL (KCS),00050800,83.46,HOUSING SERVICES - LANDLORDS EXPENSES,ELECTRICITY,D400,ELECTRICITY,HOUSING SERVICES,UTILITIES
http://statistics.data.gov.uk/id/local-authority/43UM,WOKING BOROUGH COUNCIL,05/04/2016,0000394978/001,KENT COUNTY COUNCIL (KCS),00050800,19.86,HOUSING SERVICES - ENERGY,ELECTRICITY,D400,ELECTRICITY,HOUSING SERVICES,UTILITIES
http://statistics.data.gov.uk/id/local-authority/43UM,WOKING BOROUGH COUNCIL,05/04/2016,0000394979/001,KENT COUNTY COUNCIL (KCS),00050800,89.40,HOUSING SERVICES - ENERGY,ELECTRICITY,D400,ELECTRICITY,HOUSING SERVICES,UTILITIES
http://statistics.data.gov.uk/id/local-authority/43UM,WOKING BOROUGH COUNCIL,05/04/2016,0000394980/001,KENT COUNTY COUNCIL (KCS),00050800,16.70,HOUSING SERVICES - ENERGY,ELECTRICITY,D400,ELECTRICITY,HOUSING SERVICES,UTILITIES
http://statistics.data.gov.uk/id/local-authority/43UM,WOKING BOROUGH COUNCIL,05/04/2016,0000394981/001,KENT COUNTY COUNCIL (KCS),00050800,160.29,HOUSING SERVICES - ENERGY,ELECTRICITY,D400,ELECTRICITY,HOUSING SERVICES,UTILITIES
http://statistics.data.gov.uk/id/local-authority/43UM,WOKING BOROUGH COUNCIL,05/04/2016,0000394982/001,KENT COUNTY COUNCIL (KCS),00050800,23.48,HOUSING SERVICES - ENERGY,ELECTRICITY,D400,ELECTRICITY,HOUSING SERVICES,UTILITIES
http://statistics.data.gov.uk/id/local-authority/43UM,WOKING BOROUGH COUNCIL,05/04/2016,0000394983/001,KENT COUNTY COUNCIL (KCS),00050800,16.70,HOUSING SERVICES - LANDLORDS EXPENSES,ELECTRICITY,D400,ELECTRICITY,HOUSING SERVICES,UTILITIES
http://statistics.data.gov.uk/id/local-authority/43UM,WOKING BOROUGH COUNCIL,05/04/2016,0000394984/001,KENT COUNTY COUNCIL (KCS),00050800,13.31,HOUSING SERVICES - LANDLORDS EXPENSES,ELECTRICITY,D400,ELECTRICITY,HOUSING SERVICES,UTILITIES
http://statistics.data.gov.uk/id/local-authority/43UM,WOKING BOROUGH COUNCIL,05/04/2016,0000394985/001,KENT COUNTY COUNCIL (KCS),00050800,13.31,HOUSING SERVICES - LANDLORDS EXPENSES,ELECTRICITY,D400,ELECTRICITY,HOUSING SERVICES,UTILITIES
http://statistics.data.gov.uk/id/local-authority/43UM,WOKING BOROUGH COUNCIL,05/04/2016,0000394986/001,KENT COUNTY COUNCIL (KCS),00050800,7.60,HOUSING SERVICES - LANDLORDS EXPENSES,ELECTRICITY,D400,ELECTRICITY,HOUSING SERVICES,UTILITIES
http://statistics.data.gov.uk/id/local-authority/43UM,WOKING BOROUGH COUNCIL,05/04/2016,0000394987/001,KENT COUNTY COUNCIL (KCS),00050800,5.13,HOUSING SERVICES - LANDLORDS EXPENSES,ELECTRICITY,D400,ELECTRICITY,HOUSING SERVICES,UTILITIES
http://statistics.data.gov.uk/id/local-authority/43UM,WOKING BOROUGH COUNCIL,05/04/2016,0000394992/001,KENT COUNTY COUNCIL (KCS),00050800,17.13,HOUSING SERVICES - LANDLORDS EXPENSES,ELECTRICITY,D400,ELECTRICITY,HOUSING SERVICES,UTILITIES
http://statistics.data.gov.uk/id/local-authority/43UM,WOKING BOROUGH COUNCIL,05/04/2016,0000394993/001,KENT COUNTY COUNCIL (KCS),00050800,160.71,HOUSING SERVICES - TEMPORARY ACCOMMODATION,ELECTRICITY,D400,ELECTRICITY,HOUSING SERVICES,UTILITIES
http://statistics.data.gov.uk/id/local-authority/43UM,WOKING BOROUGH COUNCIL,05/04/2016,0000393853/001,KENT FINANCIAL SERVICES,40484900,45.00,HOUSING SERVICES - RENT COLLECTION,DEBT COLLECTION AGENCY COMMISS,H910,DEBT COLLECTION AGENCY COMMISS,HOUSING SERVICES,FINANCIAL SERVICES
http://statistics.data.gov.uk/id/local-authority/43UM,WOKING BOROUGH COUNCIL,05/04/2016,0000394015/001,KENT FINANCIAL SERVICES,40484900,45.00,REVENUES AND BENEFITS - COUNCIL TAX,DEBT COLLECTION AGENCY COMMISS,H910,DEBT COLLECTION AGENCY COMMISS,REVENUES AND BENEFITS,FINANCIAL SERVICES
http://statistics.data.gov.uk/id/local-authority/43UM,WOKING BOROUGH COUNCIL,05/04/2016,0000394016/001,KENT FINANCIAL SERVICES,40484900,45.00,REVENUES AND BENEFITS - COUNCIL TAX,DEBT COLLECTION AGENCY COMMISS,H910,DEBT COLLECTION AGENCY COMMISS,REVENUES AND BENEFITS,FINANCIAL SERVICES
http://statistics.data.gov.uk/id/local-authority/43UM,WOKING BOROUGH COUNCIL,05/04/2016,0000394268/001,KENT FINANCIAL SERVICES,40484900,35.00,HOUSING SERVICES - RENT COLLECTION,DEBT COLLECTION AGENCY COMMISS,H910,DEBT COLLECTION AGENCY COMMISS,HOUSING SERVICES,FINANCIAL SERVICES
http://statistics.data.gov.uk/id/local-authority/43UM,WOKING BOROUGH COUNCIL,05/04/2016,0000394277/001,KENT FINANCIAL SERVICES,40484900,45.00,REVENUES AND BENEFITS - C'L TAX BENEFIT ADMIN,DEBT COLLECTION AGENCY COMMISS,H910,DEBT COLLECTION AGENCY COMMISS,REVENUES AND BENEFITS,FINANCIAL SERVICES
http://statistics.data.gov.uk/id/local-authority/43UM,WOKING BOROUGH COUNCIL,05/04/2016,0000394278/001,KENT FINANCIAL SERVICES,40484900,45.00,REVENUES AND BENEFITS - C'L TAX BENEFIT ADMIN,DEBT COLLECTION AGENCY COMMISS,H910,DEBT COLLECTION AGENCY COMMISS,REVENUES AND BENEFITS,FINANCIAL SERVICES
http://statistics.data.gov.uk/id/local-authority/43UM,WOKING BOROUGH COUNCIL,05/04/2016,GPC/666034505,KFC-WOKING,PROCUREMENT CARD,4.12,INDEPENDENT LIVING SERVICES - FAMILY SUPPORT PROGRAMME,FAMILY ENABLING (FSP PROJECT),H137,REFRESHMENTS - FAMILY,PALLAVI SHARAN,FAST-FOOD RESTAURANTS (QUICK PAYMENT SERVICE PILOT
http://statistics.data.gov.uk/id/local-authority/43UM,WOKING BOROUGH COUNCIL,05/04/2016,0000395021/001,LAN2LAN LIMITED,00857800,6420.00,INFORMATION TECHNOLOGY - I.T.S. ICT,PC & SERVER SYSTEMS SOFTWARE,G193,PC & SERVER SYSTEMS SOFTWARE,INFORMATION TECHNOLOGY,INFORMATION COMMUNICATION TECHNOLOGY
http://statistics.data.gov.uk/id/local-authority/43UM,WOKING BOROUGH COUNCIL,05/04/2016,0000394335/001,LEARNING POOL LIMITED,40443500,7250.00,CORPORATE MANAGEMENT GROUP - STAFF TRAINING/GENERAL COSTS,TRAINING - CORPORATE,A910,TRAINING - CORPORATE,CORPORATE MANAGEMENT GROUP,HUMAN RESOURCES
http://statistics.data.gov.uk/id/local-authority/43UM,WOKING BOROUGH COUNCIL,05/04/2016,0000394636/001,LEA'S CLEANING SERVICE LTD,01678300,20.00,CORPORATE STRATEGY - SAFER WOKING PARTNERSHIP,CCTV COSTS,X830,CCTV COSTS,CORPORATE STRATEGY,WORKS (CONSTRUCTION REPAIR MAINTENANCE)
http://statistics.data.gov.uk/id/local-authority/43UM,WOKING BOROUGH COUNCIL,05/04/2016,0000394637/001,LEA'S CLEANING SERVICE LTD,01678300,240.00,ASSET MANAGEMENT - CIVIC OFFICES,PLANTS  SEEDS ETC.,G210,PLANTS  SEEDS ETC.,ASSET MANAGEMENT,WORKS (CONSTRUCTION REPAIR MAINTENANCE)
http://statistics.data.gov.uk/id/local-authority/43UM,WOKING BOROUGH COUNCIL,05/04/2016,0000395187/001,LUCY HAINES,01526200,130.00,ASSET MANAGEMENT - BROOKWOOD CEMETERY TEMP COSTS,MAIN CONTRACTOR,Q200,MAIN CONTRACTOR,ASSET MANAGEMENT,HUMAN RESOURCES
http://statistics.data.gov.uk/id/local-authority/43UM,WOKING BOROUGH COUNCIL,05/04/2016,0000394686/001,M&J SEAFOOD,00074600,69.23,H G WELLS - H G WELLS - CATERING,PROVISIONS-FOOD,G440,PROVISIONS-FOOD,H G WELLS,CATERING
http://statistics.data.gov.uk/id/local-authority/43UM,WOKING BOROUGH COUNCIL,05/04/2016,0000394897/001,MARTIN CONWAY,01025900,60.00,HOUSING SERVICES - HOUSING OPTIONS,BED & BREAKFAST EXPENDITURE,H786,BED & BREAKFAST EXPENDITURE,HOUSING SERVICES,HOUSING MANAGEMENT
http://statistics.data.gov.uk/id/local-authority/43UM,WOKING BOROUGH COUNCIL,05/04/2016,0000394899/001,MARTIN CONWAY,01025900,55.00,HOUSING SERVICES - HOUSING OPTIONS,BED & BREAKFAST EXPENDITURE,H786,BED & BREAKFAST EXPENDITURE,HOUSING SERVICES,HOUSING MANAGEMENT
http://statistics.data.gov.uk/id/local-authority/43UM,WOKING BOROUGH COUNCIL,05/04/2016,0000394901/001,MARTIN CONWAY,01025900,55.00,HOUSING SERVICES - HOUSING OPTIONS,BED & BREAKFAST EXPENDITURE,H786,BED & BREAKFAST EXPENDITURE,HOUSING SERVICES,HOUSING MANAGEMENT
http://statistics.data.gov.uk/id/local-authority/43UM,WOKING BOROUGH COUNCIL,05/04/2016,0000394902/001,MARTIN CONWAY,01025900,55.00,HOUSING SERVICES - HOUSING OPTIONS,BED & BREAKFAST EXPENDITURE,H786,BED & BREAKFAST EXPENDITURE,HOUSING SERVICES,HOUSING MANAGEMENT
http://statistics.data.gov.uk/id/local-authority/43UM,WOKING BOROUGH COUNCIL,05/04/2016,0000394905/001,MARTIN CONWAY,01025900,595.00,HOUSING SERVICES - HOUSING OPTIONS,BED & BREAKFAST EXPENDITURE,H786,BED & BREAKFAST EXPENDITURE,HOUSING SERVICES,HOUSING MANAGEMENT
http://statistics.data.gov.uk/id/local-authority/43UM,WOKING BOROUGH COUNCIL,05/04/2016,0000394003/001,MARTIN ROBERTS,01498700,8712.00,HOUSING SERVICES - PRIVATE SECTOR LEASING SCHEME,LEASE PAYMENTS TO LANDLORD,H787,LEASE PAYMENTS TO LANDLORD,HOUSING SERVICES,HOUSING MANAGEMENT
http://statistics.data.gov.uk/id/local-authority/43UM,WOKING BOROUGH COUNCIL,05/04/2016,0000394000/001,MOLE VALLEY DISTRICT COUNCIL,00547600,815.00,NEIGHBOURHOOD SERVICES - REGULATION AND ENFORCEMENT,SECURITY OUTOFHRS CALL HANDLIN,H607,SECURITY OUTOFHRS CALL HANDLIN,NEIGHBOURHOOD SERVICES,INFORMATION COMMUNICATION TECHNOLOGY
http://statistics.data.gov.uk/id/local-authority/43UM,WOKING BOROUGH COUNCIL,05/04/2016,0000394789/001,MONTMARTRE PATISSERIE LTD,01482700,280.50,H G WELLS - H G WELLS - CATERING,PROVISIONS-FOOD,G440,PROVISIONS-FOOD,H G WELLS,CATERING
http://statistics.data.gov.uk/id/local-authority/43UM,WOKING BOROUGH COUNCIL,05/04/2016,0000394960/001,MONTMARTRE PATISSERIE LTD,01482700,453.75,H G WELLS - H G WELLS - CATERING,PROVISIONS-FOOD,G440,PROVISIONS-FOOD,H G WELLS,CATERING
http://statistics.data.gov.uk/id/local-authority/43UM,WOKING BOROUGH COUNCIL,05/04/2016,0000394456/001,MORGAN HUNT UK LIMITED,01768500,847.00,REVENUES AND BENEFITS - CUSTOMER SERVICES,TEMPORARY STAFF,A110,TEMPORARY STAFF,REVENUES AND BENEFITS,HUMAN RESOURCES
http://statistics.data.gov.uk/id/local-authority/43UM,WOKING BOROUGH COUNCIL,05/04/2016,0000394850/001,MOTO-MARQUE LTD,00889700,100.00,ASSET MANAGEMENT - LEASED CAR INSURANCE,GARAGE REPAIR COSTS,T167,GARAGE REPAIR COSTS,ASSET MANAGEMENT,FINANCIAL SERVICES
http://statistics.data.gov.uk/id/local-authority/43UM,WOKING BOROUGH COUNCIL,05/04/2016,0000394851/001,MOTO-MARQUE LTD,00889700,100.00,ASSET MANAGEMENT - LEASED CAR INSURANCE,GARAGE REPAIR COSTS,T167,GARAGE REPAIR COSTS,ASSET MANAGEMENT,FINANCIAL SERVICES
http://statistics.data.gov.uk/id/local-authority/43UM,WOKING BOROUGH COUNCIL,05/04/2016,0000394852/001,MOTO-MARQUE LTD,00889700,100.00,ASSET MANAGEMENT - LEASED CAR INSURANCE,GARAGE REPAIR COSTS,T167,GARAGE REPAIR COSTS,ASSET MANAGEMENT,FINANCIAL SERVICES
http://statistics.data.gov.uk/id/local-authority/43UM,WOKING BOROUGH COUNCIL,05/04/2016,0000395080/001,MOUNTJOY LIMITED,01920300,39000.40,ASSET MANAGEMENT - GOLDWATER LODGE,MAIN CONTRACTOR,Q200,MAIN CONTRACTOR,ASSET MANAGEMENT,WORKS (CONSTRUCTION REPAIR MAINTENANCE)
http://statistics.data.gov.uk/id/local-authority/43UM,WOKING BOROUGH COUNCIL,05/04/2016,0000394892/001,MR BEN LOPEZ,40568600,9240.00,HOUSING SERVICES - PRIVATE SECTOR LEASING SCHEME,LEASE PAYMENTS TO LANDLORD,H787,LEASE PAYMENTS TO LANDLORD,HOUSING SERVICES,HOUSING MANAGEMENT
http://statistics.data.gov.uk/id/local-authority/43UM,WOKING BOROUGH COUNCIL,05/04/2016,0000394509/001,NIKKI MCALLISTER-FREEMAN,01171700,8712.00,HOUSING SERVICES - PRIVATE SECTOR LEASING SCHEME,LEASE PAYMENTS TO LANDLORD,H787,LEASE PAYMENTS TO LANDLORD,HOUSING SERVICES,HOUSING MANAGEMENT
http://statistics.data.gov.uk/id/local-authority/43UM,WOKING BOROUGH COUNCIL,05/04/2016,0000395212/001,NISBETS,00796800,46.38,INDEPENDENT LIVING SERVICES - ST MARY'S DAY CENTRE,EQUIPMENT,G100,EQUIPMENT,INDEPENDENT LIVING SERVICES,CATERING
http://statistics.data.gov.uk/id/local-authority/43UM,WOKING BOROUGH COUNCIL,05/04/2016,0000394930/001,OPTICHROME LIMITED,00078700,1692.50,CORPORATE STRATEGY - BOROUGH ELECTIONS,STATIONERY,G620,STATIONERY,CORPORATE STRATEGY,STATIONERY
http://statistics.data.gov.uk/id/local-authority/43UM,WOKING BOROUGH COUNCIL,05/04/2016,0000394930/002,OPTICHROME LIMITED,00078700,1692.50,CORPORATE STRATEGY - POLICE & CRIME COMMISSIONER,STATIONERY,G620,STATIONERY,CORPORATE STRATEGY,STATIONERY
http://statistics.data.gov.uk/id/local-authority/43UM,WOKING BOROUGH COUNCIL,05/04/2016,0000395227/001,OPUS ENERGY LIMITED,40381400,20.34,ASSET MANAGEMENT - 26A COMMERCIAL WAY,ELECTRICITY,D400,ELECTRICITY,ASSET MANAGEMENT,UTILITIES
http://statistics.data.gov.uk/id/local-authority/43UM,WOKING BOROUGH COUNCIL,05/04/2016,0000395137/001,ORACLE CORPORATION UK LIMITED,00584700,4718.04,INFORMATION TECHNOLOGY - I.T.S. ICT,EQUIPMENT REPAIR & MAINTENANCE,G120,EQUIPMENT REPAIR & MAINTENANCE,INFORMATION TECHNOLOGY,INFORMATION COMMUNICATION TECHNOLOGY
http://statistics.data.gov.uk/id/local-authority/43UM,WOKING BOROUGH COUNCIL,05/04/2016,0000394775/001,OYSTER PARTNERSHIP,40443300,840.00,NEIGHBOURHOOD SERVICES - EAST NEIGHBOURHOOD TEAM,TEMPORARY STAFF,A110,TEMPORARY STAFF,NEIGHBOURHOOD SERVICES,HUMAN RESOURCES
http://statistics.data.gov.uk/id/local-authority/43UM,WOKING BOROUGH COUNCIL,05/04/2016,0000394776/001,OYSTER PARTNERSHIP,40443300,1201.86,PLANNING SERVICES - TOWN PLANNING GENERAL,CONSULTANTS,H670,CONSULTANTS,PLANNING SERVICES,HUMAN RESOURCES
http://statistics.data.gov.uk/id/local-authority/43UM,WOKING BOROUGH COUNCIL,05/04/2016,0000394462/001,PARKEON LTD,01467400,77274.16,NEIGHBOURHOOD SERVICES - CAR PARKS ADMIN&OPERATIONAL EX,TICKET MACHINE ANNUAL CONTRACT,D830,TICKET MACHINE ANNUAL CONTRACT,NEIGHBOURHOOD SERVICES,STREET & TRAFFIC MANAGEMENT
http://statistics.data.gov.uk/id/local-authority/43UM,WOKING BOROUGH COUNCIL,05/04/2016,0000394440/001,PATRICIA ANN BLACKWELL,01463600,14340.00,HOUSING SERVICES - PRIVATE SECTOR LEASING SCHEME,LEASE PAYMENTS TO LANDLORD,H787,LEASE PAYMENTS TO LANDLORD,HOUSING SERVICES,HOUSING MANAGEMENT
http://statistics.data.gov.uk/id/local-authority/43UM,WOKING BOROUGH COUNCIL,05/04/2016,0000394553/001,PERSONNEL SELECTION ASSOCIATES LIMITED,00061400,347.20,INDEPENDENT LIVING SERVICES - MEALS SERVICE,TEMPORARY STAFF,A110,TEMPORARY STAFF,INDEPENDENT LIVING SERVICES,HUMAN RESOURCES
http://statistics.data.gov.uk/id/local-authority/43UM,WOKING BOROUGH COUNCIL,05/04/2016,0000395200/001,PERSONNEL SELECTION ASSOCIATES LIMITED,00061400,389.68,H G WELLS - H G WELLS - FUNCTION ROOMS,TEMPORARY STAFF,H687,TEMPORARY STAFF,H G WELLS,HUMAN RESOURCES
http://statistics.data.gov.uk/id/local-authority/43UM,WOKING BOROUGH COUNCIL,05/04/2016,0000395200/002,PERSONNEL SELECTION ASSOCIATES LIMITED,00061400,555.90,H G WELLS - H G WELLS - BAR,TEMPORARY STAFF,H687,TEMPORARY STAFF,H G WELLS,HUMAN RESOURCES
http://statistics.data.gov.uk/id/local-authority/43UM,WOKING BOROUGH COUNCIL,05/04/2016,0000395150/001,PRIAVA LIMITED,00972200,-1605.04,INFORMATION TECHNOLOGY - I.T.S. ICT,PC & SERVER SYSTEMS SOFTWARE,G193,PC & SERVER SYSTEMS SOFTWARE,INFORMATION TECHNOLOGY,INFORMATION COMMUNICATION TECHNOLOGY
http://statistics.data.gov.uk/id/local-authority/43UM,WOKING BOROUGH COUNCIL,05/04/2016,0000395151/001,PRIAVA LIMITED,00972200,12500.00,INFORMATION TECHNOLOGY - I.T.S. ICT,PC & SERVER SYSTEMS SOFTWARE,G193,PC & SERVER SYSTEMS SOFTWARE,INFORMATION TECHNOLOGY,INFORMATION COMMUNICATION TECHNOLOGY
http://statistics.data.gov.uk/id/local-authority/43UM,WOKING BOROUGH COUNCIL,05/04/2016,0000394666/001,PROJECT114 LTD,40370300,700.00,HOUSING SERVICES - HOUSING OPTIONS,BED & BREAKFAST EXPENDITURE,H786,BED & BREAKFAST EXPENDITURE,HOUSING SERVICES,HOUSING MANAGEMENT
http://statistics.data.gov.uk/id/local-authority/43UM,WOKING BOROUGH COUNCIL,05/04/2016,0000394667/001,PROJECT114 LTD,40370300,200.00,HOUSING SERVICES - HOUSING OPTIONS,BED & BREAKFAST EXPENDITURE,H786,BED & BREAKFAST EXPENDITURE,HOUSING SERVICES,HOUSING MANAGEMENT
http://statistics.data.gov.uk/id/local-authority/43UM,WOKING BOROUGH COUNCIL,05/04/2016,0000394668/001,PROJECT114 LTD,40370300,700.00,HOUSING SERVICES - HOUSING OPTIONS,BED & BREAKFAST EXPENDITURE,H786,BED & BREAKFAST EXPENDITURE,HOUSING SERVICES,HOUSING MANAGEMENT
http://statistics.data.gov.uk/id/local-authority/43UM,WOKING BOROUGH COUNCIL,05/04/2016,0000394669/001,PROJECT114 LTD,40370300,550.00,HOUSING SERVICES - HOUSING OPTIONS,BED & BREAKFAST EXPENDITURE,H786,BED & BREAKFAST EXPENDITURE,HOUSING SERVICES,HOUSING MANAGEMENT
http://statistics.data.gov.uk/id/local-authority/43UM,WOKING BOROUGH COUNCIL,05/04/2016,0000394670/001,PROJECT114 LTD,40370300,350.00,HOUSING SERVICES - HOUSING OPTIONS,BED & BREAKFAST EXPENDITURE,H786,BED & BREAKFAST EXPENDITURE,HOUSING SERVICES,HOUSING MANAGEMENT
http://statistics.data.gov.uk/id/local-authority/43UM,WOKING BOROUGH COUNCIL,05/04/2016,0000394671/001,PROJECT114 LTD,40370300,350.00,HOUSING SERVICES - HOUSING OPTIONS,BED & BREAKFAST EXPENDITURE,H786,BED & BREAKFAST EXPENDITURE,HOUSING SERVICES,HOUSING MANAGEMENT
http://statistics.data.gov.uk/id/local-authority/43UM,WOKING BOROUGH COUNCIL,05/04/2016,0000394672/001,PROJECT114 LTD,40370300,560.00,HOUSING SERVICES - HOUSING OPTIONS,BED & BREAKFAST EXPENDITURE,H786,BED & BREAKFAST EXPENDITURE,HOUSING SERVICES,HOUSING MANAGEMENT
http://statistics.data.gov.uk/id/local-authority/43UM,WOKING BOROUGH COUNCIL,05/04/2016,0000394673/001,PROJECT114 LTD,40370300,700.00,HOUSING SERVICES - HOUSING OPTIONS,BED & BREAKFAST EXPENDITURE,H786,BED & BREAKFAST EXPENDITURE,HOUSING SERVICES,HOUSING MANAGEMENT
http://statistics.data.gov.uk/id/local-authority/43UM,WOKING BOROUGH COUNCIL,05/04/2016,0000394674/001,PROJECT114 LTD,40370300,240.00,HOUSING SERVICES - HOUSING OPTIONS,BED & BREAKFAST EXPENDITURE,H786,BED & BREAKFAST EXPENDITURE,HOUSING SERVICES,HOUSING MANAGEMENT
http://statistics.data.gov.uk/id/local-authority/43UM,WOKING BOROUGH COUNCIL,05/04/2016,0000394675/001,PROJECT114 LTD,40370300,560.00,HOUSING SERVICES - HOUSING OPTIONS,BED & BREAKFAST EXPENDITURE,H786,BED & BREAKFAST EXPENDITURE,HOUSING SERVICES,HOUSING MANAGEMENT
http://statistics.data.gov.uk/id/local-authority/43UM,WOKING BOROUGH COUNCIL,05/04/2016,0000394676/001,PROJECT114 LTD,40370300,200.00,HOUSING SERVICES - HOUSING OPTIONS,BED & BREAKFAST EXPENDITURE,H786,BED & BREAKFAST EXPENDITURE,HOUSING SERVICES,HOUSING MANAGEMENT
http://statistics.data.gov.uk/id/local-authority/43UM,WOKING BOROUGH COUNCIL,05/04/2016,0000394677/001,PROJECT114 LTD,40370300,700.00,HOUSING SERVICES - HOUSING OPTIONS,BED & BREAKFAST EXPENDITURE,H786,BED & BREAKFAST EXPENDITURE,HOUSING SERVICES,HOUSING MANAGEMENT
http://statistics.data.gov.uk/id/local-authority/43UM,WOKING BOROUGH COUNCIL,05/04/2016,0000394678/001,PROJECT114 LTD,40370300,700.00,HOUSING SERVICES - HOUSING OPTIONS,BED & BREAKFAST EXPENDITURE,H786,BED & BREAKFAST EXPENDITURE,HOUSING SERVICES,HOUSING MANAGEMENT
http://statistics.data.gov.uk/id/local-authority/43UM,WOKING BOROUGH COUNCIL,05/04/2016,0000394679/001,PROJECT114 LTD,40370300,770.00,HOUSING SERVICES - HOUSING OPTIONS,BED & BREAKFAST EXPENDITURE,H786,BED & BREAKFAST EXPENDITURE,HOUSING SERVICES,HOUSING MANAGEMENT
http://statistics.data.gov.uk/id/local-authority/43UM,WOKING BOROUGH COUNCIL,05/04/2016,0000394680/001,PROJECT114 LTD,40370300,500.00,HOUSING SERVICES - HOUSING OPTIONS,BED & BREAKFAST EXPENDITURE,H786,BED & BREAKFAST EXPENDITURE,HOUSING SERVICES,HOUSING MANAGEMENT
http://statistics.data.gov.uk/id/local-authority/43UM,WOKING BOROUGH COUNCIL,05/04/2016,0000394681/001,PROJECT114 LTD,40370300,110.00,HOUSING SERVICES - HOUSING OPTIONS,BED & BREAKFAST EXPENDITURE,H786,BED & BREAKFAST EXPENDITURE,HOUSING SERVICES,HOUSING MANAGEMENT
http://statistics.data.gov.uk/id/local-authority/43UM,WOKING BOROUGH COUNCIL,05/04/2016,0000394452/001,PUBLIC PR,00985300,150.00,CORPORATE STRATEGY - PUBLIC RELATIONS,GENERAL PUBLIC RELATIONS EXPNS,H915,GENERAL PUBLIC RELATIONS EXPNS,CORPORATE STRATEGY,FACILITIES & MANAGEMENT SERVICES
http://statistics.data.gov.uk/id/local-authority/43UM,WOKING BOROUGH COUNCIL,05/04/2016,0000394837/001,REEVES BUTCHERS LIMITED,01005000,12.15,H G WELLS - H G WELLS - CATERING,PROVISIONS-FOOD,G440,PROVISIONS-FOOD,H G WELLS,CATERING
http://statistics.data.gov.uk/id/local-authority/43UM,WOKING BOROUGH COUNCIL,05/04/2016,0000394809/001,ROYAL MAIL GROUP LTD,00040000,368.87,CORPORATE STRATEGY - POSTAGE,POSTAGE - REPLY PAID,G710,POSTAGE - REPLY PAID,CORPORATE STRATEGY,MAIL SERVICES
http://statistics.data.gov.uk/id/local-authority/43UM,WOKING BOROUGH COUNCIL,05/04/2016,0000394809/002,ROYAL MAIL GROUP LTD,00040000,10.00,CORPORATE STRATEGY - POSTAGE,POSTAGE - REPLY PAID,G710,POSTAGE - REPLY PAID,CORPORATE STRATEGY,MAIL SERVICES
http://statistics.data.gov.uk/id/local-authority/43UM,WOKING BOROUGH COUNCIL,05/04/2016,0000394929/001,ROYAL MAIL GROUP LTD,00040000,1.40,CORPORATE STRATEGY - POSTAGE,POSTAGE - REPLY PAID,G710,POSTAGE - REPLY PAID,CORPORATE STRATEGY,MAIL SERVICES
http://statistics.data.gov.uk/id/local-authority/43UM,WOKING BOROUGH COUNCIL,05/04/2016,0000394828/001,RUNNYMEDE BOROUGH COUNCIL,01039000,400.00,PLANNING SERVICES - BUILDING REGULATIONS,PAYMENTS TO OTHER LA'S,H695,PAYMENTS TO OTHER LA'S,PLANNING SERVICES,WORKS (CONSTRUCTION REPAIR MAINTENANCE)
http://statistics.data.gov.uk/id/local-authority/43UM,WOKING BOROUGH COUNCIL,05/04/2016,0000395191/001,SAVILLS (UK) LTD,01581900,12357.00,CORPORATE STRATEGY - INCUBATOR UNITS -EXPORT HOUSE,SERVICE CHARGE,D510,SERVICE CHARGE,CORPORATE STRATEGY,FACILITIES & MANAGEMENT SERVICES
http://statistics.data.gov.uk/id/local-authority/43UM,WOKING BOROUGH COUNCIL,05/04/2016,0000393448/001,SCATTERGOODS AGENCY LTD,00094600,339.00,INDEPENDENT LIVING SERVICES - MEALS SERVICE,TEMPORARY STAFF,A110,TEMPORARY STAFF,INDEPENDENT LIVING SERVICES,HUMAN RESOURCES
http://statistics.data.gov.uk/id/local-authority/43UM,WOKING BOROUGH COUNCIL,05/04/2016,0000393467/001,SCATTERGOODS AGENCY LTD,00094600,423.75,INDEPENDENT LIVING SERVICES - MEALS SERVICE,TEMPORARY STAFF,A110,TEMPORARY STAFF,INDEPENDENT LIVING SERVICES,HUMAN RESOURCES
http://statistics.data.gov.uk/id/local-authority/43UM,WOKING BOROUGH COUNCIL,05/04/2016,0000393891/001,SCATTERGOODS AGENCY LTD,00094600,169.50,INDEPENDENT LIVING SERVICES - MEALS SERVICE,TEMPORARY STAFF,A110,TEMPORARY STAFF,INDEPENDENT LIVING SERVICES,HUMAN RESOURCES
http://statistics.data.gov.uk/id/local-authority/43UM,WOKING BOROUGH COUNCIL,05/04/2016,0000394996/001,SCATTERGOODS AGENCY LTD,00094600,65.73,H G WELLS - H G WELLS - FUNCTION ROOMS,TEMPORARY STAFF,H687,TEMPORARY STAFF,H G WELLS,HUMAN RESOURCES
http://statistics.data.gov.uk/id/local-authority/43UM,WOKING BOROUGH COUNCIL,05/04/2016,0000394997/001,SCATTERGOODS AGENCY LTD,00094600,381.44,H G WELLS - H G WELLS - CATERING,TEMPORARY STAFF,H687,TEMPORARY STAFF,H G WELLS,HUMAN RESOURCES
http://statistics.data.gov.uk/id/local-authority/43UM,WOKING BOROUGH COUNCIL,05/04/2016,0000394998/001,SCATTERGOODS AGENCY LTD,00094600,149.38,H G WELLS - H G WELLS - CATERING,TEMPORARY STAFF,H687,TEMPORARY STAFF,H G WELLS,HUMAN RESOURCES
http://statistics.data.gov.uk/id/local-authority/43UM,WOKING BOROUGH COUNCIL,05/04/2016,0000394998/002,SCATTERGOODS AGENCY LTD,00094600,376.43,H G WELLS - H G WELLS - FUNCTION ROOMS,TEMPORARY STAFF,H687,TEMPORARY STAFF,H G WELLS,HUMAN RESOURCES
http://statistics.data.gov.uk/id/local-authority/43UM,WOKING BOROUGH COUNCIL,05/04/2016,0000394875/001,SCCI ALPHATRACK LTD,40103400,77.00,HOUSING SERVICES - NTL,R&M BUILDINGS - CONTRACTORS,D100,R&M BUILDINGS - CONTRACTORS,HOUSING SERVICES,WORKS (CONSTRUCTION REPAIR MAINTENANCE)
http://statistics.data.gov.uk/id/local-authority/43UM,WOKING BOROUGH COUNCIL,05/04/2016,0000394876/001,SCCI ALPHATRACK LTD,40103400,77.00,HOUSING SERVICES - NTL,R&M BUILDINGS - CONTRACTORS,D100,R&M BUILDINGS - CONTRACTORS,HOUSING SERVICES,WORKS (CONSTRUCTION REPAIR MAINTENANCE)
http://statistics.data.gov.uk/id/local-authority/43UM,WOKING BOROUGH COUNCIL,05/04/2016,0000394877/001,SCCI ALPHATRACK LTD,40103400,89.00,HOUSING SERVICES - NTL,R&M BUILDINGS - CONTRACTORS,D100,R&M BUILDINGS - CONTRACTORS,HOUSING SERVICES,WORKS (CONSTRUCTION REPAIR MAINTENANCE)
http://statistics.data.gov.uk/id/local-authority/43UM,WOKING BOROUGH COUNCIL,05/04/2016,0000394230/001,SHARP CAT LTD,40073500,1525.90,CORPORATE STRATEGY - CORPORATE STRATEGY GENERAL EXP,PRINTING EXTERNAL,G600,PRINTING EXTERNAL,CORPORATE STRATEGY,MAIL SERVICES
http://statistics.data.gov.uk/id/local-authority/43UM,WOKING BOROUGH COUNCIL,05/04/2016,0000394867/001,SHCE LTD T/A THE SHERIFFS OFFICE,40556500,75.00,REVENUES AND BENEFITS - RENT ALLOWANCES,DEBT COLLECTION AGENCY COMMISS,H910,DEBT COLLECTION AGENCY COMMISS,REVENUES AND BENEFITS,FINANCIAL SERVICES
http://statistics.data.gov.uk/id/local-authority/43UM,WOKING BOROUGH COUNCIL,05/04/2016,0000395008/001,SOUTHERN ELECTRIC,01079500,801.02,HOUSING SERVICES - LANDLORDS EXPENSES,ELECTRICITY,D400,ELECTRICITY,HOUSING SERVICES,UTILITIES
http://statistics.data.gov.uk/id/local-authority/43UM,WOKING BOROUGH COUNCIL,05/04/2016,0000395008/002,SOUTHERN ELECTRIC,01079500,243.54,HOUSING SERVICES - LANDLORDS EXPENSES,ELECTRICITY,D400,ELECTRICITY,HOUSING SERVICES,UTILITIES
http://statistics.data.gov.uk/id/local-authority/43UM,WOKING BOROUGH COUNCIL,05/04/2016,0000395009/001,SOUTHERN ELECTRIC,01079500,42.93,HOUSING SERVICES - ENERGY,GAS,D420,GAS,HOUSING SERVICES,UTILITIES
http://statistics.data.gov.uk/id/local-authority/43UM,WOKING BOROUGH COUNCIL,05/04/2016,0000394510/001,ST JAMES' SQUARE INVESTMENT COMPANY LTD,01801100,9240.00,HOUSING SERVICES - PRIVATE SECTOR LEASING SCHEME,LEASE PAYMENTS TO LANDLORD,H787,LEASE PAYMENTS TO LANDLORD,HOUSING SERVICES,HOUSING MANAGEMENT
http://statistics.data.gov.uk/id/local-authority/43UM,WOKING BOROUGH COUNCIL,05/04/2016,0000394531/001,STEPHEN WILLIAMS,01757100,8712.00,HOUSING SERVICES - PRIVATE SECTOR LEASING SCHEME,LEASE PAYMENTS TO LANDLORD,H787,LEASE PAYMENTS TO LANDLORD,HOUSING SERVICES,HOUSING MANAGEMENT
http://statistics.data.gov.uk/id/local-authority/43UM,WOKING BOROUGH COUNCIL,05/04/2016,0000394534/001,SUE JOHNSON,40078800,9240.00,HOUSING SERVICES - PRIVATE SECTOR LEASING SCHEME,LEASE PAYMENTS TO LANDLORD,H787,LEASE PAYMENTS TO LANDLORD,HOUSING SERVICES,HOUSING MANAGEMENT
http://statistics.data.gov.uk/id/local-authority/43UM,WOKING BOROUGH COUNCIL,05/04/2016,0000395035/001,SURREY COUNTY COUNCIL-PENSION CONTRIBS,40235700,30450.77,FINANCIAL SERVICES - OTHER OPERATING EXPENDITURE,TR FROM SLA'S ETC,U999,TR FROM SLA'S ETC,FINANCIAL SERVICES,FINANCIAL SERVICES
http://statistics.data.gov.uk/id/local-authority/43UM,WOKING BOROUGH COUNCIL,05/04/2016,0000395036/001,SURREY COUNTY COUNCIL-PENSION CONTRIBS,40235700,10972.44,FINANCIAL SERVICES - OTHER OPERATING EXPENDITURE,TR FROM SLA'S ETC,U999,TR FROM SLA'S ETC,FINANCIAL SERVICES,FINANCIAL SERVICES
http://statistics.data.gov.uk/id/local-authority/43UM,WOKING BOROUGH COUNCIL,05/04/2016,0000395036/002,SURREY COUNTY COUNCIL-PENSION CONTRIBS,40235700,1639.56,HOUSING SERVICES - CORPORATE MANAGEMENT,MANAGEMENT OF CHANGE,A732,MANAGEMENT OF CHANGE,HOUSING SERVICES,FINANCIAL SERVICES
http://statistics.data.gov.uk/id/local-authority/43UM,WOKING BOROUGH COUNCIL,05/04/2016,0000395038/001,SURREY COUNTY COUNCIL-PENSION CONTRIBS,40235700,73111.44,FINANCIAL SERVICES - OTHER OPERATING EXPENDITURE,TR FROM SLA'S ETC,U999,TR FROM SLA'S ETC,FINANCIAL SERVICES,FINANCIAL SERVICES
http://statistics.data.gov.uk/id/local-authority/43UM,WOKING BOROUGH COUNCIL,05/04/2016,0000395039/001,SURREY COUNTY COUNCIL-PENSION CONTRIBS,40235700,2826.05,FINANCIAL SERVICES - OTHER OPERATING EXPENDITURE,TR FROM SLA'S ETC,U999,TR FROM SLA'S ETC,FINANCIAL SERVICES,FINANCIAL SERVICES
http://statistics.data.gov.uk/id/local-authority/43UM,WOKING BOROUGH COUNCIL,05/04/2016,0000395085/001,T P WALKER,40455200,5989.94,HOUSING SERVICES - DISABLED FACILITIES GRANTS,MANDATORY GRANTS,Q712,MANDATORY GRANTS,HOUSING SERVICES,FINANCIAL SERVICES
http://statistics.data.gov.uk/id/local-authority/43UM,WOKING BOROUGH COUNCIL,05/04/2016,0000394342/001,TANGO SECURITY LTD,01708900,104.00,NEIGHBOURHOOD SERVICES - VEH LIC PLATE DEPS,BALANCE,S690,BALANCE,NEIGHBOURHOOD SERVICES,FACILITIES & MANAGEMENT SERVICES
http://statistics.data.gov.uk/id/local-authority/43UM,WOKING BOROUGH COUNCIL,05/04/2016,0000394343/001,TANGO SECURITY LTD,01708900,124.00,NEIGHBOURHOOD SERVICES - PRIVATE CAR HIRE LICENCE,TAXI MARSHAL,H434,TAXI MARSHAL,NEIGHBOURHOOD SERVICES,FACILITIES & MANAGEMENT SERVICES
http://statistics.data.gov.uk/id/local-authority/43UM,WOKING BOROUGH COUNCIL,05/04/2016,0000394343/002,TANGO SECURITY LTD,01708900,188.00,NEIGHBOURHOOD SERVICES - TAXI LICENCES,TAXI MARSHAL,H434,TAXI MARSHAL,NEIGHBOURHOOD SERVICES,FACILITIES & MANAGEMENT SERVICES
http://statistics.data.gov.uk/id/local-authority/43UM,WOKING BOROUGH COUNCIL,05/04/2016,0000395046/001,THAMESWEY ENERGY LIMITED,01142300,-1583.26,CORPORATE STRATEGY - LEISURE MANAGEMENT CONTRACT,TEL MAINTENANCE,D182,TEL MAINTENANCE,CORPORATE STRATEGY,UTILITIES
http://statistics.data.gov.uk/id/local-authority/43UM,WOKING BOROUGH COUNCIL,05/04/2016,0000395046/002,THAMESWEY ENERGY LIMITED,01142300,-1841.85,HOUSING SERVICES - ENERGY,TEL MAINTENANCE,D182,TEL MAINTENANCE,HOUSING SERVICES,UTILITIES
http://statistics.data.gov.uk/id/local-authority/43UM,WOKING BOROUGH COUNCIL,05/04/2016,0000395048/001,THAMESWEY ENERGY LIMITED,01142300,65567.43,CORPORATE STRATEGY - LEISURE MANAGEMENT CONTRACT,TEL MAINTENANCE,D182,TEL MAINTENANCE,CORPORATE STRATEGY,UTILITIES
http://statistics.data.gov.uk/id/local-authority/43UM,WOKING BOROUGH COUNCIL,05/04/2016,0000395048/002,THAMESWEY ENERGY LIMITED,01142300,39905.32,HOUSING SERVICES - ENERGY,TEL MAINTENANCE,D182,TEL MAINTENANCE,HOUSING SERVICES,UTILITIES
http://statistics.data.gov.uk/id/local-authority/43UM,WOKING BOROUGH COUNCIL,05/04/2016,0000395048/003,THAMESWEY ENERGY LIMITED,01142300,780.52,ASSET MANAGEMENT - ALBION SQUARE CANOPY,TEL MAINTENANCE,D182,TEL MAINTENANCE,ASSET MANAGEMENT,UTILITIES
http://statistics.data.gov.uk/id/local-authority/43UM,WOKING BOROUGH COUNCIL,05/04/2016,0000395116/001,THE KEY SAFE COMPANY,00991700,13.32,HOUSING SERVICES - HOME IMPS & BEN AGENCY,HANDYPERSON MATERIALS,G201,HANDYPERSON MATERIALS,HOUSING SERVICES,WORKS (CONSTRUCTION REPAIR MAINTENANCE)
http://statistics.data.gov.uk/id/local-authority/43UM,WOKING BOROUGH COUNCIL,05/04/2016,0000394855/001,TITANIC MANAGEMENT SERVICES,40300500,814.00,REVENUES AND BENEFITS - BENEFIT SERVICES,TEMPORARY STAFF,A110,TEMPORARY STAFF,REVENUES AND BENEFITS,HUMAN RESOURCES
http://statistics.data.gov.uk/id/local-authority/43UM,WOKING BOROUGH COUNCIL,05/04/2016,0000395113/001,TITANIC MANAGEMENT SERVICES,40300500,814.00,REVENUES AND BENEFITS - BENEFIT SERVICES,TEMPORARY STAFF,A110,TEMPORARY STAFF,REVENUES AND BENEFITS,HUMAN RESOURCES
http://statistics.data.gov.uk/id/local-authority/43UM,WOKING BOROUGH COUNCIL,05/04/2016,0000395157/001,TOWN & COUNTRY FINE FOODS,40279900,233.48,H G WELLS - H G WELLS - CATERING,PROVISIONS-FOOD,G440,PROVISIONS-FOOD,H G WELLS,CATERING
http://statistics.data.gov.uk/id/local-authority/43UM,WOKING BOROUGH COUNCIL,05/04/2016,0000393879/001,TUNSTALL HEALTHCARE (UK) LTD,00019000,161.50,INDEPENDENT LIVING SERVICES - COMMUNITY ALARMS-GF,SUPPORTING PEOPLE EQUIPMENT,G108,SUPPORTING PEOPLE EQUIPMENT,INDEPENDENT LIVING SERVICES,HEALTHCARE
http://statistics.data.gov.uk/id/local-authority/43UM,WOKING BOROUGH COUNCIL,05/04/2016,0000393879/002,TUNSTALL HEALTHCARE (UK) LTD,00019000,35.00,INDEPENDENT LIVING SERVICES - COMMUNITY ALARMS-GF,EQUIPMENT - BATTERIES,G181,EQUIPMENT - BATTERIES,INDEPENDENT LIVING SERVICES,HEALTHCARE
http://statistics.data.gov.uk/id/local-authority/43UM,WOKING BOROUGH COUNCIL,05/04/2016,0000394241/001,TUNSTALL HEALTHCARE (UK) LTD,00019000,398.00,INDEPENDENT LIVING SERVICES - COMMUNITY ALARMS-GF,NEW EQUIPMENT,G105,NEW EQUIPMENT,INDEPENDENT LIVING SERVICES,HEALTHCARE
http://statistics.data.gov.uk/id/local-authority/43UM,WOKING BOROUGH COUNCIL,05/04/2016,0000394491/001,TUNSTALL HEALTHCARE (UK) LTD,00019000,180.00,INDEPENDENT LIVING SERVICES - COMMUNITY ALARMS-GF,SUPPORTING PEOPLE EQUIPMENT,G108,SUPPORTING PEOPLE EQUIPMENT,INDEPENDENT LIVING SERVICES,HEALTHCARE
http://statistics.data.gov.uk/id/local-authority/43UM,WOKING BOROUGH COUNCIL,05/04/2016,0000395011/001,TUNSTALL HEALTHCARE (UK) LTD,00019000,531.00,INDEPENDENT LIVING SERVICES - COMMUNITY ALARMS-GF,SUPPORTING PEOPLE EQUIPMENT,G108,SUPPORTING PEOPLE EQUIPMENT,INDEPENDENT LIVING SERVICES,HEALTHCARE
http://statistics.data.gov.uk/id/local-authority/43UM,WOKING BOROUGH COUNCIL,05/04/2016,0000395012/001,TUNSTALL HEALTHCARE (UK) LTD,00019000,205.11,HOUSING SERVICES - RESPONSIVE REPAIRS,R&M BUILDINGS - CONTRACTORS,D100,R&M BUILDINGS - CONTRACTORS,HOUSING SERVICES,HEALTHCARE
http://statistics.data.gov.uk/id/local-authority/43UM,WOKING BOROUGH COUNCIL,05/04/2016,0000395017/001,TUNSTALL HEALTHCARE (UK) LTD,00019000,201.08,HOUSING SERVICES - RESPONSIVE REPAIRS,R&M BUILDINGS - CONTRACTORS,D100,R&M BUILDINGS - CONTRACTORS,HOUSING SERVICES,HEALTHCARE
http://statistics.data.gov.uk/id/local-authority/43UM,WOKING BOROUGH COUNCIL,05/04/2016,0000394870/001,TV LICENSING,00056000,7.50,INDEPENDENT LIVING SERVICES - HOME SUPPORT SERVICE,TV LICENCE,H703,TV LICENCE,INDEPENDENT LIVING SERVICES,UTILITIES
http://statistics.data.gov.uk/id/local-authority/43UM,WOKING BOROUGH COUNCIL,05/04/2016,0000394871/001,TV LICENSING,00056000,82.50,INDEPENDENT LIVING SERVICES - HOME SUPPORT SERVICE,TV LICENCE,H703,TV LICENCE,INDEPENDENT LIVING SERVICES,UTILITIES
http://statistics.data.gov.uk/id/local-authority/43UM,WOKING BOROUGH COUNCIL,05/04/2016,0000394486/001,UNITY RECRUITMENT LTD,40160500,3105.90,NEIGHBOURHOOD SERVICES - REGULATION AND ENFORCEMENT,TEMPORARY STAFF,A110,TEMPORARY STAFF,NEIGHBOURHOOD SERVICES,HUMAN RESOURCES
http://statistics.data.gov.uk/id/local-authority/43UM,WOKING BOROUGH COUNCIL,05/04/2016,0000395022/001,VAIL WILLIAMS LLP,01844600,2900.00,ASSET MANAGEMENT - PROPERTY SERVICES,CONSULTANTS,H670,CONSULTANTS,ASSET MANAGEMENT,CONSULTANCY
http://statistics.data.gov.uk/id/local-authority/43UM,WOKING BOROUGH COUNCIL,05/04/2016,0000394206/001,VENN GROUP LIMITED,40383900,902.87,REVENUES AND BENEFITS - COUNCIL TAX,TEMPORARY STAFF,A110,TEMPORARY STAFF,REVENUES AND BENEFITS,HUMAN RESOURCES
http://statistics.data.gov.uk/id/local-authority/43UM,WOKING BOROUGH COUNCIL,05/04/2016,0000394208/001,VENN GROUP LIMITED,40383900,841.50,REVENUES AND BENEFITS - COUNCIL TAX,TEMPORARY STAFF,A110,TEMPORARY STAFF,REVENUES AND BENEFITS,HUMAN RESOURCES
http://statistics.data.gov.uk/id/local-authority/43UM,WOKING BOROUGH COUNCIL,05/04/2016,0000394211/001,VENN GROUP LIMITED,40383900,1075.00,REVENUES AND BENEFITS - COUNCIL TAX,TEMPORARY STAFF,A110,TEMPORARY STAFF,REVENUES AND BENEFITS,HUMAN RESOURCES
http://statistics.data.gov.uk/id/local-authority/43UM,WOKING BOROUGH COUNCIL,05/04/2016,0000394049/001,VODAFONE LIMITED,00125100,2.00,INDEPENDENT LIVING SERVICES - COMMUNITY ALARMS-GF,MOBILE PHONE COSTS,G846,MOBILE PHONE COSTS,INDEPENDENT LIVING SERVICES,INFORMATION COMMUNICATION TECHNOLOGY
http://statistics.data.gov.uk/id/local-authority/43UM,WOKING BOROUGH COUNCIL,05/04/2016,0000394346/001,WCT SERVICE STATION LTD,40553900,975.00,CORPORATE MANAGEMENT GROUP - GASPS-WOK COMMUNITY TRANSPORT,GRANTS,Q710,GRANTS,CORPORATE MANAGEMENT GROUP,FINANCIAL SERVICES
http://statistics.data.gov.uk/id/local-authority/43UM,WOKING BOROUGH COUNCIL,05/04/2016,0000394869/001,WCT SERVICE STATION LTD,40553900,1950.00,CORPORATE MANAGEMENT GROUP - GASPS-WOK COMMUNITY TRANSPORT,GRANTS,Q710,GRANTS,CORPORATE MANAGEMENT GROUP,FINANCIAL SERVICES
http://statistics.data.gov.uk/id/local-authority/43UM,WOKING BOROUGH COUNCIL,05/04/2016,0000394232/001,WEST HORSLEY DAIRY,00147600,24.92,H G WELLS - H G WELLS - CATERING,PROVISIONS-FOOD,G440,PROVISIONS-FOOD,H G WELLS,CATERING
http://statistics.data.gov.uk/id/local-authority/43UM,WOKING BOROUGH COUNCIL,05/04/2016,0000394232/002,WEST HORSLEY DAIRY,00147600,20.70,H G WELLS - H G WELLS - BAR,PROVISIONS-BAR,G450,PROVISIONS-BAR,H G WELLS,CATERING
http://statistics.data.gov.uk/id/local-authority/43UM,WOKING BOROUGH COUNCIL,05/04/2016,0000395203/001,WH STEPHENS,40416600,5000.00,ASSET MANAGEMENT - WOKING HIGHWAYS,OTHER CONSULTANTS,Q430,OTHER CONSULTANTS,ASSET MANAGEMENT,CONSULTANCY
http://statistics.data.gov.uk/id/local-authority/43UM,WOKING BOROUGH COUNCIL,05/04/2016,0000394811/001,WHISTL UK LIMITED,00367900,2600.01,CORPORATE STRATEGY - POSTAGE,POSTAGE - STANDARD TARIFF,G700,POSTAGE - STANDARD TARIFF,CORPORATE STRATEGY,MAIL SERVICES
http://statistics.data.gov.uk/id/local-authority/43UM,WOKING BOROUGH COUNCIL,05/04/2016,0000394812/001,WHISTL UK LIMITED,00367900,178.35,CORPORATE STRATEGY - POSTAGE,POSTAGE - STANDARD TARIFF,G700,POSTAGE - STANDARD TARIFF,CORPORATE STRATEGY,MAIL SERVICES
http://statistics.data.gov.uk/id/local-authority/43UM,WOKING BOROUGH COUNCIL,05/04/2016,0000394861/001,WHISTL UK LIMITED,00367900,182.35,CORPORATE STRATEGY - POSTAGE,POSTAGE - STANDARD TARIFF,G700,POSTAGE - STANDARD TARIFF,CORPORATE STRATEGY,MAIL SERVICES
http://statistics.data.gov.uk/id/local-authority/43UM,WOKING BOROUGH COUNCIL,05/04/2016,0000394862/001,WHISTL UK LIMITED,00367900,2413.10,CORPORATE STRATEGY - POSTAGE,POSTAGE - STANDARD TARIFF,G700,POSTAGE - STANDARD TARIFF,CORPORATE STRATEGY,MAIL SERVICES
http://statistics.data.gov.uk/id/local-authority/43UM,WOKING BOROUGH COUNCIL,05/04/2016,0000394863/001,WHISTL UK LIMITED,00367900,189.75,CORPORATE STRATEGY - POSTAGE,POSTAGE - STANDARD TARIFF,G700,POSTAGE - STANDARD TARIFF,CORPORATE STRATEGY,MAIL SERVICES
http://statistics.data.gov.uk/id/local-authority/43UM,WOKING BOROUGH COUNCIL,05/04/2016,0000394994/001,WHITE KNIGHT LAUNDRY SERVICES LTD,01266400,146.53,H G WELLS - H G WELLS - FUNCTION ROOMS,LAUNDRY,G520,LAUNDRY,H G WELLS,CLEANING & JANITORIAL
http://statistics.data.gov.uk/id/local-authority/43UM,WOKING BOROUGH COUNCIL,05/04/2016,0000394994/002,WHITE KNIGHT LAUNDRY SERVICES LTD,01266400,19.98,H G WELLS - H G WELLS - CATERING,LAUNDRY,G520,LAUNDRY,H G WELLS,CLEANING & JANITORIAL
http://statistics.data.gov.uk/id/local-authority/43UM,WOKING BOROUGH COUNCIL,05/04/2016,0000394418/001,WIGHTMAN & PARRISH LTD,40474600,53.34,INDEPENDENT LIVING SERVICES - PARKVIEW,CLEANING MATERIALS,D920,CLEANING MATERIALS,INDEPENDENT LIVING SERVICES,CLEANING & JANITORIAL
http://statistics.data.gov.uk/id/local-authority/43UM,WOKING BOROUGH COUNCIL,05/04/2016,0000394927/001,WIGHTMAN & PARRISH LTD,40474600,50.56,INDEPENDENT LIVING SERVICES - THE VYNE,CLEANING MATERIALS,D920,CLEANING MATERIALS,INDEPENDENT LIVING SERVICES,CLEANING & JANITORIAL
http://statistics.data.gov.uk/id/local-authority/43UM,WOKING BOROUGH COUNCIL,05/04/2016,0000395084/001,WOKING COLLEGE,00326900,5118.75,HOUSING SERVICES - SYRIAN REFUGEE FAMILES,GRANTS,Q710,GRANTS,HOUSING SERVICES,FACILITIES & MANAGEMENT SERVICES
http://statistics.data.gov.uk/id/local-authority/43UM,WOKING BOROUGH COUNCIL,05/04/2016,0000394025/001,WOKING NEWS & MAIL LIMITED,40249900,125.00,HOUSING SERVICES - HOUSING NEEDS SURVEY,MAIN CONTRACTOR,Q200,MAIN CONTRACTOR,HOUSING SERVICES,FACILITIES & MANAGEMENT SERVICES
http://statistics.data.gov.uk/id/local-authority/43UM,WOKING BOROUGH COUNCIL,05/04/2016,0000394244/001,WOKING NEWS & MAIL LIMITED,40249900,125.00,H G WELLS - H G WELLS - FUNCTION ROOMS,ADVERTISING,H400,ADVERTISING,H G WELLS,FACILITIES & MANAGEMENT SERVICES
http://statistics.data.gov.uk/id/local-authority/43UM,WOKING BOROUGH COUNCIL,05/04/2016,GPC/666334378,WWW.SURREY-CHAMBERS.CO.U,PROCUREMENT CARD,14.00,CORPORATE STRATEGY - TOWN CENTRE FORUM,ECDEV BUSINESS ENGAGEMENT,H411,NETWORKING TICKET,MR GLENN J THOROGOOD,MEMBERSHIP ORGANIZATIONS-NOT ELSEWHERE CLASSIFIED
http://statistics.data.gov.uk/id/local-authority/43UM,WOKING BOROUGH COUNCIL,05/04/2016,0000392499/001,XEROX (UK) LTD,00043400,0.34,INFORMATION TECHNOLOGY - I.T.S. REPROGRAPHICS,REPROGRAPHIC EQP-COPY CHARGES,G158,REPROGRAPHIC EQP-COPY CHARGES,INFORMATION TECHNOLOGY,INFORMATION COMMUNICATION TECHNOLOGY
http://statistics.data.gov.uk/id/local-authority/43UM,WOKING BOROUGH COUNCIL,05/04/2016,0000392500/001,XEROX (UK) LTD,00043400,0.34,INFORMATION TECHNOLOGY - I.T.S. REPROGRAPHICS,REPROGRAPHIC EQP-COPY CHARGES,G158,REPROGRAPHIC EQP-COPY CHARGES,INFORMATION TECHNOLOGY,INFORMATION COMMUNICATION TECHNOLOGY
http://statistics.data.gov.uk/id/local-authority/43UM,WOKING BOROUGH COUNCIL,05/04/2016,0000392501/001,XEROX (UK) LTD,00043400,0.34,INFORMATION TECHNOLOGY - I.T.S. REPROGRAPHICS,REPROGRAPHIC EQP-COPY CHARGES,G158,REPROGRAPHIC EQP-COPY CHARGES,INFORMATION TECHNOLOGY,INFORMATION COMMUNICATION TECHNOLOGY
http://statistics.data.gov.uk/id/local-authority/43UM,WOKING BOROUGH COUNCIL,05/04/2016,0000392502/001,XEROX (UK) LTD,00043400,-4.64,INFORMATION TECHNOLOGY - I.T.S. REPROGRAPHICS,REPROGRAPHIC EQP-COPY CHARGES,G158,REPROGRAPHIC EQP-COPY CHARGES,INFORMATION TECHNOLOGY,INFORMATION COMMUNICATION TECHNOLOGY
http://statistics.data.gov.uk/id/local-authority/43UM,WOKING BOROUGH COUNCIL,05/04/2016,0000392503/001,XEROX (UK) LTD,00043400,-3.37,INFORMATION TECHNOLOGY - I.T.S. REPROGRAPHICS,REPROGRAPHIC EQP-COPY CHARGES,G158,REPROGRAPHIC EQP-COPY CHARGES,INFORMATION TECHNOLOGY,INFORMATION COMMUNICATION TECHNOLOGY
http://statistics.data.gov.uk/id/local-authority/43UM,WOKING BOROUGH COUNCIL,05/04/2016,0000395174/001,XEROX (UK) LTD,00043400,54.75,INFORMATION TECHNOLOGY - I.T.S. REPROGRAPHICS,REPROGRAPHIC EQP-COPY CHARGES,G158,REPROGRAPHIC EQP-COPY CHARGES,INFORMATION TECHNOLOGY,INFORMATION COMMUNICATION TECHNOLOGY
http://statistics.data.gov.uk/id/local-authority/43UM,WOKING BOROUGH COUNCIL,05/04/2016,0000395176/001,XEROX (UK) LTD,00043400,54.68,INFORMATION TECHNOLOGY - I.T.S. REPROGRAPHICS,REPROGRAPHIC EQP-COPY CHARGES,G158,REPROGRAPHIC EQP-COPY CHARGES,INFORMATION TECHNOLOGY,INFORMATION COMMUNICATION TECHNOLOGY
http://statistics.data.gov.uk/id/local-authority/43UM,WOKING BOROUGH COUNCIL,05/04/2016,0000394001/001,YOUNOUS BANDHOO,40219300,9240.00,HOUSING SERVICES - PRIVATE SECTOR LEASING SCHEME,LEASE PAYMENTS TO LANDLORD,H787,LEASE PAYMENTS TO LANDLORD,HOUSING SERVICES,HOUSING MANAGEMENT
http://statistics.data.gov.uk/id/local-authority/43UM,WOKING BOROUGH COUNCIL,05/04/2016,0000394002/001,YOUNOUS BANDHOO,40430100,9240.00,HOUSING SERVICES - PRIVATE SECTOR LEASING SCHEME,LEASE PAYMENTS TO LANDLORD,H787,LEASE PAYMENTS TO LANDLORD,HOUSING SERVICES,HOUSING MANAGEMENT
http://statistics.data.gov.uk/id/local-authority/43UM,WOKING BOROUGH COUNCIL,06/04/2016,GPC/666331767,AMAZON UK MARKETPLACE,PROCUREMENT CARD,28.40,ASSET MANAGEMENT - CIVIC OFFICES ACCOMMO STRATEGY,MAIN CONTRACTOR,Q200,PLANTS,MR R D SMITH,MISCELLANEOUS AND SPECIALTY RETAIL STORES
http://statistics.data.gov.uk/id/local-authority/43UM,WOKING BOROUGH COUNCIL,06/04/2016,GPC/666330618,AMAZON UK RETAIL,PROCUREMENT CARD,22.10,INFORMATION TECHNOLOGY - ICT GENERAL REPLACEMENT 15/16,ADDITIONAL EQUIPMENT,Q020,2 X USB FLASH,STUART MILLAR,DIRECT MARKETERS - OTHER
http://statistics.data.gov.uk/id/local-authority/43UM,WOKING BOROUGH COUNCIL,06/04/2016,GPC/666330451,AMAZON UK RETAIL,PROCUREMENT CARD,81.65,INDEPENDENT LIVING SERVICES - FAMILY SUPPORT PROGRAMME,FAMILY ENABLING (FSP PROJECT),H137,HOOVER FOR FAMILY,JULIE COOK,DIRECT MARKETERS - OTHER
http://statistics.data.gov.uk/id/local-authority/43UM,WOKING BOROUGH COUNCIL,06/04/2016,GPC/666329872,DISRIGHTSUK,PROCUREMENT CARD,41.53,HOUSING SERVICES - HOME IMPS & BEN AGENCY,EXTERNAL PRINTING - PUBLICITY,G605,DISABILITY RIGHTS HANDBOOK,HELEN KEMPSELL,CHARITABLE AND SOCIAL SERVICE ORGANIZATIONS
http://statistics.data.gov.uk/id/local-authority/43UM,WOKING BOROUGH COUNCIL,06/04/2016,GPC/666650648,MARLER HALEY LTD,PROCUREMENT CARD,152.00,CORPORATE STRATEGY - PUBLIC RELATIONS,GENERAL PUBLIC RELATIONS EXPNS,H915,A5 LEAFLET HOLDERS,MISS KATY A EVANS,BUSINESS SERVICES-NOT ELSEWHERE CLASSIFIED
http://statistics.data.gov.uk/id/local-authority/43UM,WOKING BOROUGH COUNCIL,06/04/2016,GPC/666333604,POUNDWORLD RETAIL,PROCUREMENT CARD,6.25,INDEPENDENT LIVING SERVICES - FAMILY SUPPORT PROGRAMME,FAMILY ENABLING (FSP PROJECT),H137,STATIONERY - FAMILY,JULIE COONEY,DISCOUNT STORES
http://statistics.data.gov.uk/id/local-authority/43UM,WOKING BOROUGH COUNCIL,06/04/2016,GPC/666649385,TANTE MARIE LTD,PROCUREMENT CARD,37.50,CORPORATE STRATEGY - CORPORATE STRATEGY GENERAL EXP,OFFICIAL HOSPITALITY,H310,LUNCH - BROOKFIELD UTILITIES UK,RAY MORGAN,FAST-FOOD RESTAURANTS (QUICK PAYMENT SERVICE PILOT
http://statistics.data.gov.uk/id/local-authority/43UM,WOKING BOROUGH COUNCIL,06/04/2016,GPC/666333971,THE BIG APPLE,PROCUREMENT CARD,19.43,INDEPENDENT LIVING SERVICES - FAMILY SUPPORT PROGRAMME,FAMILY ENABLING (FSP PROJECT),H137,REFRESHMENTS - FAMILY,PALLAVI SHARAN,BOWLING ALLEYS
http://statistics.data.gov.uk/id/local-authority/43UM,WOKING BOROUGH COUNCIL,06/04/2016,GPC/666649383,TICKETOFFICESALE,PROCUREMENT CARD,18.40,INDEPENDENT LIVING SERVICES - CARELINE,TRAVEL EXPENSES-OFFICERS,F600,ONE DAY TRAVEL CARD,PAULINE LOCK,PASSENGER RAILWAYS
http://statistics.data.gov.uk/id/local-authority/43UM,WOKING BOROUGH COUNCIL,06/04/2016,GPC/666331508,TRAINLINE,PROCUREMENT CARD,42.02,NEIGHBOURHOOD SERVICES - REGULATION AND ENFORCEMENT,TRAVEL EXPENSES-OFFICERS,F600,ALEX JONES TRAIN�TRAVEL TO LONDON,MRS K WATERS,PASSENGER RAILWAYS
http://statistics.data.gov.uk/id/local-authority/43UM,WOKING BOROUGH COUNCIL,06/04/2016,GPC/666650201,WOKING BOROUGH COUNCIL,PROCUREMENT CARD,3.25,INDEPENDENT LIVING SERVICES - INDEPENDENT LIV SERV GEN EXPEN,TRAVEL EXPENSES-OFFICERS,F600,CAR PARK,PHILLY CAWSEY,AUTOMOBILE PARKING LOTS AND GARAGES
http://statistics.data.gov.uk/id/local-authority/43UM,WOKING BOROUGH COUNCIL,07/04/2016,GPC/666649940,C&E ELECTRICAL WHO,PROCUREMENT CARD,16.42,ASSET MANAGEMENT - FACILITIES MANAGEMENT,FACILITIES MANAGEMENT REPAIRS,D908,ELECTRICIAL SUPPLIES FOR APRIL,MR D JONES,ELECTRICAL AND SMALL APPLIANCE REPAIR SHOPS
http://statistics.data.gov.uk/id/local-authority/43UM,WOKING BOROUGH COUNCIL,07/04/2016,GPC/666995287,PAYPAL  TSRGD CO UK,PROCUREMENT CARD,61.51,NEIGHBOURHOOD SERVICES - TOWN CTR MANAGEMENT,GROUNDS MAINT-CONTRACTORS,D200,ONLINE SUBSCRIPTION TO HIGHWAY SIGNS,FAOUZI SAFFAR,CAMERA AND PHOTOGRAPHIC SUPPLY STORES
http://statistics.data.gov.uk/id/local-authority/43UM,WOKING BOROUGH COUNCIL,07/04/2016,GPC/666650171,SEAREACH,PROCUREMENT CARD,390.00,INFORMATION TECHNOLOGY - ICT GENERAL REPLACEMENT 15/16,ADDITIONAL EQUIPMENT,Q020,ASSET SECURITY LABELS,STUART MILLAR,QUICK COPY AND REPRODUCTION SERVICES
http://statistics.data.gov.uk/id/local-authority/43UM,WOKING BOROUGH COUNCIL,07/04/2016,GPC/666649575,SELFSERVE TICKET,PROCUREMENT CARD,6.80,PLANNING SERVICES - PLANNING SERVICES GENERAL EXPE,TRAVEL EXPENSES-OFFICERS,F600,RAIL TICKET,DM EDWARDS,PASSENGER RAILWAYS
http://statistics.data.gov.uk/id/local-authority/43UM,WOKING BOROUGH COUNCIL,07/04/2016,GPC/666649484,SHBC PARKING,PROCUREMENT CARD,1.25,NEIGHBOURHOOD SERVICES - REGULATION AND ENFORCEMENT,TRAVEL EXPENSES-OFFICERS,F600,PARKING AT SURREY HEATH,G D MCMANUS,AUTOMOBILE PARKING LOTS AND GARAGES
http://statistics.data.gov.uk/id/local-authority/43UM,WOKING BOROUGH COUNCIL,07/04/2016,GPC/666993214,TICKETOFFICESALE,PROCUREMENT CARD,26.70,FINANCIAL SERVICES - FINANCIAL SERVICES,TRAVEL EXPENSES-OFFICERS,F600,FAN COLLECTION FUND SEMINAR-NH-TRAIN,NEIL HASKELL,PASSENGER RAILWAYS
http://statistics.data.gov.uk/id/local-authority/43UM,WOKING BOROUGH COUNCIL,07/04/2016,GPC/666993332,WOKING BOROUGH COUNCIL,PROCUREMENT CARD,4.33,INDEPENDENT LIVING SERVICES - INDEPENDENT LIV SERV GEN EXPEN,TRAVEL EXPENSES-OFFICERS,F600,CAR PARK,PHILLY CAWSEY,AUTOMOBILE PARKING LOTS AND GARAGES
http://statistics.data.gov.uk/id/local-authority/43UM,WOKING BOROUGH COUNCIL,07/04/2016,GPC/666649441,WWW.THEBARCODEWAREHOUS,PROCUREMENT CARD,30.57,NEIGHBOURHOOD SERVICES - TAXI LICENCES,BADGES & PLATES,G142,PRINT RIBBONS FOR LICENSING,BARRY LYNCH,HOUSEHOLD APPLIANCE STORES
http://statistics.data.gov.uk/id/local-authority/43UM,WOKING BOROUGH COUNCIL,07/04/2016,GPC/666649441,WWW.THEBARCODEWAREHOUS,PROCUREMENT CARD,30.57,NEIGHBOURHOOD SERVICES - PRIVATE CAR HIRE LICENCE,BADGES & PLATES,G142,PRINT RIBBONS FOR LICENSING,BARRY LYNCH,HOUSEHOLD APPLIANCE STORES
http://statistics.data.gov.uk/id/local-authority/43UM,WOKING BOROUGH COUNCIL,08/04/2016,GPC/666992016,AMAZON UK MARKETPLACE,PROCUREMENT CARD,32.28,INFORMATION TECHNOLOGY - ICT GENERAL REPLACEMENT 15/16,REPLACEMENT EQUIPMENT,Q010,2 X BB 9320,STUART MILLAR,MISCELLANEOUS AND SPECIALTY RETAIL STORES
http://statistics.data.gov.uk/id/local-authority/43UM,WOKING BOROUGH COUNCIL,08/04/2016,GPC/666992211,BITTOMS KINGSTON,PROCUREMENT CARD,3.75,CORPORATE STRATEGY - LEGAL,TRAVEL EXPENSES-OFFICERS,F600,CAR PARK - MEETING,PETER BRYANT,GOVERNMENT SERVICES-NOT ELSEWHERE CLASSIFIED
http://statistics.data.gov.uk/id/local-authority/43UM,WOKING BOROUGH COUNCIL,08/04/2016,GPC/666993908,BOOTSWOKING,PROCUREMENT CARD,4.48,HOUSING SERVICES - SYRIAN REFUGEE FAMILES,MISCELLANEOUS EXPENSES,Q660,MEDICAL PARACETOMOL SYRIAN CHILDREN,JANET COURTNEY,DRUG STORES PHARMACIES
http://statistics.data.gov.uk/id/local-authority/43UM,WOKING BOROUGH COUNCIL,08/04/2016,GPC/666993909,BOOTSWOKING,PROCUREMENT CARD,10.57,HOUSING SERVICES - SYRIAN REFUGEE FAMILES,MISCELLANEOUS EXPENSES,Q660,MEDICINES,KAREN CAMPION,DRUG STORES PHARMACIES
http://statistics.data.gov.uk/id/local-authority/43UM,WOKING BOROUGH COUNCIL,08/04/2016,GPC/666992323,CO OP TRAVEL,PROCUREMENT CARD,104.04,CORPORATE MANAGEMENT GROUP - STAFF TRAINING/GENERAL COSTS,TRAINING - CORPORATE,A910,ADMINISTRATION ANNUAL CONFERENCE 15,J A MEME,TRAVEL AGENCIES
http://statistics.data.gov.uk/id/local-authority/43UM,WOKING BOROUGH COUNCIL,08/04/2016,GPC/666994565,FRESCH COFFEE,PROCUREMENT CARD,52.90,H G WELLS - H G WELLS - CATERING,PROVISIONS-FOOD,G440,HG WELLS KITCHEN FOOD SANDWICH ORDER,MR S P SINCLAIR,FAST-FOOD RESTAURANTS (QUICK PAYMENT SERVICE PILOT
http://statistics.data.gov.uk/id/local-authority/43UM,WOKING BOROUGH COUNCIL,08/04/2016,GPC/666992631,HOOTSUITE MEDIA INC.,PROCUREMENT CARD,238.43,CORPORATE STRATEGY - PUBLIC RELATIONS,GENERAL PUBLIC RELATIONS EXPNS,H915,ANNUAL SUBSCRIPTION,MISS K MAIR,BUSINESS SERVICES-NOT ELSEWHERE CLASSIFIED
http://statistics.data.gov.uk/id/local-authority/43UM,WOKING BOROUGH COUNCIL,08/04/2016,GPC/666992632,HORACE SMITH LOCKSMITH,PROCUREMENT CARD,100.17,ASSET MANAGEMENT - FACILITIES MANAGEMENT,FACILITIES MANAGEMENT REPAIRS,D908,COMBI LOCK FOR STOREROOM,MR D JONES,HARDWARE STORES
http://statistics.data.gov.uk/id/local-authority/43UM,WOKING BOROUGH COUNCIL,08/04/2016,GPC/666995155,NEW LOOK 1792,PROCUREMENT CARD,33.98,INDEPENDENT LIVING SERVICES - FAMILY SUPPORT PROGRAMME,FAMILY ENABLING (FSP PROJECT),H137,CLOTHES FOR FAMILY,TANYA CULVER,WOMEN'S READY TO WEAR SHOES
http://statistics.data.gov.uk/id/local-authority/43UM,WOKING BOROUGH COUNCIL,08/04/2016,GPC/666995393,PRIMARK,PROCUREMENT CARD,17.90,INDEPENDENT LIVING SERVICES - FAMILY SUPPORT PROGRAMME,FAMILY ENABLING (FSP PROJECT),H137,CLOTHES FOR FAMILY,TANYA CULVER,FAMILY CLOTHING STORES
http://statistics.data.gov.uk/id/local-authority/43UM,WOKING BOROUGH COUNCIL,08/04/2016,GPC/666993019,SCREWFIX,PROCUREMENT CARD,97.86,ASSET MANAGEMENT - FACILITIES MANAGEMENT,FACILITIES MANAGEMENT REPAIRS,D908,TOOLS FOR NEW TECHNICIAN,MR D JONES,BUILDING MATERIALS LUMBER STORES
http://statistics.data.gov.uk/id/local-authority/43UM,WOKING BOROUGH COUNCIL,08/04/2016,GPC/666995555,SELFSERVE TICKET,PROCUREMENT CARD,4.80,CORPORATE STRATEGY - LEGAL,TRAVEL EXPENSES-OFFICERS,F600,TRAIN FARE TO GUILDFORD COUNTY COURT,MISS A J FRANCIS,PASSENGER RAILWAYS
http://statistics.data.gov.uk/id/local-authority/43UM,WOKING BOROUGH COUNCIL,08/04/2016,GPC/666995597,SHOE ZONE LTD,PROCUREMENT CARD,26.03,INDEPENDENT LIVING SERVICES - FAMILY SUPPORT PROGRAMME,FAMILY ENABLING (FSP PROJECT),H137,SCHOOL SHOES FOR FAMILY,TANYA CULVER,SHOE STORES
http://statistics.data.gov.uk/id/local-authority/43UM,WOKING BOROUGH COUNCIL,08/04/2016,GPC/666995651,SUPERDRUG STORES PLC,PROCUREMENT CARD,10.90,HOUSING SERVICES - SYRIAN REFUGEE FAMILES,MISCELLANEOUS EXPENSES,Q660,MEDICINES,KAREN CAMPION,DRUG STORES PHARMACIES
http://statistics.data.gov.uk/id/local-authority/43UM,WOKING BOROUGH COUNCIL,08/04/2016,GPC/666993091,TANTE MARIE LTD,PROCUREMENT CARD,108.33,CORPORATE STRATEGY - TOWN CENTRE FORUM,ECDEV BUSINESS ENGAGEMENT,H411,BUSINESS LUNCH,SAM MARSHALL,FAST-FOOD RESTAURANTS (QUICK PAYMENT SERVICE PILOT
http://statistics.data.gov.uk/id/local-authority/43UM,WOKING BOROUGH COUNCIL,08/04/2016,0000395383/001,WOKING HOSPICE,40531200,425000.00,FINANCIAL SERVICES - WOKING HOSPICE,LONG TERM LOAN,S864,LONG TERM LOAN,FINANCIAL SERVICES,FINANCIAL SERVICES
http://statistics.data.gov.uk/id/local-authority/43UM,WOKING BOROUGH COUNCIL,10/04/2016,GPC/666992994,SAINSBURYS PETROL,PROCUREMENT CARD,59.74,ASSET MANAGEMENT - FACILITIES MANAGEMENT,FACILITIES MANAGEMENT REPAIRS,D908,FUEL FOR VAN,MR D JONES,SERVICE STATIONS (WITH OR WITHOUT ANCILLARY SERVIC
http://statistics.data.gov.uk/id/local-authority/43UM,WOKING BOROUGH COUNCIL,11/04/2016,GPC/667488737,CHILD POVERTY,PROCUREMENT CARD,126.49,CORPORATE STRATEGY - LEGAL,BOOKS MAPS PLANS,G650,BOOK,MISS A J FRANCIS,CHARITABLE AND SOCIAL SERVICE ORGANIZATIONS
http://statistics.data.gov.uk/id/local-authority/43UM,WOKING BOROUGH COUNCIL,11/04/2016,GPC/666992510,FOREIGN EXCHANGE FEE,PROCUREMENT CARD,7.87,CORPORATE STRATEGY - PUBLIC RELATIONS,GENERAL PUBLIC RELATIONS EXPNS,H915,EXCHANGE FEE,MISS K MAIR,MISC-UNKNOWN
http://statistics.data.gov.uk/id/local-authority/43UM,WOKING BOROUGH COUNCIL,11/04/2016,GPC/667487204,PREMIER INN44521605,PROCUREMENT CARD,92.25,CORPORATE MANAGEMENT GROUP - STAFF TRAINING/GENERAL COSTS,SUBSISTENCE-OFFICERS,H200,HR COURSE STAY FOR AJ,MISS SARAH DOLBEAR,PREMIER TRAVEL
http://statistics.data.gov.uk/id/local-authority/43UM,WOKING BOROUGH COUNCIL,11/04/2016,GPC/667488157,PRET A MANGER,PROCUREMENT CARD,3.52,CORPORATE STRATEGY - TOWN CENTRE FORUM,ECDEV BUSINESS ENGAGEMENT,H411,BUSINESS MEET,SAM MARSHALL,EATING PLACES RESTAURANTS
http://statistics.data.gov.uk/id/local-authority/43UM,WOKING BOROUGH COUNCIL,11/04/2016,GPC/667767055,TICKETOFFICESALE,PROCUREMENT CARD,36.10,CORPORATE MANAGEMENT GROUP - STAFF TRAINING/GENERAL COSTS,EQUIPMENT,G100,HR COURSE TRAVEL FOR AJ,MISS SARAH DOLBEAR,PASSENGER RAILWAYS
http://statistics.data.gov.uk/id/local-authority/43UM,WOKING BOROUGH COUNCIL,11/04/2016,GPC/667766870,TICKETOFFICESALE,PROCUREMENT CARD,29.00,CORPORATE MANAGEMENT GROUP - CORPORATE MANAGEMENT GROUP,TRAVEL EXPENSES,A901,TRAIN TICKET - HR MANAGERS COURSE,RAY MORGAN,PASSENGER RAILWAYS
http://statistics.data.gov.uk/id/local-authority/43UM,WOKING BOROUGH COUNCIL,11/04/2016,GPC/667767036,TICKETOFFICESALE,PROCUREMENT CARD,34.40,CORPORATE MANAGEMENT GROUP - STAFF TRAINING/GENERAL COSTS,TRAVEL EXPENSES-OFFICERS,F600,TRAIN VARIOUS,MR TIMOTHY S LOWE,PASSENGER RAILWAYS
http://statistics.data.gov.uk/id/local-authority/43UM,WOKING BOROUGH COUNCIL,12/04/2016,GPC/667767790,AMAZON UK MARKETPLACE,PROCUREMENT CARD,94.03,INFORMATION TECHNOLOGY - ICT GENERAL REPLACEMENT 15/16,ADDITIONAL EQUIPMENT,Q020,15 DP TO VGA ADAPTERS,STUART MILLAR,MISCELLANEOUS AND SPECIALTY RETAIL STORES
http://statistics.data.gov.uk/id/local-authority/43UM,WOKING BOROUGH COUNCIL,12/04/2016,GPC/667767789,AMAZON UK RETAIL,PROCUREMENT CARD,27.66,INFORMATION TECHNOLOGY - ICT GENERAL REPLACEMENT 15/16,REPLACEMENT EQUIPMENT,Q010,DYMO LABELLING TAPE,STUART MILLAR,DIRECT MARKETERS - OTHER
http://statistics.data.gov.uk/id/local-authority/43UM,WOKING BOROUGH COUNCIL,12/04/2016,0000395304/001,ARCOM IT LTD,40352600,105000.00,CORPORATE STRATEGY - INCUBATOR UNITS -EXPORT HOUSE,MANAGEMENT FEE,H632,MANAGEMENT FEE,CORPORATE STRATEGY,UTILITIES
http://statistics.data.gov.uk/id/local-authority/43UM,WOKING BOROUGH COUNCIL,12/04/2016,GPC/667768128,CARLUCCIOS,PROCUREMENT CARD,22.25,CORPORATE STRATEGY - TOWN CENTRE FORUM,ECDEV BUSINESS ENGAGEMENT,H411,BUSINESS MEET,SAM MARSHALL,EATING PLACES RESTAURANTS
http://statistics.data.gov.uk/id/local-authority/43UM,WOKING BOROUGH COUNCIL,12/04/2016,GPC/667767533,DON RUFFLES LTD,PROCUREMENT CARD,899.00,CORPORATE STRATEGY - LEGAL,STATIONERY,G620,BINDER FOR LEGAL,MR D JONES,STATIONERY OFFICE AND SCHOOL SUPPLY STORES
http://statistics.data.gov.uk/id/local-authority/43UM,WOKING BOROUGH COUNCIL,12/04/2016,GPC/667770497,MORRISONS PETROL,PROCUREMENT CARD,34.83,HOUSING SERVICES - HOME IMPS & BEN AGENCY,TRAVEL EXPENSES-OFFICERS,F600,FUEL,IAN DEANE,FUEL DISPENSER AUTOMATED
http://statistics.data.gov.uk/id/local-authority/43UM,WOKING BOROUGH COUNCIL,12/04/2016,GPC/667770843,SAINSBURY'S S/MKT,PROCUREMENT CARD,45.55,CORPORATE STRATEGY - CORPORATE STRATEGY GENERAL EXP,OFFICIAL HOSPITALITY,H310,POSTAL VOTE REFRESHMENTS,BECKY CAPON,GROCERY STORES SUPERMARKETS
http://statistics.data.gov.uk/id/local-authority/43UM,WOKING BOROUGH COUNCIL,12/04/2016,GPC/667769072,SAINSBURYS S/MKTS,PROCUREMENT CARD,12.05,INDEPENDENT LIVING SERVICES - FAMILY SUPPORT PROGRAMME,FSP MEETING COSTS,G219,REFRESHMENTS FOR MEETING,ADAM THOMAS,GROCERY STORES SUPERMARKETS
http://statistics.data.gov.uk/id/local-authority/43UM,WOKING BOROUGH COUNCIL,12/04/2016,GPC/668097384,TICKETOFFICESALE,PROCUREMENT CARD,57.20,PLANNING SERVICES - PLANNING SERVICES GENERAL EXPE,TRAVEL EXPENSES-OFFICERS,F600,TRAIN TICKET EA,MRS CHRISTINE DUPLOCK,PASSENGER RAILWAYS
http://statistics.data.gov.uk/id/local-authority/43UM,WOKING BOROUGH COUNCIL,12/04/2016,GPC/667771379,WICKES,PROCUREMENT CARD,72.11,HOUSING SERVICES - HOME IMPS & BEN AGENCY,HANDYPERSON MATERIALS,G201,HANDY PERSON MATERIALS,IAN DEANE,HOME SUPPLY WAREHOUSE
http://statistics.data.gov.uk/id/local-authority/43UM,WOKING BOROUGH COUNCIL,12/04/2016,GPC/668093129,WOKING BOROUGH COUNCIL,PROCUREMENT CARD,3.25,INDEPENDENT LIVING SERVICES - INDEPENDENT LIV SERV GEN EXPEN,TRAVEL EXPENSES-OFFICERS,F600,CAR PARKING,MRS SUSAN TURNER,AUTOMOBILE PARKING LOTS AND GARAGES
http://statistics.data.gov.uk/id/local-authority/43UM,WOKING BOROUGH COUNCIL,12/04/2016,GPC/667771396,WOKING GARDEN CENT,PROCUREMENT CARD,16.58,H G WELLS - H G WELLS - FUNCTION ROOMS,ADVERTISING,H400,PLANTS,MRS M CHILCOTT,LAWN AND GARDEN SUPPLY STORES NURSERIES
http://statistics.data.gov.uk/id/local-authority/43UM,WOKING BOROUGH COUNCIL,13/04/2016,0000395001/001,A & C WEBER UK,40417800,2340.00,NEIGHBOURHOOD SERVICES - WHEELED BIN COLLECTION,PURCHASE OF WHEELED BINS,G218,PURCHASE OF WHEELED BINS,NEIGHBOURHOOD SERVICES,ENVIRONMENTAL SERVICES
http://statistics.data.gov.uk/id/local-authority/43UM,WOKING BOROUGH COUNCIL,13/04/2016,0000395671/001,A M NELLESS LTD,40404900,1175.64,ASSET MANAGEMENT - PROPERTY SERVICES,R&M BUILDINGS - CONTRACTORS,D100,R&M BUILDINGS - CONTRACTORS,ASSET MANAGEMENT,WORKS (CONSTRUCTION REPAIR MAINTENANCE)
http://statistics.data.gov.uk/id/local-authority/43UM,WOKING BOROUGH COUNCIL,13/04/2016,GPC/668094137,ACTION BIKES-WOKING,PROCUREMENT CARD,54.16,NEIGHBOURHOOD SERVICES - CENTRAL NEIGHBOURHOOD TEAM,PETROL,F200,BIKE SERVICE,TOM ONIONS,BICYCLE SHOPS-SALES AND SERVICE
http://statistics.data.gov.uk/id/local-authority/43UM,WOKING BOROUGH COUNCIL,13/04/2016,0000395580/001,ADARE SEC LTD T/A KALAMAZOO DIREC,00348600,212.95,ASSET MANAGEMENT - CIVIC OFFICES,SECURITY EQUIPMENT - SERVICING,G161,SECURITY EQUIPMENT - SERVICING,ASSET MANAGEMENT,STATIONERY
http://statistics.data.gov.uk/id/local-authority/43UM,WOKING BOROUGH COUNCIL,13/04/2016,0000395581/001,ADARE SEC LTD T/A KALAMAZOO DIREC,00348600,32.66,ASSET MANAGEMENT - CIVIC OFFICES,STATIONERY,G620,STATIONERY,ASSET MANAGEMENT,STATIONERY
http://statistics.data.gov.uk/id/local-authority/43UM,WOKING BOROUGH COUNCIL,13/04/2016,0000394813/001,AFFINITY WATER,01095900,886.17,HOUSING SERVICES - LANDLORDS EXPENSES,WATER,D700,WATER,HOUSING SERVICES,UTILITIES
http://statistics.data.gov.uk/id/local-authority/43UM,WOKING BOROUGH COUNCIL,13/04/2016,0000394813/002,AFFINITY WATER,01095900,89.62,INDEPENDENT LIVING SERVICES - MEALS SERVICE - BROCKHILL,WATER,D700,WATER,INDEPENDENT LIVING SERVICES,UTILITIES
http://statistics.data.gov.uk/id/local-authority/43UM,WOKING BOROUGH COUNCIL,13/04/2016,0040000678/001,AGE CONCERN WOKING,01930200,1250.00,CORPORATE STRATEGY - GRANTS TO ORGANISATION,GRANTS,H100,GRANTS,CORPORATE STRATEGY,FINANCIAL SERVICES
http://statistics.data.gov.uk/id/local-authority/43UM,WOKING BOROUGH COUNCIL,13/04/2016,0000395735/001,ALISON FLINT,01937700,95.00,FINANCIAL SERVICES - INSURANCE FUND,RENT BOND SCHEME,T767,RENT BOND SCHEME,FINANCIAL SERVICES,HOUSING MANAGEMENT
http://statistics.data.gov.uk/id/local-authority/43UM,WOKING BOROUGH COUNCIL,13/04/2016,0000394838/001,ALLISON PINDER,40016600,585.00,HOUSING SERVICES - HOME IMPS & BEN AGENCY,OCCUPATIONAL THERAPIST REPORTS,H783,OCCUPATIONAL THERAPIST REPORTS,HOUSING SERVICES,HUMAN RESOURCES
http://statistics.data.gov.uk/id/local-authority/43UM,WOKING BOROUGH COUNCIL,13/04/2016,GPC/668093826,AMAZON UK MARKETPLACE,PROCUREMENT CARD,68.38,INFORMATION TECHNOLOGY - ICT GENERAL REPLACEMENT 15/16,ADDITIONAL EQUIPMENT,Q020,14 DP TO VGA ADAPTERS,STUART MILLAR,BOOK STORES
http://statistics.data.gov.uk/id/local-authority/43UM,WOKING BOROUGH COUNCIL,13/04/2016,0000393438/001,APETITO LTD,00186100,-22.06,INDEPENDENT LIVING SERVICES - MEALS ON WHEELS,PROVISIONS,G410,PROVISIONS,INDEPENDENT LIVING SERVICES,CATERING
http://statistics.data.gov.uk/id/local-authority/43UM,WOKING BOROUGH COUNCIL,13/04/2016,0000395396/001,APETITO LTD,00186100,6863.89,INDEPENDENT LIVING SERVICES - MEALS ON WHEELS,PROVISIONS,G410,PROVISIONS,INDEPENDENT LIVING SERVICES,CATERING
http://statistics.data.gov.uk/id/local-authority/43UM,WOKING BOROUGH COUNCIL,13/04/2016,0000395397/001,APETITO LTD,00186100,322.06,INDEPENDENT LIVING SERVICES - MEALS ON WHEELS,PROVISIONS,G410,PROVISIONS,INDEPENDENT LIVING SERVICES,CATERING
http://statistics.data.gov.uk/id/local-authority/43UM,WOKING BOROUGH COUNCIL,13/04/2016,0000395398/001,APETITO LTD,00186100,369.55,INDEPENDENT LIVING SERVICES - MEALS ON WHEELS,PROVISIONS,G410,PROVISIONS,INDEPENDENT LIVING SERVICES,CATERING
http://statistics.data.gov.uk/id/local-authority/43UM,WOKING BOROUGH COUNCIL,13/04/2016,0000395399/001,APETITO LTD,00186100,430.44,INDEPENDENT LIVING SERVICES - MEALS ON WHEELS,PROVISIONS,G410,PROVISIONS,INDEPENDENT LIVING SERVICES,CATERING
http://statistics.data.gov.uk/id/local-authority/43UM,WOKING BOROUGH COUNCIL,13/04/2016,0000395400/001,APETITO LTD,00186100,281.17,INDEPENDENT LIVING SERVICES - MEALS ON WHEELS,PROVISIONS,G410,PROVISIONS,INDEPENDENT LIVING SERVICES,CATERING
http://statistics.data.gov.uk/id/local-authority/43UM,WOKING BOROUGH COUNCIL,13/04/2016,0000395302/001,ARCOM IT LTD,40352600,10720.02,INFORMATION TECHNOLOGY - COMMUNICATIONS,PUBLIC REALM WIFI,G844,PUBLIC REALM WIFI,INFORMATION TECHNOLOGY,UTILITIES
http://statistics.data.gov.uk/id/local-authority/43UM,WOKING BOROUGH COUNCIL,13/04/2016,0000395544/001,ARCOM IT LTD,40352600,-250.00,H G WELLS - H G WELLS - FUNCTION ROOMS,EQUIPMENT,G100,EQUIPMENT,H G WELLS,UTILITIES
http://statistics.data.gov.uk/id/local-authority/43UM,WOKING BOROUGH COUNCIL,13/04/2016,0000395546/001,ARCOM IT LTD,40352600,-1000.00,H G WELLS - H G WELLS - FUNCTION ROOMS,EQUIPMENT,G100,EQUIPMENT,H G WELLS,UTILITIES
http://statistics.data.gov.uk/id/local-authority/43UM,WOKING BOROUGH COUNCIL,13/04/2016,0000395106/001,ARMY BENEVOLENT FUND-SURREY BR,40558600,366.93,CORPORATE STRATEGY - CIVIC SERVICE,PRINTING EXTERNAL,G600,PRINTING EXTERNAL,CORPORATE STRATEGY,FINANCIAL SERVICES
http://statistics.data.gov.uk/id/local-authority/43UM,WOKING BOROUGH COUNCIL,13/04/2016,0000394815/001,ARTON MONOSEAL LIMITED,01770200,580.00,HOUSING SERVICES - DISABLED FACILITIES GRANTS,MANDATORY GRANTS,Q712,MANDATORY GRANTS,HOUSING SERVICES,WORKS (CONSTRUCTION REPAIR MAINTENANCE)
http://statistics.data.gov.uk/id/local-authority/43UM,WOKING BOROUGH COUNCIL,13/04/2016,0000394818/001,ARTON MONOSEAL LIMITED,01770200,580.00,ASSET MANAGEMENT - BROOKWOOD CEMETERY TEMP COSTS,MAIN CONTRACTOR,Q200,MAIN CONTRACTOR,ASSET MANAGEMENT,WORKS (CONSTRUCTION REPAIR MAINTENANCE)
http://statistics.data.gov.uk/id/local-authority/43UM,WOKING BOROUGH COUNCIL,13/04/2016,0000395198/001,ARTS DEVELOPMENT UK,00880900,180.00,NEIGHBOURHOOD SERVICES - ARTS DEVELOPMENT,SUBSCRIPTIONS,H110,SUBSCRIPTIONS,NEIGHBOURHOOD SERVICES,FACILITIES & MANAGEMENT SERVICES
http://statistics.data.gov.uk/id/local-authority/43UM,WOKING BOROUGH COUNCIL,13/04/2016,GPC/668094754,ASDA  STORES 4775,PROCUREMENT CARD,24.70,HOUSING SERVICES - SYRIAN REFUGEE FAMILES,MISCELLANEOUS EXPENSES,Q660,FOOD SHOP FOR FAMILY,ADAM THOMAS,GROCERY STORES SUPERMARKETS
http://statistics.data.gov.uk/id/local-authority/43UM,WOKING BOROUGH COUNCIL,13/04/2016,GPC/668095458,ASDA  STORES 4775,PROCUREMENT CARD,20.00,HOUSING SERVICES - SYRIAN REFUGEE FAMILES,MISCELLANEOUS EXPENSES,Q660,HOUSEHOLD ITEM,KAREN CAMPION,GROCERY STORES SUPERMARKETS
http://statistics.data.gov.uk/id/local-authority/43UM,WOKING BOROUGH COUNCIL,13/04/2016,0000395071/001,BADENOCH & CLARK LIMITED,00144400,1035.00,REVENUES AND BENEFITS - COUNCIL TAX,TEMPORARY STAFF,A110,TEMPORARY STAFF,REVENUES AND BENEFITS,HUMAN RESOURCES
http://statistics.data.gov.uk/id/local-authority/43UM,WOKING BOROUGH COUNCIL,13/04/2016,0000395072/001,BADENOCH & CLARK LIMITED,00144400,1035.00,REVENUES AND BENEFITS - COUNCIL TAX,TEMPORARY STAFF,A110,TEMPORARY STAFF,REVENUES AND BENEFITS,HUMAN RESOURCES
http://statistics.data.gov.uk/id/local-authority/43UM,WOKING BOROUGH COUNCIL,13/04/2016,0000395634/001,BADENOCH & CLARK LIMITED,00144400,1035.00,REVENUES AND BENEFITS - COUNCIL TAX,TEMPORARY STAFF,A110,TEMPORARY STAFF,REVENUES AND BENEFITS,HUMAN RESOURCES
http://statistics.data.gov.uk/id/local-authority/43UM,WOKING BOROUGH COUNCIL,13/04/2016,0000395060/001,BALLICOM LTD,40526700,2643.48,H G WELLS - H G WELLS - FUNCTION ROOMS,EQUIPMENT,G100,EQUIPMENT,H G WELLS,FACILITIES & MANAGEMENT SERVICES
http://statistics.data.gov.uk/id/local-authority/43UM,WOKING BOROUGH COUNCIL,13/04/2016,0000395387/001,BARLOW ROBBINS LLP,00029500,1792.50,INDEPENDENT LIVING SERVICES - OLDER PERSONS COMM DEVELOPMENT,LEGAL FEES,H677,LEGAL FEES,INDEPENDENT LIVING SERVICES,LEGAL SERVICES
http://statistics.data.gov.uk/id/local-authority/43UM,WOKING BOROUGH COUNCIL,13/04/2016,0000395209/001,REDACTED PERSONAL DATA,40547500,4000.00,ASSET MANAGEMENT - MARKET REPLACEMENT,MAIN CONTRACTOR,Q200,MAIN CONTRACTOR,ASSET MANAGEMENT,FINANCIAL SERVICES
http://statistics.data.gov.uk/id/local-authority/43UM,WOKING BOROUGH COUNCIL,13/04/2016,0000395438/001,BBF FIELDING LIMITED,00114900,2137.67,ASSET MANAGEMENT - GOLDWATER LODGE,MAIN CONTRACTOR,Q200,MAIN CONTRACTOR,ASSET MANAGEMENT,WORKS (CONSTRUCTION REPAIR MAINTENANCE)
http://statistics.data.gov.uk/id/local-authority/43UM,WOKING BOROUGH COUNCIL,13/04/2016,GPC/668095535,BITTOMS KINGSTON,PROCUREMENT CARD,8.33,CORPORATE STRATEGY - LEGAL,TRAVEL EXPENSES-OFFICERS,F600,PARKING FOR COLLEGE,HOLLY DAVIS,GOVERNMENT SERVICES-NOT ELSEWHERE CLASSIFIED
http://statistics.data.gov.uk/id/local-authority/43UM,WOKING BOROUGH COUNCIL,13/04/2016,0000395165/001,BOC LTD,00262700,175.85,H G WELLS - H G WELLS - BAR,LEASING COSTS-EQUIPMENT,G110,LEASING COSTS-EQUIPMENT,H G WELLS,UTILITIES
http://statistics.data.gov.uk/id/local-authority/43UM,WOKING BOROUGH COUNCIL,13/04/2016,0000395499/001,BRACKNELL FOREST COUNCIL,40281700,3394.56,INDEPENDENT LIVING SERVICES - COMMUNITY ALARMS-GF,PAYMENT TO OTHER LOCAL AUTHORI,H664,PAYMENT TO OTHER LOCAL AUTHORI,INDEPENDENT LIVING SERVICES,SOCIAL COMMUNITY CARE SUP & SERV (ADULT)
http://statistics.data.gov.uk/id/local-authority/43UM,WOKING BOROUGH COUNCIL,13/04/2016,0000395499/002,BRACKNELL FOREST COUNCIL,40281700,2758.08,INDEPENDENT LIVING SERVICES - COMMUNITY ALARMS-HRA,PAYMENT TO OTHER LOCAL AUTHORI,H664,PAYMENT TO OTHER LOCAL AUTHORI,INDEPENDENT LIVING SERVICES,SOCIAL COMMUNITY CARE SUP & SERV (ADULT)
http://statistics.data.gov.uk/id/local-authority/43UM,WOKING BOROUGH COUNCIL,13/04/2016,0000395132/001,BRISTOW & SUTOR,40257600,8.25,HOUSING SERVICES - RENT COLLECTION,DEBT COLLECTION AGENCY COMMISS,H910,DEBT COLLECTION AGENCY COMMISS,HOUSING SERVICES,FINANCIAL SERVICES
http://statistics.data.gov.uk/id/local-authority/43UM,WOKING BOROUGH COUNCIL,13/04/2016,0000395132/002,BRISTOW & SUTOR,40257600,1.50,HOUSING SERVICES - HOUSING OPTIONS,RECOVERED SUMS,K110,RECOVERED SUMS,HOUSING SERVICES,FINANCIAL SERVICES
http://statistics.data.gov.uk/id/local-authority/43UM,WOKING BOROUGH COUNCIL,13/04/2016,0000395064/001,CAPITA BUSINESS SERVICES LTD,00585800,1800.00,REVENUES AND BENEFITS - C'L TAX BENEFIT ADMIN,SUBSCRIPTIONS,H110,SUBSCRIPTIONS,REVENUES AND BENEFITS,CONSULTANCY
http://statistics.data.gov.uk/id/local-authority/43UM,WOKING BOROUGH COUNCIL,13/04/2016,0000394896/001,CARRINGTON WEST LIMITED,40529100,618.75,NEIGHBOURHOOD SERVICES - REGULATION AND ENFORCEMENT,TEMPORARY STAFF,A110,TEMPORARY STAFF,NEIGHBOURHOOD SERVICES,HUMAN RESOURCES
http://statistics.data.gov.uk/id/local-authority/43UM,WOKING BOROUGH COUNCIL,13/04/2016,0000394999/001,CARRINGTON WEST LIMITED,40529100,618.75,NEIGHBOURHOOD SERVICES - REGULATION AND ENFORCEMENT,TEMPORARY STAFF,A110,TEMPORARY STAFF,NEIGHBOURHOOD SERVICES,HUMAN RESOURCES
http://statistics.data.gov.uk/id/local-authority/43UM,WOKING BOROUGH COUNCIL,13/04/2016,0000393831/001,CHEESMAN BROTHERS LTD,01050500,51.68,INDEPENDENT LIVING SERVICES - MEALS SERVICE - BROCKHILL,PROVISIONS,G410,PROVISIONS,INDEPENDENT LIVING SERVICES,CATERING
http://statistics.data.gov.uk/id/local-authority/43UM,WOKING BOROUGH COUNCIL,13/04/2016,0000393831/002,CHEESMAN BROTHERS LTD,01050500,19.49,INDEPENDENT LIVING SERVICES - MEALS SERVICE - ST MARYS,PROVISIONS,G410,PROVISIONS,INDEPENDENT LIVING SERVICES,CATERING
http://statistics.data.gov.uk/id/local-authority/43UM,WOKING BOROUGH COUNCIL,13/04/2016,0000393831/003,CHEESMAN BROTHERS LTD,01050500,37.60,INDEPENDENT LIVING SERVICES - MEALS SERVICE-MOORCROFT,PROVISIONS,G410,PROVISIONS,INDEPENDENT LIVING SERVICES,CATERING
http://statistics.data.gov.uk/id/local-authority/43UM,WOKING BOROUGH COUNCIL,13/04/2016,0000393831/004,CHEESMAN BROTHERS LTD,01050500,26.69,INDEPENDENT LIVING SERVICES - MEALS SERVICE -THE VYNE,PROVISIONS,G410,PROVISIONS,INDEPENDENT LIVING SERVICES,CATERING
http://statistics.data.gov.uk/id/local-authority/43UM,WOKING BOROUGH COUNCIL,13/04/2016,0000393854/001,CHEESMAN BROTHERS LTD,01050500,50.11,INDEPENDENT LIVING SERVICES - MEALS SERVICE - ST MARYS,PROVISIONS,G410,PROVISIONS,INDEPENDENT LIVING SERVICES,CATERING
http://statistics.data.gov.uk/id/local-authority/43UM,WOKING BOROUGH COUNCIL,13/04/2016,0000393854/002,CHEESMAN BROTHERS LTD,01050500,90.02,INDEPENDENT LIVING SERVICES - MEALS SERVICE - BROCKHILL,PROVISIONS,G410,PROVISIONS,INDEPENDENT LIVING SERVICES,CATERING
http://statistics.data.gov.uk/id/local-authority/43UM,WOKING BOROUGH COUNCIL,13/04/2016,0000393854/003,CHEESMAN BROTHERS LTD,01050500,26.27,INDEPENDENT LIVING SERVICES - MEALS SERVICE-MOORCROFT,PROVISIONS,G410,PROVISIONS,INDEPENDENT LIVING SERVICES,CATERING
http://statistics.data.gov.uk/id/local-authority/43UM,WOKING BOROUGH COUNCIL,13/04/2016,0000393854/004,CHEESMAN BROTHERS LTD,01050500,57.87,INDEPENDENT LIVING SERVICES - MEALS SERVICE -THE VYNE,PROVISIONS,G410,PROVISIONS,INDEPENDENT LIVING SERVICES,CATERING
http://statistics.data.gov.uk/id/local-authority/43UM,WOKING BOROUGH COUNCIL,13/04/2016,0000393897/001,CHEESMAN BROTHERS LTD,01050500,17.34,INDEPENDENT LIVING SERVICES - MEALS SERVICE - ST MARYS,PROVISIONS,G410,PROVISIONS,INDEPENDENT LIVING SERVICES,CATERING
http://statistics.data.gov.uk/id/local-authority/43UM,WOKING BOROUGH COUNCIL,13/04/2016,0000393897/002,CHEESMAN BROTHERS LTD,01050500,49.54,INDEPENDENT LIVING SERVICES - MEALS SERVICE - BROCKHILL,PROVISIONS,G410,PROVISIONS,INDEPENDENT LIVING SERVICES,CATERING
http://statistics.data.gov.uk/id/local-authority/43UM,WOKING BOROUGH COUNCIL,13/04/2016,0000393897/003,CHEESMAN BROTHERS LTD,01050500,39.13,INDEPENDENT LIVING SERVICES - MEALS SERVICE-MOORCROFT,PROVISIONS,G410,PROVISIONS,INDEPENDENT LIVING SERVICES,CATERING
http://statistics.data.gov.uk/id/local-authority/43UM,WOKING BOROUGH COUNCIL,13/04/2016,0000393897/004,CHEESMAN BROTHERS LTD,01050500,28.08,INDEPENDENT LIVING SERVICES - MEALS SERVICE -THE VYNE,PROVISIONS,G410,PROVISIONS,INDEPENDENT LIVING SERVICES,CATERING
http://statistics.data.gov.uk/id/local-authority/43UM,WOKING BOROUGH COUNCIL,13/04/2016,0000394455/001,CHEESMAN BROTHERS LTD,01050500,51.50,INDEPENDENT LIVING SERVICES - MEALS SERVICE - BROCKHILL,PROVISIONS,G410,PROVISIONS,INDEPENDENT LIVING SERVICES,CATERING
http://statistics.data.gov.uk/id/local-authority/43UM,WOKING BOROUGH COUNCIL,13/04/2016,0000394455/002,CHEESMAN BROTHERS LTD,01050500,21.90,INDEPENDENT LIVING SERVICES - MEALS SERVICE - ST MARYS,PROVISIONS,G410,PROVISIONS,INDEPENDENT LIVING SERVICES,CATERING
http://statistics.data.gov.uk/id/local-authority/43UM,WOKING BOROUGH COUNCIL,13/04/2016,0000394455/003,CHEESMAN BROTHERS LTD,01050500,31.28,INDEPENDENT LIVING SERVICES - MEALS SERVICE -THE VYNE,PROVISIONS,G410,PROVISIONS,INDEPENDENT LIVING SERVICES,CATERING
http://statistics.data.gov.uk/id/local-authority/43UM,WOKING BOROUGH COUNCIL,13/04/2016,0000394455/004,CHEESMAN BROTHERS LTD,01050500,49.47,INDEPENDENT LIVING SERVICES - MEALS SERVICE-MOORCROFT,PROVISIONS,G410,PROVISIONS,INDEPENDENT LIVING SERVICES,CATERING
http://statistics.data.gov.uk/id/local-authority/43UM,WOKING BOROUGH COUNCIL,13/04/2016,0000395364/001,CHEESMAN BROTHERS LTD,01050500,315.07,H G WELLS - H G WELLS - CATERING,PROVISIONS-FOOD,G440,PROVISIONS-FOOD,H G WELLS,CATERING
http://statistics.data.gov.uk/id/local-authority/43UM,WOKING BOROUGH COUNCIL,13/04/2016,0000395365/001,CHEESMAN BROTHERS LTD,01050500,52.47,H G WELLS - H G WELLS - CATERING,PROVISIONS-FOOD,G440,PROVISIONS-FOOD,H G WELLS,CATERING
http://statistics.data.gov.uk/id/local-authority/43UM,WOKING BOROUGH COUNCIL,13/04/2016,0000395390/001,CHEESMAN BROTHERS LTD,01050500,72.27,INDEPENDENT LIVING SERVICES - MEALS SERVICE-MOORCROFT,PROVISIONS,G410,PROVISIONS,INDEPENDENT LIVING SERVICES,CATERING
http://statistics.data.gov.uk/id/local-authority/43UM,WOKING BOROUGH COUNCIL,13/04/2016,0000395390/002,CHEESMAN BROTHERS LTD,01050500,52.00,INDEPENDENT LIVING SERVICES - MEALS SERVICE - BROCKHILL,PROVISIONS,G410,PROVISIONS,INDEPENDENT LIVING SERVICES,CATERING
http://statistics.data.gov.uk/id/local-authority/43UM,WOKING BOROUGH COUNCIL,13/04/2016,0000395390/003,CHEESMAN BROTHERS LTD,01050500,13.20,INDEPENDENT LIVING SERVICES - MEALS SERVICE - ST MARYS,PROVISIONS,G410,PROVISIONS,INDEPENDENT LIVING SERVICES,CATERING
http://statistics.data.gov.uk/id/local-authority/43UM,WOKING BOROUGH COUNCIL,13/04/2016,0000395390/004,CHEESMAN BROTHERS LTD,01050500,26.96,INDEPENDENT LIVING SERVICES - MEALS SERVICE -THE VYNE,PROVISIONS,G410,PROVISIONS,INDEPENDENT LIVING SERVICES,CATERING
http://statistics.data.gov.uk/id/local-authority/43UM,WOKING BOROUGH COUNCIL,13/04/2016,0000395563/001,CHILD SAFETY MEDIA LTD,40500600,6000.00,CORPORATE MANAGEMENT GROUP - JUNIOR CITIZEN SCHEME,PAYMENTS TO ORGANISATIONS,X800,PAYMENTS TO ORGANISATIONS,CORPORATE MANAGEMENT GROUP,CONSULTANCY
http://statistics.data.gov.uk/id/local-authority/43UM,WOKING BOROUGH COUNCIL,13/04/2016,0000394334/001,CLEAN BINS,40432100,120.00,NEIGHBOURHOOD SERVICES - WHEELED BIN COLLECTION,BIN CLEANING,G220,BIN CLEANING,NEIGHBOURHOOD SERVICES,ENVIRONMENTAL SERVICES
http://statistics.data.gov.uk/id/local-authority/43UM,WOKING BOROUGH COUNCIL,13/04/2016,0000395181/001,CLOCKWORK RECRUITMENT LTD,40563400,507.75,H G WELLS - H G WELLS GEN MANAGER & OFFICE,TEMPORARY STAFF,A110,TEMPORARY STAFF,H G WELLS,HUMAN RESOURCES
http://statistics.data.gov.uk/id/local-authority/43UM,WOKING BOROUGH COUNCIL,13/04/2016,0000394806/001,CURCHOD & CO,00972600,600.00,ASSET MANAGEMENT - PROPERTY SERVICES,CONSULTANTS,H670,CONSULTANTS,ASSET MANAGEMENT,CONSULTANCY
http://statistics.data.gov.uk/id/local-authority/43UM,WOKING BOROUGH COUNCIL,13/04/2016,0000395312/001,DAVITT JONES BOULD LTD - SOLICITORS,01490800,722.20,CORPORATE STRATEGY - LEGAL,AD HOC WORK,H781,AD HOC WORK,CORPORATE STRATEGY,LEGAL SERVICES
http://statistics.data.gov.uk/id/local-authority/43UM,WOKING BOROUGH COUNCIL,13/04/2016,0000395313/001,DAVITT JONES BOULD LTD - SOLICITORS,01490800,42.60,CORPORATE STRATEGY - LEGAL,AD HOC WORK,H781,AD HOC WORK,CORPORATE STRATEGY,LEGAL SERVICES
http://statistics.data.gov.uk/id/local-authority/43UM,WOKING BOROUGH COUNCIL,13/04/2016,0000395314/001,DAVITT JONES BOULD LTD - SOLICITORS,01490800,78.50,CORPORATE STRATEGY - LEGAL,AD HOC WORK,H781,AD HOC WORK,CORPORATE STRATEGY,LEGAL SERVICES
http://statistics.data.gov.uk/id/local-authority/43UM,WOKING BOROUGH COUNCIL,13/04/2016,0000395315/001,DAVITT JONES BOULD LTD - SOLICITORS,01490800,36.40,CORPORATE STRATEGY - LEGAL,AD HOC WORK,H781,AD HOC WORK,CORPORATE STRATEGY,LEGAL SERVICES
http://statistics.data.gov.uk/id/local-authority/43UM,WOKING BOROUGH COUNCIL,13/04/2016,0000395316/001,DAVITT JONES BOULD LTD - SOLICITORS,01490800,314.00,CORPORATE STRATEGY - LEGAL,AD HOC WORK,H781,AD HOC WORK,CORPORATE STRATEGY,LEGAL SERVICES
http://statistics.data.gov.uk/id/local-authority/43UM,WOKING BOROUGH COUNCIL,13/04/2016,0000395317/001,DAVITT JONES BOULD LTD - SOLICITORS,01490800,1705.60,CORPORATE STRATEGY - LEGAL,AD HOC WORK,H781,AD HOC WORK,CORPORATE STRATEGY,LEGAL SERVICES
http://statistics.data.gov.uk/id/local-authority/43UM,WOKING BOROUGH COUNCIL,13/04/2016,0000395317/002,DAVITT JONES BOULD LTD - SOLICITORS,01490800,6.00,CORPORATE STRATEGY - LEGAL,AD HOC WORK,H781,AD HOC WORK,CORPORATE STRATEGY,LEGAL SERVICES
http://statistics.data.gov.uk/id/local-authority/43UM,WOKING BOROUGH COUNCIL,13/04/2016,0000395318/001,DAVITT JONES BOULD LTD - SOLICITORS,01490800,3071.50,CORPORATE STRATEGY - LEGAL,AD HOC WORK,H781,AD HOC WORK,CORPORATE STRATEGY,LEGAL SERVICES
http://statistics.data.gov.uk/id/local-authority/43UM,WOKING BOROUGH COUNCIL,13/04/2016,0000395319/001,DAVITT JONES BOULD LTD - SOLICITORS,01490800,1349.50,CORPORATE STRATEGY - LEGAL,AD HOC WORK,H781,AD HOC WORK,CORPORATE STRATEGY,LEGAL SERVICES
http://statistics.data.gov.uk/id/local-authority/43UM,WOKING BOROUGH COUNCIL,13/04/2016,0000395319/002,DAVITT JONES BOULD LTD - SOLICITORS,01490800,430.50,CORPORATE STRATEGY - LEGAL,AD HOC WORK,H781,AD HOC WORK,CORPORATE STRATEGY,LEGAL SERVICES
http://statistics.data.gov.uk/id/local-authority/43UM,WOKING BOROUGH COUNCIL,13/04/2016,0000395319/003,DAVITT JONES BOULD LTD - SOLICITORS,01490800,131.63,CORPORATE STRATEGY - LEGAL,AD HOC WORK,H781,AD HOC WORK,CORPORATE STRATEGY,LEGAL SERVICES
http://statistics.data.gov.uk/id/local-authority/43UM,WOKING BOROUGH COUNCIL,13/04/2016,0000395320/001,DAVITT JONES BOULD LTD - SOLICITORS,01490800,408.20,CORPORATE STRATEGY - LEGAL,AD HOC WORK,H781,AD HOC WORK,CORPORATE STRATEGY,LEGAL SERVICES
http://statistics.data.gov.uk/id/local-authority/43UM,WOKING BOROUGH COUNCIL,13/04/2016,0000395320/002,DAVITT JONES BOULD LTD - SOLICITORS,01490800,446.34,CORPORATE STRATEGY - LEGAL,AD HOC WORK,H781,AD HOC WORK,CORPORATE STRATEGY,LEGAL SERVICES
http://statistics.data.gov.uk/id/local-authority/43UM,WOKING BOROUGH COUNCIL,13/04/2016,0000395320/003,DAVITT JONES BOULD LTD - SOLICITORS,01490800,131.63,CORPORATE STRATEGY - LEGAL,AD HOC WORK,H781,AD HOC WORK,CORPORATE STRATEGY,LEGAL SERVICES
http://statistics.data.gov.uk/id/local-authority/43UM,WOKING BOROUGH COUNCIL,13/04/2016,0000395321/001,DAVITT JONES BOULD LTD - SOLICITORS,01490800,612.30,CORPORATE STRATEGY - LEGAL,AD HOC WORK,H781,AD HOC WORK,CORPORATE STRATEGY,LEGAL SERVICES
http://statistics.data.gov.uk/id/local-authority/43UM,WOKING BOROUGH COUNCIL,13/04/2016,0000395322/001,DAVITT JONES BOULD LTD - SOLICITORS,01490800,235.50,CORPORATE STRATEGY - LEGAL,AD HOC WORK,H781,AD HOC WORK,CORPORATE STRATEGY,LEGAL SERVICES
http://statistics.data.gov.uk/id/local-authority/43UM,WOKING BOROUGH COUNCIL,13/04/2016,0000395323/001,DAVITT JONES BOULD LTD - SOLICITORS,01490800,685.10,CORPORATE STRATEGY - LEGAL,AD HOC WORK,H781,AD HOC WORK,CORPORATE STRATEGY,LEGAL SERVICES
http://statistics.data.gov.uk/id/local-authority/43UM,WOKING BOROUGH COUNCIL,13/04/2016,0000395324/001,DAVITT JONES BOULD LTD - SOLICITORS,01490800,1711.30,CORPORATE STRATEGY - LEGAL,AD HOC WORK,H781,AD HOC WORK,CORPORATE STRATEGY,LEGAL SERVICES
http://statistics.data.gov.uk/id/local-authority/43UM,WOKING BOROUGH COUNCIL,13/04/2016,0000395325/001,DAVITT JONES BOULD LTD - SOLICITORS,01490800,10688.20,CORPORATE STRATEGY - LEGAL,AD HOC WORK,H781,AD HOC WORK,CORPORATE STRATEGY,LEGAL SERVICES
http://statistics.data.gov.uk/id/local-authority/43UM,WOKING BOROUGH COUNCIL,13/04/2016,0000395325/002,DAVITT JONES BOULD LTD - SOLICITORS,01490800,402.56,CORPORATE STRATEGY - LEGAL,AD HOC WORK,H781,AD HOC WORK,CORPORATE STRATEGY,LEGAL SERVICES
http://statistics.data.gov.uk/id/local-authority/43UM,WOKING BOROUGH COUNCIL,13/04/2016,0000395325/003,DAVITT JONES BOULD LTD - SOLICITORS,01490800,215.00,CORPORATE STRATEGY - LEGAL,AD HOC WORK,H781,AD HOC WORK,CORPORATE STRATEGY,LEGAL SERVICES
http://statistics.data.gov.uk/id/local-authority/43UM,WOKING BOROUGH COUNCIL,13/04/2016,0000395325/004,DAVITT JONES BOULD LTD - SOLICITORS,01490800,489.63,CORPORATE STRATEGY - LEGAL,AD HOC WORK,H781,AD HOC WORK,CORPORATE STRATEGY,LEGAL SERVICES
http://statistics.data.gov.uk/id/local-authority/43UM,WOKING BOROUGH COUNCIL,13/04/2016,0000395326/001,DAVITT JONES BOULD LTD - SOLICITORS,01490800,914.90,CORPORATE STRATEGY - LEGAL,AD HOC WORK,H781,AD HOC WORK,CORPORATE STRATEGY,LEGAL SERVICES
http://statistics.data.gov.uk/id/local-authority/43UM,WOKING BOROUGH COUNCIL,13/04/2016,0000395327/001,DAVITT JONES BOULD LTD - SOLICITORS,01490800,1056.20,CORPORATE STRATEGY - LEGAL,AD HOC WORK,H781,AD HOC WORK,CORPORATE STRATEGY,LEGAL SERVICES
http://statistics.data.gov.uk/id/local-authority/43UM,WOKING BOROUGH COUNCIL,13/04/2016,0000395327/002,DAVITT JONES BOULD LTD - SOLICITORS,01490800,4.00,CORPORATE STRATEGY - LEGAL,AD HOC WORK,H781,AD HOC WORK,CORPORATE STRATEGY,LEGAL SERVICES
http://statistics.data.gov.uk/id/local-authority/43UM,WOKING BOROUGH COUNCIL,13/04/2016,GPC/668092830,DP CAPPUCCINO ESPRESSO,PROCUREMENT CARD,10.90,CORPORATE MANAGEMENT GROUP - CORPORATE MANAGEMENT GROUP,SUBSISTENCE,A902,SUBSISTENCE - JONES LANG LASALLE,RAY MORGAN,EATING PLACES RESTAURANTS
http://statistics.data.gov.uk/id/local-authority/43UM,WOKING BOROUGH COUNCIL,13/04/2016,0000394859/001,EDEN BROWN LTD,00275500,1497.56,ASSET MANAGEMENT - BUILDING SERVICES,TEMPORARY STAFF,A110,TEMPORARY STAFF,ASSET MANAGEMENT,HUMAN RESOURCES
http://statistics.data.gov.uk/id/local-authority/43UM,WOKING BOROUGH COUNCIL,13/04/2016,0000395506/001,ELIZABETH M A BLADON,40433700,966.16,HOUSING SERVICES - HOUSING OPTIONS DEPOSITS,DEPOSITS,T720,DEPOSITS,HOUSING SERVICES,HOUSING MANAGEMENT
http://statistics.data.gov.uk/id/local-authority/43UM,WOKING BOROUGH COUNCIL,13/04/2016,0000395201/001,ELMBRIDGE BOROUGH COUNCIL,00609700,535.63,INDEPENDENT LIVING SERVICES - PPPF PERSONALISATION & PREV FD,SSIP INFO BOARDS,Q252,SSIP INFO BOARDS,INDEPENDENT LIVING SERVICES,WORKS (CONSTRUCTION REPAIR MAINTENANCE)
http://statistics.data.gov.uk/id/local-authority/43UM,WOKING BOROUGH COUNCIL,13/04/2016,0000394909/001,ENGLEFIELD BUILDING CONTRACTORS LIMITED,40542900,770.00,ASSET MANAGEMENT - BROOKWOOD CEMETERY TEMP COSTS,MAIN CONTRACTOR,Q200,MAIN CONTRACTOR,ASSET MANAGEMENT,WORKS (CONSTRUCTION REPAIR MAINTENANCE)
http://statistics.data.gov.uk/id/local-authority/43UM,WOKING BOROUGH COUNCIL,13/04/2016,0000395477/001,ENTERPRISE RENT_A_CAR UK LTD,40570900,935.94,CORPORATE STRATEGY - ENVIRONMENTAL PROJECTS,CAR HIRE,F405,CAR HIRE,CORPORATE STRATEGY,VEHICLE MANAGEMENT
http://statistics.data.gov.uk/id/local-authority/43UM,WOKING BOROUGH COUNCIL,13/04/2016,0000395204/001,EVOLUTION (WOKING) LIMITED,40524400,98540.71,FINANCIAL SERVICES - APPROPRIATIONS,MINIMUM REVENUE PROVISION,U106,MINIMUM REVENUE PROVISION,FINANCIAL SERVICES,HOUSING MANAGEMENT
http://statistics.data.gov.uk/id/local-authority/43UM,WOKING BOROUGH COUNCIL,13/04/2016,GPC/668093825,EXPERTSEXCHANGE,PROCUREMENT CARD,124.96,INFORMATION TECHNOLOGY - ICT GENERAL REPLACEMENT 15/16,SYSTEMS SOFTWARE,Q035,EXPERTS EXCHANGE SUBSCRIPTION,STUART MILLAR,COMPUTER MAINTENANCE REPAIR AND SERVICES NOT ELS
http://statistics.data.gov.uk/id/local-authority/43UM,WOKING BOROUGH COUNCIL,13/04/2016,GPC/668093824,EXPERTSEXCHANGE,PROCUREMENT CARD,108.29,INFORMATION TECHNOLOGY - ICT GENERAL REPLACEMENT 15/16,SYSTEMS SOFTWARE,Q035,EXPERTS EXCHANGE�SUBSCRIPTION,STUART MILLAR,COMPUTER MAINTENANCE REPAIR AND SERVICES NOT ELS
http://statistics.data.gov.uk/id/local-authority/43UM,WOKING BOROUGH COUNCIL,13/04/2016,0000394819/001,FAITH RECRUITMENT,01709500,484.50,REVENUES AND BENEFITS - BENEFIT SERVICES,TEMPORARY STAFF,A110,TEMPORARY STAFF,REVENUES AND BENEFITS,HUMAN RESOURCES
http://statistics.data.gov.uk/id/local-authority/43UM,WOKING BOROUGH COUNCIL,13/04/2016,0000394842/001,FAITH RECRUITMENT,01709500,430.50,FINANCIAL SERVICES - FINANCIAL SERVICES,TEMPORARY STAFF,A110,TEMPORARY STAFF,FINANCIAL SERVICES,HUMAN RESOURCES
http://statistics.data.gov.uk/id/local-authority/43UM,WOKING BOROUGH COUNCIL,13/04/2016,0000394853/001,FAITH RECRUITMENT,01709500,235.88,CORPORATE MANAGEMENT GROUP - HUMAN RESOURCES,TEMPORARY STAFF,A110,TEMPORARY STAFF,CORPORATE MANAGEMENT GROUP,HUMAN RESOURCES
http://statistics.data.gov.uk/id/local-authority/43UM,WOKING BOROUGH COUNCIL,13/04/2016,0000394903/001,FARNBOROUGH CONTRACTING SERVICES,40501900,459.25,NEIGHBOURHOOD SERVICES - TOWN CTR MANAGEMENT,GROUNDS MAINT-CONTRACTORS,D200,GROUNDS MAINT-CONTRACTORS,NEIGHBOURHOOD SERVICES,WORKS (CONSTRUCTION REPAIR MAINTENANCE)
http://statistics.data.gov.uk/id/local-authority/43UM,WOKING BOROUGH COUNCIL,13/04/2016,0000395182/001,FREETHS LLP,40570400,605.85,CORPORATE STRATEGY - LEGAL,AD HOC WORK,H781,AD HOC WORK,CORPORATE STRATEGY,LEGAL SERVICES
http://statistics.data.gov.uk/id/local-authority/43UM,WOKING BOROUGH COUNCIL,13/04/2016,0000395091/001,FSE,40569800,255.00,CORPORATE STRATEGY - PUBLIC RELATIONS,GENERAL PUBLIC RELATIONS EXPNS,H915,GENERAL PUBLIC RELATIONS EXPNS,CORPORATE STRATEGY,FACILITIES & MANAGEMENT SERVICES
http://statistics.data.gov.uk/id/local-authority/43UM,WOKING BOROUGH COUNCIL,13/04/2016,0000394914/001,GIBBS & DANDY,40335300,35.60,HOUSING SERVICES - HOME IMPS & BEN AGENCY,HANDYPERSON MATERIALS,G201,HANDYPERSON MATERIALS,HOUSING SERVICES,BUILDING CONSTRUCTION MATERIALS
http://statistics.data.gov.uk/id/local-authority/43UM,WOKING BOROUGH COUNCIL,13/04/2016,0000394915/001,GIBBS & DANDY,40335300,25.45,HOUSING SERVICES - HOME IMPS & BEN AGENCY,HANDYPERSON MATERIALS,G201,HANDYPERSON MATERIALS,HOUSING SERVICES,BUILDING CONSTRUCTION MATERIALS
http://statistics.data.gov.uk/id/local-authority/43UM,WOKING BOROUGH COUNCIL,13/04/2016,0000395418/001,GIBBS & DANDY,40335300,12.73,HOUSING SERVICES - HOME IMPS & BEN AGENCY,HANDYPERSON MATERIALS,G201,HANDYPERSON MATERIALS,HOUSING SERVICES,BUILDING CONSTRUCTION MATERIALS
http://statistics.data.gov.uk/id/local-authority/43UM,WOKING BOROUGH COUNCIL,13/04/2016,0000395538/001,GRANT PRITCHARD PHOTOGRAPHY LTD,00499800,200.00,CORPORATE STRATEGY - CELEBRATE WOKING - MARKETING/PROMO 14,MAIN CONTRACTOR,Q200,MAIN CONTRACTOR,CORPORATE STRATEGY,FACILITIES & MANAGEMENT SERVICES
http://statistics.data.gov.uk/id/local-authority/43UM,WOKING BOROUGH COUNCIL,13/04/2016,0000395328/001,GRENCAR LIMITED,40551300,85.00,CORPORATE STRATEGY - LEGAL,LEGAL FEES,H677,LEGAL FEES,CORPORATE STRATEGY,LEGAL SERVICES
http://statistics.data.gov.uk/id/local-authority/43UM,WOKING BOROUGH COUNCIL,13/04/2016,0000395218/001,HALOMARTS LIMITED,01845900,8068.06,HOUSING SERVICES - PRIVATE SECTOR LEASING SCHEME,LEASE PAYMENTS TO LANDLORD,H787,LEASE PAYMENTS TO LANDLORD,HOUSING SERVICES,HOUSING MANAGEMENT
http://statistics.data.gov.uk/id/local-authority/43UM,WOKING BOROUGH COUNCIL,13/04/2016,0000395757/001,HAMLYNS,01286800,750.00,CORPORATE STRATEGY - CORPORATE MANAGEMENT,INDEPENDENT PANEL,H273,INDEPENDENT PANEL,CORPORATE STRATEGY,LEGAL SERVICES
http://statistics.data.gov.uk/id/local-authority/43UM,WOKING BOROUGH COUNCIL,13/04/2016,0000395059/001,HARROW BUSINESS SERVICES LIMITED,40267600,91.80,INFORMATION TECHNOLOGY - I.T.S. REPROGRAPHICS,PAPER,G635,PAPER,INFORMATION TECHNOLOGY,STATIONERY
http://statistics.data.gov.uk/id/local-authority/43UM,WOKING BOROUGH COUNCIL,13/04/2016,0000395347/001,HAYMARKET MEDIA GROUP LIMITED,00345100,1150.00,PLANNING SERVICES - PLANNING SERVICES GENERAL EXPE,SUBSCRIPTIONS,H110,SUBSCRIPTIONS,PLANNING SERVICES,CONSULTANCY
http://statistics.data.gov.uk/id/local-authority/43UM,WOKING BOROUGH COUNCIL,13/04/2016,0000394710/001,HEADLINE DESIGN & PRINT,00016900,23.95,HOUSING SERVICES - HOUSING NEEDS SURVEY,MAIN CONTRACTOR,Q200,MAIN CONTRACTOR,HOUSING SERVICES,FINANCIAL SERVICES
http://statistics.data.gov.uk/id/local-authority/43UM,WOKING BOROUGH COUNCIL,13/04/2016,0000394711/001,HEADLINE DESIGN & PRINT,00016900,125.00,HOUSING SERVICES - HOUSING NEEDS SURVEY,MAIN CONTRACTOR,Q200,MAIN CONTRACTOR,HOUSING SERVICES,FINANCIAL SERVICES
http://statistics.data.gov.uk/id/local-authority/43UM,WOKING BOROUGH COUNCIL,13/04/2016,0000394712/001,HEADLINE DESIGN & PRINT,00016900,25.86,HOUSING SERVICES - HOUSING NEEDS SURVEY,MAIN CONTRACTOR,Q200,MAIN CONTRACTOR,HOUSING SERVICES,FINANCIAL SERVICES
http://statistics.data.gov.uk/id/local-authority/43UM,WOKING BOROUGH COUNCIL,13/04/2016,0000394910/001,HEADLINE DESIGN & PRINT,00016900,821.75,NEIGHBOURHOOD SERVICES - ARTS DEVELOPMENT,EXTERNAL PRINTING - PUBLICITY,G605,EXTERNAL PRINTING - PUBLICITY,NEIGHBOURHOOD SERVICES,FINANCIAL SERVICES
http://statistics.data.gov.uk/id/local-authority/43UM,WOKING BOROUGH COUNCIL,13/04/2016,0000395515/001,HEADLINE DESIGN & PRINT,00016900,394.90,CORPORATE STRATEGY - REGISTER OF ELECTORS,ADVERTISING,H400,ADVERTISING,CORPORATE STRATEGY,FINANCIAL SERVICES
http://statistics.data.gov.uk/id/local-authority/43UM,WOKING BOROUGH COUNCIL,13/04/2016,0000395517/001,HEADLINE DESIGN & PRINT,00016900,120.00,NEIGHBOURHOOD SERVICES - WHEELED BIN COLLECTION,ADVERTISING,H400,ADVERTISING,NEIGHBOURHOOD SERVICES,FINANCIAL SERVICES
http://statistics.data.gov.uk/id/local-authority/43UM,WOKING BOROUGH COUNCIL,13/04/2016,0000395518/001,HEADLINE DESIGN & PRINT,00016900,128.00,NEIGHBOURHOOD SERVICES - CELBT WOK-HGWELLS 150TH CELBTN,CELEBRATE WOKING MARKETING COSTS,Q561,CELEBRATE WOKING MARKETING COSTS,NEIGHBOURHOOD SERVICES,FINANCIAL SERVICES
http://statistics.data.gov.uk/id/local-authority/43UM,WOKING BOROUGH COUNCIL,13/04/2016,GPC/668096412,HOMEBASE LTD 084,PROCUREMENT CARD,37.99,INDEPENDENT LIVING SERVICES - FAMILY SUPPORT PROGRAMME,FAMILY ENABLING (FSP PROJECT),H137,PAINT - FAMILY,JULIE COONEY,BUILDING MATERIALS LUMBER STORES
http://statistics.data.gov.uk/id/local-authority/43UM,WOKING BOROUGH COUNCIL,13/04/2016,0000395160/001,ICL MEDIA,01821200,312.50,H G WELLS - H G WELLS - FUNCTION ROOMS,AUDIO VISUAL TECHNICIANS,G124,AUDIO VISUAL TECHNICIANS,H G WELLS,INFORMATION COMMUNICATION TECHNOLOGY
http://statistics.data.gov.uk/id/local-authority/43UM,WOKING BOROUGH COUNCIL,13/04/2016,0000395170/001,ICL MEDIA,01821200,175.00,H G WELLS - H G WELLS - FUNCTION ROOMS,AUDIO VISUAL TECHNICIANS,G124,AUDIO VISUAL TECHNICIANS,H G WELLS,INFORMATION COMMUNICATION TECHNOLOGY
http://statistics.data.gov.uk/id/local-authority/43UM,WOKING BOROUGH COUNCIL,13/04/2016,0000395171/001,ICL MEDIA,01821200,175.00,H G WELLS - H G WELLS - FUNCTION ROOMS,AUDIO VISUAL TECHNICIANS,G124,AUDIO VISUAL TECHNICIANS,H G WELLS,INFORMATION COMMUNICATION TECHNOLOGY
http://statistics.data.gov.uk/id/local-authority/43UM,WOKING BOROUGH COUNCIL,13/04/2016,0000395172/001,ICL MEDIA,01821200,175.00,H G WELLS - H G WELLS - FUNCTION ROOMS,AUDIO VISUAL TECHNICIANS,G124,AUDIO VISUAL TECHNICIANS,H G WELLS,INFORMATION COMMUNICATION TECHNOLOGY
http://statistics.data.gov.uk/id/local-authority/43UM,WOKING BOROUGH COUNCIL,13/04/2016,0000395173/001,ICL MEDIA,01821200,300.00,H G WELLS - H G WELLS - FUNCTION ROOMS,AUDIO VISUAL TECHNICIANS,G124,AUDIO VISUAL TECHNICIANS,H G WELLS,INFORMATION COMMUNICATION TECHNOLOGY
http://statistics.data.gov.uk/id/local-authority/43UM,WOKING BOROUGH COUNCIL,13/04/2016,0000395173/002,ICL MEDIA,01821200,788.21,H G WELLS - H G WELLS - FUNCTION ROOMS,EQUIPMENT,G100,EQUIPMENT,H G WELLS,INFORMATION COMMUNICATION TECHNOLOGY
http://statistics.data.gov.uk/id/local-authority/43UM,WOKING BOROUGH COUNCIL,13/04/2016,0000395175/001,ICL MEDIA,01821200,37.50,H G WELLS - H G WELLS - FUNCTION ROOMS,EQUIPMENT,G100,EQUIPMENT,H G WELLS,INFORMATION COMMUNICATION TECHNOLOGY
http://statistics.data.gov.uk/id/local-authority/43UM,WOKING BOROUGH COUNCIL,13/04/2016,0000395177/001,ICL MEDIA,01821200,175.00,H G WELLS - H G WELLS - FUNCTION ROOMS,AUDIO VISUAL TECHNICIANS,G124,AUDIO VISUAL TECHNICIANS,H G WELLS,INFORMATION COMMUNICATION TECHNOLOGY
http://statistics.data.gov.uk/id/local-authority/43UM,WOKING BOROUGH COUNCIL,13/04/2016,0000395178/001,ICL MEDIA,01821200,175.00,H G WELLS - H G WELLS - FUNCTION ROOMS,AUDIO VISUAL TECHNICIANS,G124,AUDIO VISUAL TECHNICIANS,H G WELLS,INFORMATION COMMUNICATION TECHNOLOGY
http://statistics.data.gov.uk/id/local-authority/43UM,WOKING BOROUGH COUNCIL,13/04/2016,0000395003/001,ICLEANIT,40569200,462.23,NEIGHBOURHOOD SERVICES - CPZ WBC FROM 25/7/05,LINES / SIGNS (ROAD MARKINGS),G141,LINES / SIGNS (ROAD MARKINGS),NEIGHBOURHOOD SERVICES,FACILITIES & MANAGEMENT SERVICES
http://statistics.data.gov.uk/id/local-authority/43UM,WOKING BOROUGH COUNCIL,13/04/2016,0000394027/001,INDIGO VALLEY,40165400,79.00,INDEPENDENT LIVING SERVICES - MEALS SERVICE-MOORCROFT,PROVISIONS,G410,PROVISIONS,INDEPENDENT LIVING SERVICES,CATERING
http://statistics.data.gov.uk/id/local-authority/43UM,WOKING BOROUGH COUNCIL,13/04/2016,0000395018/001,INDIGO VALLEY,40165400,78.00,INDEPENDENT LIVING SERVICES - MEALS SERVICE - ST MARYS,PROVISIONS,G410,PROVISIONS,INDEPENDENT LIVING SERVICES,CATERING
http://statistics.data.gov.uk/id/local-authority/43UM,WOKING BOROUGH COUNCIL,13/04/2016,0000395389/001,INDIGO VALLEY,40165400,92.30,INDEPENDENT LIVING SERVICES - MEALS SERVICE -THE VYNE,PROVISIONS,G410,PROVISIONS,INDEPENDENT LIVING SERVICES,CATERING
http://statistics.data.gov.uk/id/local-authority/43UM,WOKING BOROUGH COUNCIL,13/04/2016,0000395232/001,INSTITUTE OF COMMUNITY SAFETY LTD,00959700,198.00,NEIGHBOURHOOD SERVICES - COMMUNITY SAFETY,SUBSCRIPTIONS,H110,SUBSCRIPTIONS,NEIGHBOURHOOD SERVICES,CONSULTANCY
http://statistics.data.gov.uk/id/local-authority/43UM,WOKING BOROUGH COUNCIL,13/04/2016,0000395386/001,JADE BUCKINGHAM,40560400,2.00,INDEPENDENT LIVING SERVICES - PPPF PERSONALISATION & PREV FD,CAPITAL DIRECT SALARIES,Q940,CAPITAL DIRECT SALARIES,INDEPENDENT LIVING SERVICES,HUMAN RESOURCES
http://statistics.data.gov.uk/id/local-authority/43UM,WOKING BOROUGH COUNCIL,13/04/2016,0000395386/002,JADE BUCKINGHAM,40560400,29.18,CORPORATE STRATEGY - ENVIRONMENTAL PROJECTS,CAR HIRE,F405,CAR HIRE,CORPORATE STRATEGY,HUMAN RESOURCES
http://statistics.data.gov.uk/id/local-authority/43UM,WOKING BOROUGH COUNCIL,13/04/2016,0000395710/001,JPEN MEDICAL,40571000,45.00,ASSET MANAGEMENT - ASSET MANAGEMENT GENERAL EXPEN,HEALTH AND SAFETY,G197,HEALTH AND SAFETY,ASSET MANAGEMENT,HEALTH & SAFETY
http://statistics.data.gov.uk/id/local-authority/43UM,WOKING BOROUGH COUNCIL,13/04/2016,0000395672/001,KARL BROOKER,01459200,1500.00,FINANCIAL SERVICES - INSURANCE FUND,RENT BOND SCHEME,T767,RENT BOND SCHEME,FINANCIAL SERVICES,HOUSING MANAGEMENT
http://statistics.data.gov.uk/id/local-authority/43UM,WOKING BOROUGH COUNCIL,13/04/2016,0000395720/001,KELLY WEATHERLEY,40573800,114.75,HOUSING SERVICES - SYRIAN REFUGEE FAMILES,MISCELLANEOUS EXPENSES,Q660,MISCELLANEOUS EXPENSES,HOUSING SERVICES,HOUSING MANAGEMENT
http://statistics.data.gov.uk/id/local-authority/43UM,WOKING BOROUGH COUNCIL,13/04/2016,0000393840/001,KENT COUNTY COUNCIL (KCS),00050800,71.98,INDEPENDENT LIVING SERVICES - MEALS SERVICE -THE VYNE,GAS,D420,GAS,INDEPENDENT LIVING SERVICES,UTILITIES
http://statistics.data.gov.uk/id/local-authority/43UM,WOKING BOROUGH COUNCIL,13/04/2016,0000394916/001,KENT COUNTY COUNCIL (KCS),00050800,741.17,INFORMATION TECHNOLOGY - I.T.S. ICT,PC & SERVER APPLICATION SOFT/W,G180,PC & SERVER APPLICATION SOFT/W,INFORMATION TECHNOLOGY,UTILITIES
http://statistics.data.gov.uk/id/local-authority/43UM,WOKING BOROUGH COUNCIL,13/04/2016,0000395083/001,KENT COUNTY COUNCIL (KCS),00050800,355.71,INDEPENDENT LIVING SERVICES - MOORCROFT,GAS,D420,GAS,INDEPENDENT LIVING SERVICES,UTILITIES
http://statistics.data.gov.uk/id/local-authority/43UM,WOKING BOROUGH COUNCIL,13/04/2016,0000395548/001,KENT COUNTY COUNCIL (KCS),00050800,-62.35,HOUSING SERVICES - ENERGY,ELECTRICITY,D400,ELECTRICITY,HOUSING SERVICES,UTILITIES
http://statistics.data.gov.uk/id/local-authority/43UM,WOKING BOROUGH COUNCIL,13/04/2016,0000395549/001,KENT COUNTY COUNCIL (KCS),00050800,-61.86,HOUSING SERVICES - LANDLORDS EXPENSES,ELECTRICITY,D400,ELECTRICITY,HOUSING SERVICES,UTILITIES
http://statistics.data.gov.uk/id/local-authority/43UM,WOKING BOROUGH COUNCIL,13/04/2016,0000395555/001,KENT COUNTY COUNCIL (KCS),00050800,-18.48,HOUSING SERVICES - LANDLORDS EXPENSES,ELECTRICITY,D400,ELECTRICITY,HOUSING SERVICES,UTILITIES
http://statistics.data.gov.uk/id/local-authority/43UM,WOKING BOROUGH COUNCIL,13/04/2016,0000395556/001,KENT COUNTY COUNCIL (KCS),00050800,-6.64,HOUSING SERVICES - LANDLORDS EXPENSES,ELECTRICITY,D400,ELECTRICITY,HOUSING SERVICES,UTILITIES
http://statistics.data.gov.uk/id/local-authority/43UM,WOKING BOROUGH COUNCIL,13/04/2016,0000395557/001,KENT COUNTY COUNCIL (KCS),00050800,-9.29,HOUSING SERVICES - LANDLORDS EXPENSES,ELECTRICITY,D400,ELECTRICITY,HOUSING SERVICES,UTILITIES
http://statistics.data.gov.uk/id/local-authority/43UM,WOKING BOROUGH COUNCIL,13/04/2016,0000395558/001,KENT COUNTY COUNCIL (KCS),00050800,-18.48,HOUSING SERVICES - LANDLORDS EXPENSES,ELECTRICITY,D400,ELECTRICITY,HOUSING SERVICES,UTILITIES
http://statistics.data.gov.uk/id/local-authority/43UM,WOKING BOROUGH COUNCIL,13/04/2016,0000394410/001,KENT FINANCIAL SERVICES,40484900,35.00,REVENUES AND BENEFITS - C'L TAX BENEFIT ADMIN,DEBT COLLECTION AGENCY COMMISS,H910,DEBT COLLECTION AGENCY COMMISS,REVENUES AND BENEFITS,FINANCIAL SERVICES
http://statistics.data.gov.uk/id/local-authority/43UM,WOKING BOROUGH COUNCIL,13/04/2016,0000394508/001,KENT FINANCIAL SERVICES,40484900,45.00,REVENUES AND BENEFITS - COUNCIL TAX,DEBT COLLECTION AGENCY COMMISS,H910,DEBT COLLECTION AGENCY COMMISS,REVENUES AND BENEFITS,FINANCIAL SERVICES
http://statistics.data.gov.uk/id/local-authority/43UM,WOKING BOROUGH COUNCIL,13/04/2016,0000394961/001,KENT FINANCIAL SERVICES,40484900,35.00,REVENUES AND BENEFITS - C'L TAX BENEFIT ADMIN,DEBT COLLECTION AGENCY COMMISS,H910,DEBT COLLECTION AGENCY COMMISS,REVENUES AND BENEFITS,FINANCIAL SERVICES
http://statistics.data.gov.uk/id/local-authority/43UM,WOKING BOROUGH COUNCIL,13/04/2016,0000395340/001,KINGDOM SECURITY LIMITED,40490900,4944.00,NEIGHBOURHOOD SERVICES - LITTER ENFORCEMENT (PILOT),PAYMENTS TO CONTRACTORS,H780,PAYMENTS TO CONTRACTORS,NEIGHBOURHOOD SERVICES,FACILITIES & MANAGEMENT SERVICES
http://statistics.data.gov.uk/id/local-authority/43UM,WOKING BOROUGH COUNCIL,13/04/2016,0000394630/001,LEA'S CLEANING SERVICE LTD,01678300,450.00,ASSET MANAGEMENT - FACILITIES MANAGEMENT,HANDYMAN SERVICES,D907,HANDYMAN SERVICES,ASSET MANAGEMENT,WORKS (CONSTRUCTION REPAIR MAINTENANCE)
http://statistics.data.gov.uk/id/local-authority/43UM,WOKING BOROUGH COUNCIL,13/04/2016,0000394631/001,LEA'S CLEANING SERVICE LTD,01678300,300.00,ASSET MANAGEMENT - FACILITIES MANAGEMENT,HANDYMAN SERVICES,D907,HANDYMAN SERVICES,ASSET MANAGEMENT,WORKS (CONSTRUCTION REPAIR MAINTENANCE)
http://statistics.data.gov.uk/id/local-authority/43UM,WOKING BOROUGH COUNCIL,13/04/2016,0000394633/001,LEA'S CLEANING SERVICE LTD,01678300,250.00,HOUSING SERVICES - HOME IMPS & BEN AGENCY,HIRE OF PREMISES,D505,HIRE OF PREMISES,HOUSING SERVICES,WORKS (CONSTRUCTION REPAIR MAINTENANCE)
http://statistics.data.gov.uk/id/local-authority/43UM,WOKING BOROUGH COUNCIL,13/04/2016,0000394919/001,LEA'S CLEANING SERVICE LTD,01678300,645.00,ASSET MANAGEMENT - PROVINCIAL HOUSE ALTERATIONS,MAIN CONTRACTOR,Q200,MAIN CONTRACTOR,ASSET MANAGEMENT,WORKS (CONSTRUCTION REPAIR MAINTENANCE)
http://statistics.data.gov.uk/id/local-authority/43UM,WOKING BOROUGH COUNCIL,13/04/2016,0000394988/001,LEA'S CLEANING SERVICE LTD,01678300,180.00,ASSET MANAGEMENT - PROVINCIAL HOUSE ALTERATIONS,MAIN CONTRACTOR,Q200,MAIN CONTRACTOR,ASSET MANAGEMENT,WORKS (CONSTRUCTION REPAIR MAINTENANCE)
http://statistics.data.gov.uk/id/local-authority/43UM,WOKING BOROUGH COUNCIL,13/04/2016,0000394989/001,LEA'S CLEANING SERVICE LTD,01678300,290.00,ASSET MANAGEMENT - AMP LIGHTING UPGRADE VARIOUS S,MAIN CONTRACTOR,Q200,MAIN CONTRACTOR,ASSET MANAGEMENT,WORKS (CONSTRUCTION REPAIR MAINTENANCE)
http://statistics.data.gov.uk/id/local-authority/43UM,WOKING BOROUGH COUNCIL,13/04/2016,0000394990/001,LEA'S CLEANING SERVICE LTD,01678300,155.00,INDEPENDENT LIVING SERVICES - PARKVIEW,ADVERTISING,H400,ADVERTISING,INDEPENDENT LIVING SERVICES,WORKS (CONSTRUCTION REPAIR MAINTENANCE)
http://statistics.data.gov.uk/id/local-authority/43UM,WOKING BOROUGH COUNCIL,13/04/2016,0000395081/001,LICKETYSPLIT,01844700,41.65,CORPORATE STRATEGY - CORPORATE STRATEGY GENERAL EXP,OFFICIAL HOSPITALITY,H310,OFFICIAL HOSPITALITY,CORPORATE STRATEGY,CATERING
http://statistics.data.gov.uk/id/local-authority/43UM,WOKING BOROUGH COUNCIL,13/04/2016,0000395082/001,LICKETYSPLIT,01844700,178.50,CORPORATE STRATEGY - CIVIC EXPENSES,TWIN TOWN CLUB,H903,TWIN TOWN CLUB,CORPORATE STRATEGY,CATERING
http://statistics.data.gov.uk/id/local-authority/43UM,WOKING BOROUGH COUNCIL,13/04/2016,0000394825/001,LOCKHART CATERING EQUIPMENT,00702100,484.94,H G WELLS - H G WELLS - CATERING,EQUIPMENT,G100,EQUIPMENT,H G WELLS,CATERING
http://statistics.data.gov.uk/id/local-authority/43UM,WOKING BOROUGH COUNCIL,13/04/2016,0000394872/001,LOCKHART CATERING EQUIPMENT,00702100,46.80,H G WELLS - H G WELLS - CATERING,EQUIPMENT,G100,EQUIPMENT,H G WELLS,CATERING
http://statistics.data.gov.uk/id/local-authority/43UM,WOKING BOROUGH COUNCIL,13/04/2016,0000395133/001,LUCY HAINES,01526200,300.00,CORPORATE MANAGEMENT GROUP - STAFF TRAINING/GENERAL COSTS,TRAINING - CORPORATE,A910,TRAINING - CORPORATE,CORPORATE MANAGEMENT GROUP,HUMAN RESOURCES
http://statistics.data.gov.uk/id/local-authority/43UM,WOKING BOROUGH COUNCIL,13/04/2016,0000395134/001,LUCY HAINES,01526200,395.00,CORPORATE MANAGEMENT GROUP - STAFF TRAINING/GENERAL COSTS,TRAINING - CORPORATE,A910,TRAINING - CORPORATE,CORPORATE MANAGEMENT GROUP,HUMAN RESOURCES
http://statistics.data.gov.uk/id/local-authority/43UM,WOKING BOROUGH COUNCIL,13/04/2016,0000395135/001,LUCY HAINES,01526200,600.00,CORPORATE MANAGEMENT GROUP - STAFF TRAINING/GENERAL COSTS,TRAINING - CORPORATE,A910,TRAINING - CORPORATE,CORPORATE MANAGEMENT GROUP,HUMAN RESOURCES
http://statistics.data.gov.uk/id/local-authority/43UM,WOKING BOROUGH COUNCIL,13/04/2016,0000395253/001,MARTIN CONWAY,01025900,275.00,HOUSING SERVICES - HOUSING OPTIONS,BED & BREAKFAST EXPENDITURE,H786,BED & BREAKFAST EXPENDITURE,HOUSING SERVICES,HOUSING MANAGEMENT
http://statistics.data.gov.uk/id/local-authority/43UM,WOKING BOROUGH COUNCIL,13/04/2016,0000395349/001,MARTIN CRANFIELD ASSOCIATES LTD,01474300,1183.50,NEIGHBOURHOOD SERVICES - NOISE/POLLUTION ABATE,CONSULTANTS,H670,CONSULTANTS,NEIGHBOURHOOD SERVICES,ENVIRONMENTAL SERVICES
http://statistics.data.gov.uk/id/local-authority/43UM,WOKING BOROUGH COUNCIL,13/04/2016,0000394787/001,MATTHEW CLARK WHOLESALE,00107800,1232.33,H G WELLS - H G WELLS - BAR,PROVISIONS-BAR,G450,PROVISIONS-BAR,H G WELLS,CATERING
http://statistics.data.gov.uk/id/local-authority/43UM,WOKING BOROUGH COUNCIL,13/04/2016,0000394788/001,MATTHEW CLARK WHOLESALE,00107800,1537.12,H G WELLS - H G WELLS - BAR,PROVISIONS-BAR,G450,PROVISIONS-BAR,H G WELLS,CATERING
http://statistics.data.gov.uk/id/local-authority/43UM,WOKING BOROUGH COUNCIL,13/04/2016,0000395093/001,MATTHEW CLARK WHOLESALE,00107800,831.74,H G WELLS - H G WELLS - BAR,PROVISIONS-BAR,G450,PROVISIONS-BAR,H G WELLS,CATERING
http://statistics.data.gov.uk/id/local-authority/43UM,WOKING BOROUGH COUNCIL,13/04/2016,0000395391/001,MEETINGZONE LIMITED,40488100,251.82,HOUSING SERVICES - HEATING MAINTENANCE INDIVIDUAL,NETWORK CIRCUITS,G800,NETWORK CIRCUITS,HOUSING SERVICES,FACILITIES & MANAGEMENT SERVICES
http://statistics.data.gov.uk/id/local-authority/43UM,WOKING BOROUGH COUNCIL,13/04/2016,0000395062/001,MORGAN HUNT UK LIMITED,01768500,852.72,REVENUES AND BENEFITS - CUSTOMER SERVICES,TEMPORARY STAFF,A110,TEMPORARY STAFF,REVENUES AND BENEFITS,HUMAN RESOURCES
http://statistics.data.gov.uk/id/local-authority/43UM,WOKING BOROUGH COUNCIL,13/04/2016,0000395095/001,MOTO-MARQUE LTD,00889700,100.00,ASSET MANAGEMENT - LEASED CAR INSURANCE,GARAGE REPAIR COSTS,T167,GARAGE REPAIR COSTS,ASSET MANAGEMENT,FINANCIAL SERVICES
http://statistics.data.gov.uk/id/local-authority/43UM,WOKING BOROUGH COUNCIL,13/04/2016,0000395096/001,MOTO-MARQUE LTD,00889700,100.00,ASSET MANAGEMENT - LEASED CAR INSURANCE,GARAGE REPAIR COSTS,T167,GARAGE REPAIR COSTS,ASSET MANAGEMENT,FINANCIAL SERVICES
http://statistics.data.gov.uk/id/local-authority/43UM,WOKING BOROUGH COUNCIL,13/04/2016,0000395098/001,MOTO-MARQUE LTD,00889700,100.00,ASSET MANAGEMENT - LEASED CAR INSURANCE,GARAGE REPAIR COSTS,T167,GARAGE REPAIR COSTS,ASSET MANAGEMENT,FINANCIAL SERVICES
http://statistics.data.gov.uk/id/local-authority/43UM,WOKING BOROUGH COUNCIL,13/04/2016,0000395098/002,MOTO-MARQUE LTD,00889700,195.70,ASSET MANAGEMENT - LEASED CAR INSURANCE,GARAGE REPAIR COSTS,T167,GARAGE REPAIR COSTS,ASSET MANAGEMENT,FINANCIAL SERVICES
http://statistics.data.gov.uk/id/local-authority/43UM,WOKING BOROUGH COUNCIL,13/04/2016,0000394900/001,MOUCHEL LIMITED,00113000,62.05,NEIGHBOURHOOD SERVICES - CPZ WBC FROM 25/7/05,CONSULTANTS,H670,CONSULTANTS,NEIGHBOURHOOD SERVICES,FACILITIES & MANAGEMENT SERVICES
http://statistics.data.gov.uk/id/local-authority/43UM,WOKING BOROUGH COUNCIL,13/04/2016,0000393530/001,MWUK LTD T/A ALEXANDRA,00014800,-22.50,INDEPENDENT LIVING SERVICES - MEALS SERVICE - BROCKHILL,CLOTHING/UNIFORMS,G510,CLOTHING/UNIFORMS,INDEPENDENT LIVING SERVICES,CLOTHING
http://statistics.data.gov.uk/id/local-authority/43UM,WOKING BOROUGH COUNCIL,13/04/2016,0000393531/001,MWUK LTD T/A ALEXANDRA,00014800,-22.50,INDEPENDENT LIVING SERVICES - MEALS SERVICE - BROCKHILL,CLOTHING/UNIFORMS,G510,CLOTHING/UNIFORMS,INDEPENDENT LIVING SERVICES,CLOTHING
http://statistics.data.gov.uk/id/local-authority/43UM,WOKING BOROUGH COUNCIL,13/04/2016,0000394333/001,MWUK LTD T/A ALEXANDRA,00014800,110.70,INDEPENDENT LIVING SERVICES - MEALS ON WHEELS,CLOTHING/UNIFORMS,G510,CLOTHING/UNIFORMS,INDEPENDENT LIVING SERVICES,CLOTHING
http://statistics.data.gov.uk/id/local-authority/43UM,WOKING BOROUGH COUNCIL,13/04/2016,0000394843/001,MWUK LTD T/A ALEXANDRA,00014800,54.05,INDEPENDENT LIVING SERVICES - THE VYNE,CLOTHING/UNIFORMS,G510,CLOTHING/UNIFORMS,INDEPENDENT LIVING SERVICES,CLOTHING
http://statistics.data.gov.uk/id/local-authority/43UM,WOKING BOROUGH COUNCIL,13/04/2016,0000395019/001,MWUK LTD T/A ALEXANDRA,00014800,18.00,INDEPENDENT LIVING SERVICES - MEALS SERVICE - BROCKHILL,CLOTHING/UNIFORMS,G510,CLOTHING/UNIFORMS,INDEPENDENT LIVING SERVICES,CLOTHING
http://statistics.data.gov.uk/id/local-authority/43UM,WOKING BOROUGH COUNCIL,13/04/2016,0000395401/001,NEIL HUNT,00292700,415.00,CORPORATE STRATEGY - CIVIC EVENTS,ENTERTAINERS FEES,H638,ENTERTAINERS FEES,CORPORATE STRATEGY,ARTS & LEISURE SERVICES
http://statistics.data.gov.uk/id/local-authority/43UM,WOKING BOROUGH COUNCIL,13/04/2016,0000395228/001,NOWMEDICAL,01771600,12.00,NEIGHBOURHOOD SERVICES - PRIVATE CAR HIRE LICENCE,MEDICAL ADVICE,H782,MEDICAL ADVICE,NEIGHBOURHOOD SERVICES,HEALTHCARE
http://statistics.data.gov.uk/id/local-authority/43UM,WOKING BOROUGH COUNCIL,13/04/2016,0000395228/002,NOWMEDICAL,01771600,12.00,NEIGHBOURHOOD SERVICES - TAXI LICENCES,MEDICAL ADVICE,H782,MEDICAL ADVICE,NEIGHBOURHOOD SERVICES,HEALTHCARE
http://statistics.data.gov.uk/id/local-authority/43UM,WOKING BOROUGH COUNCIL,13/04/2016,0000395183/001,NYS CORPORATE LIMITED,40465200,25.40,H G WELLS - H G WELLS - FUNCTION ROOMS,AGENTS COMMISSION,H900,AGENTS COMMISSION,H G WELLS,HUMAN RESOURCES
http://statistics.data.gov.uk/id/local-authority/43UM,WOKING BOROUGH COUNCIL,13/04/2016,0000395564/001,OFCOM,00055500,1480.00,ASSET MANAGEMENT - FACILITIES MANAGEMENT,LICENCES,H460,LICENCES,ASSET MANAGEMENT,INFORMATION COMMUNICATION TECHNOLOGY
http://statistics.data.gov.uk/id/local-authority/43UM,WOKING BOROUGH COUNCIL,13/04/2016,0000395272/001,OPTICHROME LIMITED,00078700,895.00,CORPORATE STRATEGY - PUBLIC RELATIONS,PUBLICATIONS,G606,PUBLICATIONS,CORPORATE STRATEGY,STATIONERY
http://statistics.data.gov.uk/id/local-authority/43UM,WOKING BOROUGH COUNCIL,13/04/2016,0040000683/001,OUTLINE,01164000,1125.00,CORPORATE STRATEGY - GRANTS TO ORGANISATION,GRANTS,H100,GRANTS,CORPORATE STRATEGY,FINANCIAL SERVICES
http://statistics.data.gov.uk/id/local-authority/43UM,WOKING BOROUGH COUNCIL,13/04/2016,0000394777/001,OYSTER PARTNERSHIP,40443300,1201.85,PLANNING SERVICES - TOWN PLANNING GENERAL,CONSULTANTS,H670,CONSULTANTS,PLANNING SERVICES,HUMAN RESOURCES
http://statistics.data.gov.uk/id/local-authority/43UM,WOKING BOROUGH COUNCIL,13/04/2016,0000394795/001,OYSTER PARTNERSHIP,40443300,659.76,NEIGHBOURHOOD SERVICES - EAST NEIGHBOURHOOD TEAM,TEMPORARY STAFF,A110,TEMPORARY STAFF,NEIGHBOURHOOD SERVICES,HUMAN RESOURCES
http://statistics.data.gov.uk/id/local-authority/43UM,WOKING BOROUGH COUNCIL,13/04/2016,0000394917/001,OYSTER PARTNERSHIP,40443300,687.84,NEIGHBOURHOOD SERVICES - EAST NEIGHBOURHOOD TEAM,TEMPORARY STAFF,A110,TEMPORARY STAFF,NEIGHBOURHOOD SERVICES,HUMAN RESOURCES
http://statistics.data.gov.uk/id/local-authority/43UM,WOKING BOROUGH COUNCIL,13/04/2016,0000395269/001,OYSTER PARTNERSHIP,40443300,1199.25,PLANNING SERVICES - DEVELOPMENT CONTROL,TEMPORARY STAFF,A110,TEMPORARY STAFF,PLANNING SERVICES,HUMAN RESOURCES
http://statistics.data.gov.uk/id/local-authority/43UM,WOKING BOROUGH COUNCIL,13/04/2016,0000395139/001,PALLAVI SHARAN,40570100,3.58,INDEPENDENT LIVING SERVICES - FAMILY SUPPORT PROGRAMME,PARKING COSTS,F510,PARKING COSTS,INDEPENDENT LIVING SERVICES,HUMAN RESOURCES
http://statistics.data.gov.uk/id/local-authority/43UM,WOKING BOROUGH COUNCIL,13/04/2016,0000395139/002,PALLAVI SHARAN,40570100,3.84,INDEPENDENT LIVING SERVICES - FAMILY SUPPORT PROGRAMME,FAMILY ENABLING (FSP PROJECT),H137,FAMILY ENABLING (FSP PROJECT),INDEPENDENT LIVING SERVICES,HUMAN RESOURCES
http://statistics.data.gov.uk/id/local-authority/43UM,WOKING BOROUGH COUNCIL,13/04/2016,0000395205/001,PARITY TRUST,40057300,4750.00,HOUSING SERVICES - PRIVATE SECTOR HOUSING,SUBSCRIPTIONS,H110,SUBSCRIPTIONS,HOUSING SERVICES,FINANCIAL SERVICES
http://statistics.data.gov.uk/id/local-authority/43UM,WOKING BOROUGH COUNCIL,13/04/2016,0000395225/001,PEEKS OF BOURNEMOUTH LTD,01505700,64.65,INDEPENDENT LIVING SERVICES - INDEPENDENT LIV SERV GEN EXPEN,FREDA EBEL BEQUEST,H352,FREDA EBEL BEQUEST,INDEPENDENT LIVING SERVICES,FACILITIES & MANAGEMENT SERVICES
http://statistics.data.gov.uk/id/local-authority/43UM,WOKING BOROUGH COUNCIL,13/04/2016,0000394554/001,PERSONNEL SELECTION ASSOCIATES LIMITED,00061400,450.28,INDEPENDENT LIVING SERVICES - MEALS SERVICE,TEMPORARY STAFF,A110,TEMPORARY STAFF,INDEPENDENT LIVING SERVICES,HUMAN RESOURCES
http://statistics.data.gov.uk/id/local-authority/43UM,WOKING BOROUGH COUNCIL,13/04/2016,0000394805/001,PERSONNEL SELECTION ASSOCIATES LIMITED,00061400,292.95,INDEPENDENT LIVING SERVICES - MEALS SERVICE,TEMPORARY STAFF,A110,TEMPORARY STAFF,INDEPENDENT LIVING SERVICES,HUMAN RESOURCES
http://statistics.data.gov.uk/id/local-authority/43UM,WOKING BOROUGH COUNCIL,13/04/2016,0000395197/001,PERSONNEL SELECTION ASSOCIATES LIMITED,00061400,141.05,INDEPENDENT LIVING SERVICES - MEALS SERVICE,TEMPORARY STAFF,A110,TEMPORARY STAFF,INDEPENDENT LIVING SERVICES,HUMAN RESOURCES
http://statistics.data.gov.uk/id/local-authority/43UM,WOKING BOROUGH COUNCIL,13/04/2016,0000395307/001,PERSONNEL SELECTION ASSOCIATES LIMITED,00061400,233.00,INDEPENDENT LIVING SERVICES - ST. MARY'S,TEMPORARY STAFF,A110,TEMPORARY STAFF,INDEPENDENT LIVING SERVICES,HUMAN RESOURCES
http://statistics.data.gov.uk/id/local-authority/43UM,WOKING BOROUGH COUNCIL,13/04/2016,0000395308/001,PERSONNEL SELECTION ASSOCIATES LIMITED,00061400,291.25,INDEPENDENT LIVING SERVICES - ST. MARY'S,TEMPORARY STAFF,A110,TEMPORARY STAFF,INDEPENDENT LIVING SERVICES,HUMAN RESOURCES
http://statistics.data.gov.uk/id/local-authority/43UM,WOKING BOROUGH COUNCIL,13/04/2016,0000395309/001,PERSONNEL SELECTION ASSOCIATES LIMITED,00061400,291.25,INDEPENDENT LIVING SERVICES - ST. MARY'S,TEMPORARY STAFF,A110,TEMPORARY STAFF,INDEPENDENT LIVING SERVICES,HUMAN RESOURCES
http://statistics.data.gov.uk/id/local-authority/43UM,WOKING BOROUGH COUNCIL,13/04/2016,0000395310/001,PERSONNEL SELECTION ASSOCIATES LIMITED,00061400,87.38,INDEPENDENT LIVING SERVICES - ST. MARY'S,TEMPORARY STAFF,A110,TEMPORARY STAFF,INDEPENDENT LIVING SERVICES,HUMAN RESOURCES
http://statistics.data.gov.uk/id/local-authority/43UM,WOKING BOROUGH COUNCIL,13/04/2016,0000395605/001,PERSONNEL SELECTION ASSOCIATES LIMITED,00061400,249.55,INDEPENDENT LIVING SERVICES - MEALS SERVICE,TEMPORARY STAFF,A110,TEMPORARY STAFF,INDEPENDENT LIVING SERVICES,HUMAN RESOURCES
http://statistics.data.gov.uk/id/local-authority/43UM,WOKING BOROUGH COUNCIL,13/04/2016,0000395184/001,PHS GROUP,00020700,58.31,H G WELLS - H G WELLS - FUNCTION ROOMS,PERSONAL HYGIENE,D940,PERSONAL HYGIENE,H G WELLS,FACILITIES & MANAGEMENT SERVICES
http://statistics.data.gov.uk/id/local-authority/43UM,WOKING BOROUGH COUNCIL,13/04/2016,0000395520/001,PPL,00039300,188.34,INDEPENDENT LIVING SERVICES - MOORCROFT,LICENCES,H460,LICENCES,INDEPENDENT LIVING SERVICES,FACILITIES & MANAGEMENT SERVICES
http://statistics.data.gov.uk/id/local-authority/43UM,WOKING BOROUGH COUNCIL,13/04/2016,0000395520/002,PPL,00039300,128.49,INDEPENDENT LIVING SERVICES - PARKVIEW,LICENCES,H460,LICENCES,INDEPENDENT LIVING SERVICES,FACILITIES & MANAGEMENT SERVICES
http://statistics.data.gov.uk/id/local-authority/43UM,WOKING BOROUGH COUNCIL,13/04/2016,0000395520/003,PPL,00039300,379.34,INDEPENDENT LIVING SERVICES - ST MARY'S DAY CENTRE,LICENCES,H460,LICENCES,INDEPENDENT LIVING SERVICES,FACILITIES & MANAGEMENT SERVICES
http://statistics.data.gov.uk/id/local-authority/43UM,WOKING BOROUGH COUNCIL,13/04/2016,0000395520/004,PPL,00039300,557.51,INDEPENDENT LIVING SERVICES - THE VYNE,LICENCES,H460,LICENCES,INDEPENDENT LIVING SERVICES,FACILITIES & MANAGEMENT SERVICES
http://statistics.data.gov.uk/id/local-authority/43UM,WOKING BOROUGH COUNCIL,13/04/2016,0000395220/001,PREMIO64 LTD,40570500,750.00,CORPORATE STRATEGY - TOWN CENTRE FORUM,ECDEV BUSINESS ENGAGEMENT,H411,ECDEV BUSINESS ENGAGEMENT,CORPORATE STRATEGY,CONSULTANCY
http://statistics.data.gov.uk/id/local-authority/43UM,WOKING BOROUGH COUNCIL,13/04/2016,0000395220/002,PREMIO64 LTD,40570500,750.00,CORPORATE STRATEGY - PUBLIC RELATIONS,PROMOTIONS & GRANTS,H467,PROMOTIONS & GRANTS,CORPORATE STRATEGY,CONSULTANCY
http://statistics.data.gov.uk/id/local-authority/43UM,WOKING BOROUGH COUNCIL,13/04/2016,GPC/668094314,PRET A MANGER,PROCUREMENT CARD,8.11,ASSET MANAGEMENT - VALUATION SERVICES,MEETING EXPENSES,A791,EFA MEETING WITH CHIEF EXEC / LEGAL,IAN M TOMES,EATING PLACES RESTAURANTS
http://statistics.data.gov.uk/id/local-authority/43UM,WOKING BOROUGH COUNCIL,13/04/2016,0000395434/001,PROFESSIONAL FEES OF MISS POONAM PATTNI,40542300,300.00,NEIGHBOURHOOD SERVICES - HMO LICENCES,COURT COSTS,H620,COURT COSTS,NEIGHBOURHOOD SERVICES,LEGAL SERVICES
http://statistics.data.gov.uk/id/local-authority/43UM,WOKING BOROUGH COUNCIL,13/04/2016,0000394757/001,PROJECT114 LTD,40370300,700.00,HOUSING SERVICES - HOUSING OPTIONS,BED & BREAKFAST EXPENDITURE,H786,BED & BREAKFAST EXPENDITURE,HOUSING SERVICES,HOUSING MANAGEMENT
http://statistics.data.gov.uk/id/local-authority/43UM,WOKING BOROUGH COUNCIL,13/04/2016,0000394758/001,PROJECT114 LTD,40370300,700.00,HOUSING SERVICES - HOUSING OPTIONS,BED & BREAKFAST EXPENDITURE,H786,BED & BREAKFAST EXPENDITURE,HOUSING SERVICES,HOUSING MANAGEMENT
http://statistics.data.gov.uk/id/local-authority/43UM,WOKING BOROUGH COUNCIL,13/04/2016,0000394759/001,PROJECT114 LTD,40370300,770.00,HOUSING SERVICES - HOUSING OPTIONS,BED & BREAKFAST EXPENDITURE,H786,BED & BREAKFAST EXPENDITURE,HOUSING SERVICES,HOUSING MANAGEMENT
http://statistics.data.gov.uk/id/local-authority/43UM,WOKING BOROUGH COUNCIL,13/04/2016,0000394760/001,PROJECT114 LTD,40370300,770.00,HOUSING SERVICES - HOUSING OPTIONS,BED & BREAKFAST EXPENDITURE,H786,BED & BREAKFAST EXPENDITURE,HOUSING SERVICES,HOUSING MANAGEMENT
http://statistics.data.gov.uk/id/local-authority/43UM,WOKING BOROUGH COUNCIL,13/04/2016,0000394761/001,PROJECT114 LTD,40370300,700.00,HOUSING SERVICES - HOUSING OPTIONS,BED & BREAKFAST EXPENDITURE,H786,BED & BREAKFAST EXPENDITURE,HOUSING SERVICES,HOUSING MANAGEMENT
http://statistics.data.gov.uk/id/local-authority/43UM,WOKING BOROUGH COUNCIL,13/04/2016,0000394762/001,PROJECT114 LTD,40370300,300.00,HOUSING SERVICES - HOUSING OPTIONS,BED & BREAKFAST EXPENDITURE,H786,BED & BREAKFAST EXPENDITURE,HOUSING SERVICES,HOUSING MANAGEMENT
http://statistics.data.gov.uk/id/local-authority/43UM,WOKING BOROUGH COUNCIL,13/04/2016,0000394763/001,PROJECT114 LTD,40370300,560.00,HOUSING SERVICES - HOUSING OPTIONS,BED & BREAKFAST EXPENDITURE,H786,BED & BREAKFAST EXPENDITURE,HOUSING SERVICES,HOUSING MANAGEMENT
http://statistics.data.gov.uk/id/local-authority/43UM,WOKING BOROUGH COUNCIL,13/04/2016,0000394764/001,PROJECT114 LTD,40370300,700.00,HOUSING SERVICES - HOUSING OPTIONS,BED & BREAKFAST EXPENDITURE,H786,BED & BREAKFAST EXPENDITURE,HOUSING SERVICES,HOUSING MANAGEMENT
http://statistics.data.gov.uk/id/local-authority/43UM,WOKING BOROUGH COUNCIL,13/04/2016,0000394765/001,PROJECT114 LTD,40370300,700.00,HOUSING SERVICES - HOUSING OPTIONS,BED & BREAKFAST EXPENDITURE,H786,BED & BREAKFAST EXPENDITURE,HOUSING SERVICES,HOUSING MANAGEMENT
http://statistics.data.gov.uk/id/local-authority/43UM,WOKING BOROUGH COUNCIL,13/04/2016,0000394766/001,PROJECT114 LTD,40370300,560.00,HOUSING SERVICES - HOUSING OPTIONS,BED & BREAKFAST EXPENDITURE,H786,BED & BREAKFAST EXPENDITURE,HOUSING SERVICES,HOUSING MANAGEMENT
http://statistics.data.gov.uk/id/local-authority/43UM,WOKING BOROUGH COUNCIL,13/04/2016,0000394767/001,PROJECT114 LTD,40370300,350.00,HOUSING SERVICES - HOUSING OPTIONS,BED & BREAKFAST EXPENDITURE,H786,BED & BREAKFAST EXPENDITURE,HOUSING SERVICES,HOUSING MANAGEMENT
http://statistics.data.gov.uk/id/local-authority/43UM,WOKING BOROUGH COUNCIL,13/04/2016,0000395210/001,PROLUDIC LTD,01354100,5669.00,CORPORATE STRATEGY - P/BRIGHT ARMY TRNING CNTR PLAY,OTHER CONSULTANTS,Q430,OTHER CONSULTANTS,CORPORATE STRATEGY,SPORTS & PLAYGROUND EQUIP & MAINTENANCE
http://statistics.data.gov.uk/id/local-authority/43UM,WOKING BOROUGH COUNCIL,13/04/2016,0000394270/001,PUBLIC I,40363900,13807.00,INFORMATION TECHNOLOGY - I.T.S. ICT,HOSTED SYSTEMS,G198,HOSTED SYSTEMS,INFORMATION TECHNOLOGY,INFORMATION COMMUNICATION TECHNOLOGY
http://statistics.data.gov.uk/id/local-authority/43UM,WOKING BOROUGH COUNCIL,13/04/2016,0000395044/001,PUBLIC I,40363900,-13807.00,INFORMATION TECHNOLOGY - I.T.S. ICT,HOSTED SYSTEMS,G198,HOSTED SYSTEMS,INFORMATION TECHNOLOGY,INFORMATION COMMUNICATION TECHNOLOGY
http://statistics.data.gov.uk/id/local-authority/43UM,WOKING BOROUGH COUNCIL,13/04/2016,0000395168/001,RECOGNITION EXPRESS,01926600,412.50,H G WELLS - H G WELLS - FUNCTION ROOMS,ADVERTISING,H400,ADVERTISING,H G WELLS,CLOTHING
http://statistics.data.gov.uk/id/local-authority/43UM,WOKING BOROUGH COUNCIL,13/04/2016,0000394454/001,REFLEX WOKING,40267800,4000.00,LEISURE SERVICES - FOOTBALL IN THE COMMUNITY,CONTRIBUTIONS,H101,CONTRIBUTIONS,LEISURE SERVICES,SOCIAL COMMUNITY CARE SUP & SERV (CHILD)
http://statistics.data.gov.uk/id/local-authority/43UM,WOKING BOROUGH COUNCIL,13/04/2016,0000395731/001,RODNIC (DORSET) LTD,40539600,2657.00,ASSET MANAGEMENT - FACILITIES MANAGEMENT,FACILITIES MANAGEMENT REPAIRS,D908,FACILITIES MANAGEMENT REPAIRS,ASSET MANAGEMENT,WORKS (CONSTRUCTION REPAIR MAINTENANCE)
http://statistics.data.gov.uk/id/local-authority/43UM,WOKING BOROUGH COUNCIL,13/04/2016,0000394810/001,ROYAL MAIL GROUP LTD,00040000,299.92,CORPORATE STRATEGY - POSTAGE,POSTAGE - STANDARD TARIFF,G700,POSTAGE - STANDARD TARIFF,CORPORATE STRATEGY,MAIL SERVICES
http://statistics.data.gov.uk/id/local-authority/43UM,WOKING BOROUGH COUNCIL,13/04/2016,0000395686/001,ROYAL NAVAL ASSOCIATION WOKING,40033500,15.00,CORPORATE STRATEGY - CIVIC EXPENSES,MAYORS ALLOWANCE-CURRENT,H250,MAYORS ALLOWANCE-CURRENT,CORPORATE STRATEGY,HUMAN RESOURCES
http://statistics.data.gov.uk/id/local-authority/43UM,WOKING BOROUGH COUNCIL,13/04/2016,0000395099/001,RUSSELL ELLIS,01826200,24.50,PLANNING SERVICES - PLANNING SERVICES GENERAL EXPE,TRAVEL EXPENSES-OFFICERS,F600,TRAVEL EXPENSES-OFFICERS,PLANNING SERVICES,HUMAN RESOURCES
http://statistics.data.gov.uk/id/local-authority/43UM,WOKING BOROUGH COUNCIL,13/04/2016,GPC/668094748,SAINSBURY'S S/MKT,PROCUREMENT CARD,9.95,H G WELLS - H G WELLS - CATERING,PROVISIONS-FOOD,G440,HG WELLS KITCHEN FOOD,MR S P SINCLAIR,GROCERY STORES SUPERMARKETS
http://statistics.data.gov.uk/id/local-authority/43UM,WOKING BOROUGH COUNCIL,13/04/2016,0000394827/001,SAVILLS (UK) LTD,01581900,4837.48,ASSET MANAGEMENT - PEACOCKS - THEATRES & CINEMAS,SERVICE CHARGE,D510,SERVICE CHARGE,ASSET MANAGEMENT,FACILITIES & MANAGEMENT SERVICES
http://statistics.data.gov.uk/id/local-authority/43UM,WOKING BOROUGH COUNCIL,13/04/2016,0000394868/001,SCALABLE COMMUNICATIONS T/A ALTERNATIVE,01463300,14499.56,INFORMATION TECHNOLOGY - I.T.S. ICT,EQUIPMENT REPAIR & MAINTENANCE,G120,EQUIPMENT REPAIR & MAINTENANCE,INFORMATION TECHNOLOGY,INFORMATION COMMUNICATION TECHNOLOGY
http://statistics.data.gov.uk/id/local-authority/43UM,WOKING BOROUGH COUNCIL,13/04/2016,0000395751/001,SCALABLE COMMUNICATIONS T/A ALTERNATIVE,01463300,8240.00,INFORMATION TECHNOLOGY - I.T.S. ICT,EQUIPMENT REPAIR & MAINTENANCE,G120,EQUIPMENT REPAIR & MAINTENANCE,INFORMATION TECHNOLOGY,INFORMATION COMMUNICATION TECHNOLOGY
http://statistics.data.gov.uk/id/local-authority/43UM,WOKING BOROUGH COUNCIL,13/04/2016,0000394555/001,SCATTERGOODS AGENCY LTD,00094600,423.75,INDEPENDENT LIVING SERVICES - MEALS SERVICE,TEMPORARY STAFF,A110,TEMPORARY STAFF,INDEPENDENT LIVING SERVICES,HUMAN RESOURCES
http://statistics.data.gov.uk/id/local-authority/43UM,WOKING BOROUGH COUNCIL,13/04/2016,0000394556/001,SCATTERGOODS AGENCY LTD,00094600,355.95,INDEPENDENT LIVING SERVICES - MEALS SERVICE,TEMPORARY STAFF,A110,TEMPORARY STAFF,INDEPENDENT LIVING SERVICES,HUMAN RESOURCES
http://statistics.data.gov.uk/id/local-authority/43UM,WOKING BOROUGH COUNCIL,13/04/2016,0000394642/001,SCATTERGOODS AGENCY LTD,00094600,254.25,INDEPENDENT LIVING SERVICES - MEALS SERVICE,TEMPORARY STAFF,A110,TEMPORARY STAFF,INDEPENDENT LIVING SERVICES,HUMAN RESOURCES
http://statistics.data.gov.uk/id/local-authority/43UM,WOKING BOROUGH COUNCIL,13/04/2016,0000394643/001,SCATTERGOODS AGENCY LTD,00094600,423.75,INDEPENDENT LIVING SERVICES - MEALS SERVICE,TEMPORARY STAFF,A110,TEMPORARY STAFF,INDEPENDENT LIVING SERVICES,HUMAN RESOURCES
http://statistics.data.gov.uk/id/local-authority/43UM,WOKING BOROUGH COUNCIL,13/04/2016,0000394644/001,SCATTERGOODS AGENCY LTD,00094600,423.75,INDEPENDENT LIVING SERVICES - MEALS SERVICE,TEMPORARY STAFF,A110,TEMPORARY STAFF,INDEPENDENT LIVING SERVICES,HUMAN RESOURCES
http://statistics.data.gov.uk/id/local-authority/43UM,WOKING BOROUGH COUNCIL,13/04/2016,0000395195/001,SCATTERGOODS AGENCY LTD,00094600,423.75,INDEPENDENT LIVING SERVICES - MEALS SERVICE,TEMPORARY STAFF,A110,TEMPORARY STAFF,INDEPENDENT LIVING SERVICES,HUMAN RESOURCES
http://statistics.data.gov.uk/id/local-authority/43UM,WOKING BOROUGH COUNCIL,13/04/2016,0000395196/001,SCATTERGOODS AGENCY LTD,00094600,423.75,INDEPENDENT LIVING SERVICES - MEALS SERVICE,TEMPORARY STAFF,A110,TEMPORARY STAFF,INDEPENDENT LIVING SERVICES,HUMAN RESOURCES
http://statistics.data.gov.uk/id/local-authority/43UM,WOKING BOROUGH COUNCIL,13/04/2016,0000395432/001,SCATTERGOODS AGENCY LTD,00094600,254.25,INDEPENDENT LIVING SERVICES - MEALS SERVICE,TEMPORARY STAFF,A110,TEMPORARY STAFF,INDEPENDENT LIVING SERVICES,HUMAN RESOURCES
http://statistics.data.gov.uk/id/local-authority/43UM,WOKING BOROUGH COUNCIL,13/04/2016,0000395433/001,SCATTERGOODS AGENCY LTD,00094600,339.00,INDEPENDENT LIVING SERVICES - MEALS SERVICE,TEMPORARY STAFF,A110,TEMPORARY STAFF,INDEPENDENT LIVING SERVICES,HUMAN RESOURCES
http://statistics.data.gov.uk/id/local-authority/43UM,WOKING BOROUGH COUNCIL,13/04/2016,0000394098/001,SERCO LTD,01380600,552.00,NEIGHBOURHOOD SERVICES - PARKS-GENERAL,PLAY EQUIPMENT,G167,PLAY EQUIPMENT,NEIGHBOURHOOD SERVICES,CLEANING & JANITORIAL
http://statistics.data.gov.uk/id/local-authority/43UM,WOKING BOROUGH COUNCIL,13/04/2016,0000395673/001,SEYMOURS LETTINGS & MANAGEMENT,01919500,322.00,HOUSING SERVICES - HOUSING OPTIONS DEPOSITS,DEPOSITS,T720,DEPOSITS,HOUSING SERVICES,FACILITIES & MANAGEMENT SERVICES
http://statistics.data.gov.uk/id/local-authority/43UM,WOKING BOROUGH COUNCIL,13/04/2016,0000395138/001,SHARP CAT LTD,40073500,2608.89,CORPORATE STRATEGY - POSTAGE,POSTAGE - STANDARD TARIFF,G700,POSTAGE - STANDARD TARIFF,CORPORATE STRATEGY,MAIL SERVICES
http://statistics.data.gov.uk/id/local-authority/43UM,WOKING BOROUGH COUNCIL,13/04/2016,0000395732/001,SHERBOURNE FARM,01992400,300.00,CORPORATE STRATEGY - CIVIC SERVICE,PRINTING EXTERNAL,G600,PRINTING EXTERNAL,CORPORATE STRATEGY,HORTICULTURAL (INCLUDES AGRICULTURE)
http://statistics.data.gov.uk/id/local-authority/43UM,WOKING BOROUGH COUNCIL,13/04/2016,0000395733/001,SHERBOURNE FARM,01992400,1110.00,CORPORATE STRATEGY - CIVIC BALL,FLORAL DECORATION,H902,FLORAL DECORATION,CORPORATE STRATEGY,HORTICULTURAL (INCLUDES AGRICULTURE)
http://statistics.data.gov.uk/id/local-authority/43UM,WOKING BOROUGH COUNCIL,13/04/2016,0000395571/001,SIGNWAY SUPPLIES (DATCHET) LTD,00411200,383.62,ASSET MANAGEMENT - UNIT 15A MON WAY EAST,R&M BUILDINGS - CONTRACTORS,D100,R&M BUILDINGS - CONTRACTORS,ASSET MANAGEMENT,WORKS (CONSTRUCTION REPAIR MAINTENANCE)
http://statistics.data.gov.uk/id/local-authority/43UM,WOKING BOROUGH COUNCIL,13/04/2016,0000395392/001,SILVER TRAINING IT LTD,40521400,1800.00,HOUSING SERVICES - HRA TENANT FINANCIAL INCLUSION,CONTRIBUTIONS,H101,CONTRIBUTIONS,HOUSING SERVICES,HUMAN RESOURCES
http://statistics.data.gov.uk/id/local-authority/43UM,WOKING BOROUGH COUNCIL,13/04/2016,0000395115/001,SOIREES AT BREINTON,40492300,16.00,CORPORATE STRATEGY - CIVIC EXPENSES,MAYORS ALLOWANCE-CURRENT,H250,MAYORS ALLOWANCE-CURRENT,CORPORATE STRATEGY,ARTS & LEISURE SERVICES
http://statistics.data.gov.uk/id/local-authority/43UM,WOKING BOROUGH COUNCIL,13/04/2016,0000394814/001,SOUTHERN ELECTRIC,01079500,1675.48,HOUSING SERVICES - ENERGY,GAS,D420,GAS,HOUSING SERVICES,UTILITIES
http://statistics.data.gov.uk/id/local-authority/43UM,WOKING BOROUGH COUNCIL,13/04/2016,0000395497/001,STRATA PANELS UK,40571900,1372.75,CORPORATE STRATEGY - BOROUGH ELECTIONS,EQUIPMENT,G100,EQUIPMENT,CORPORATE STRATEGY,FACILITIES & MANAGEMENT SERVICES
http://statistics.data.gov.uk/id/local-authority/43UM,WOKING BOROUGH COUNCIL,13/04/2016,0000395704/001,SURREY CEILINGS LTD,00001200,192.00,ASSET MANAGEMENT - FACILITIES MANAGEMENT,FACILITIES MANAGEMENT REPAIRS,D908,FACILITIES MANAGEMENT REPAIRS,ASSET MANAGEMENT,WORKS (CONSTRUCTION REPAIR MAINTENANCE)
http://statistics.data.gov.uk/id/local-authority/43UM,WOKING BOROUGH COUNCIL,13/04/2016,0000395508/001,SURREY HEATH BOROUGH COUNCIL,00898100,3535.67,NEIGHBOURHOOD SERVICES - �GROUNDS MAINTENANCE PROCUREMEN,MAIN CONTRACTOR,Q200,MAIN CONTRACTOR,NEIGHBOURHOOD SERVICES,WORKS (CONSTRUCTION REPAIR MAINTENANCE)
http://statistics.data.gov.uk/id/local-authority/43UM,WOKING BOROUGH COUNCIL,13/04/2016,0040000680/001,SURREY WELFARE RIGHTS UNIT,01238300,2500.00,CORPORATE STRATEGY - GRANTS TO ORGANISATION,GRANTS,H100,GRANTS,CORPORATE STRATEGY,FINANCIAL SERVICES
http://statistics.data.gov.uk/id/local-authority/43UM,WOKING BOROUGH COUNCIL,13/04/2016,0040000677/001,SURREY.DISABLED PEOPLE'S PARTNERSHIP,01752000,5250.00,CORPORATE STRATEGY - GRANTS TO ORGANISATION,GRANTS,H100,GRANTS,CORPORATE STRATEGY,FINANCIAL SERVICES
http://statistics.data.gov.uk/id/local-authority/43UM,WOKING BOROUGH COUNCIL,13/04/2016,0000395705/001,SWITCHSURE FINANCE LIMITED,40078100,24273.00,HOUSING SERVICES - NTL,R&M BUILDINGS - CONTRACTORS,D100,R&M BUILDINGS - CONTRACTORS,HOUSING SERVICES,WORKS (CONSTRUCTION REPAIR MAINTENANCE)
http://statistics.data.gov.uk/id/local-authority/43UM,WOKING BOROUGH COUNCIL,13/04/2016,0000395179/001,T J WRENCH LTD,00925500,138.00,H G WELLS - H G WELLS - FUNCTION ROOMS,PIANO TUNING,G168,PIANO TUNING,H G WELLS,ARTS & LEISURE SERVICES
http://statistics.data.gov.uk/id/local-authority/43UM,WOKING BOROUGH COUNCIL,13/04/2016,0000395078/001,TALK,01169000,34.00,CORPORATE STRATEGY - CIVIC EXPENSES,MAYORS ALLOWANCE-CURRENT,H250,MAYORS ALLOWANCE-CURRENT,CORPORATE STRATEGY,FINANCIAL SERVICES
http://statistics.data.gov.uk/id/local-authority/43UM,WOKING BOROUGH COUNCIL,13/04/2016,0000395394/001,TANGO SECURITY LTD,01708900,124.00,NEIGHBOURHOOD SERVICES - PRIVATE CAR HIRE LICENCE,TAXI MARSHAL,H434,TAXI MARSHAL,NEIGHBOURHOOD SERVICES,FACILITIES & MANAGEMENT SERVICES
http://statistics.data.gov.uk/id/local-authority/43UM,WOKING BOROUGH COUNCIL,13/04/2016,0000395394/002,TANGO SECURITY LTD,01708900,188.00,NEIGHBOURHOOD SERVICES - TAXI LICENCES,TAXI MARSHAL,H434,TAXI MARSHAL,NEIGHBOURHOOD SERVICES,FACILITIES & MANAGEMENT SERVICES
http://statistics.data.gov.uk/id/local-authority/43UM,WOKING BOROUGH COUNCIL,13/04/2016,0000395633/001,TG MEDIA GROUP T/A GOOD TIME GUIDE LTD,40440400,400.00,CORPORATE STRATEGY - BOROUGH ELECTIONS,PUBLICITY,H405,PUBLICITY,CORPORATE STRATEGY,FACILITIES & MANAGEMENT SERVICES
http://statistics.data.gov.uk/id/local-authority/43UM,WOKING BOROUGH COUNCIL,13/04/2016,0000395034/001,THAMESWEY ENERGY LIMITED,01142300,21283.80,CORPORATE STRATEGY - LEISURE MANAGEMENT CONTRACT,TEL GAS/HEATING,D481,TEL GAS/HEATING,CORPORATE STRATEGY,UTILITIES
http://statistics.data.gov.uk/id/local-authority/43UM,WOKING BOROUGH COUNCIL,13/04/2016,0000395037/001,THAMESWEY ENERGY LIMITED,01142300,21056.24,CORPORATE STRATEGY - LEISURE MANAGEMENT CONTRACT,TEL GAS/HEATING,D481,TEL GAS/HEATING,CORPORATE STRATEGY,UTILITIES
http://statistics.data.gov.uk/id/local-authority/43UM,WOKING BOROUGH COUNCIL,13/04/2016,0000395040/001,THAMESWEY ENERGY LIMITED,01142300,16393.98,CORPORATE STRATEGY - LEISURE MANAGEMENT CONTRACT,TEL ELECTRICITY,D480,TEL ELECTRICITY,CORPORATE STRATEGY,UTILITIES
http://statistics.data.gov.uk/id/local-authority/43UM,WOKING BOROUGH COUNCIL,13/04/2016,0000395041/001,THAMESWEY ENERGY LIMITED,01142300,11405.89,CORPORATE STRATEGY - LEISURE MANAGEMENT CONTRACT,TEL ELECTRICITY,D480,TEL ELECTRICITY,CORPORATE STRATEGY,UTILITIES
http://statistics.data.gov.uk/id/local-authority/43UM,WOKING BOROUGH COUNCIL,13/04/2016,0000395042/001,THAMESWEY ENERGY LIMITED,01142300,10276.85,CORPORATE STRATEGY - LEISURE MANAGEMENT CONTRACT,TEL ELECTRICITY,D480,TEL ELECTRICITY,CORPORATE STRATEGY,UTILITIES
http://statistics.data.gov.uk/id/local-authority/43UM,WOKING BOROUGH COUNCIL,13/04/2016,0000395190/001,THAMESWEY ENERGY LIMITED,01142300,1595.36,INDEPENDENT LIVING SERVICES - ST MARY'S DAY CENTRE,TEL ELECTRICITY,D480,TEL ELECTRICITY,INDEPENDENT LIVING SERVICES,UTILITIES
http://statistics.data.gov.uk/id/local-authority/43UM,WOKING BOROUGH COUNCIL,13/04/2016,0000395192/001,THAMESWEY ENERGY LIMITED,01142300,1658.37,INDEPENDENT LIVING SERVICES - ST MARY'S DAY CENTRE,TEL ELECTRICITY,D480,TEL ELECTRICITY,INDEPENDENT LIVING SERVICES,UTILITIES
http://statistics.data.gov.uk/id/local-authority/43UM,WOKING BOROUGH COUNCIL,13/04/2016,0000395193/001,THAMESWEY ENERGY LIMITED,01142300,1579.14,INDEPENDENT LIVING SERVICES - ST MARY'S DAY CENTRE,TEL ELECTRICITY,D480,TEL ELECTRICITY,INDEPENDENT LIVING SERVICES,UTILITIES
http://statistics.data.gov.uk/id/local-authority/43UM,WOKING BOROUGH COUNCIL,13/04/2016,0000395295/001,THAMESWEY ENERGY LIMITED,01142300,-3842.14,CORPORATE STRATEGY - LEISURE MANAGEMENT CONTRACT,TEL ELECTRICITY,D480,TEL ELECTRICITY,CORPORATE STRATEGY,UTILITIES
http://statistics.data.gov.uk/id/local-authority/43UM,WOKING BOROUGH COUNCIL,13/04/2016,0000395296/001,THAMESWEY ENERGY LIMITED,01142300,-11.17,CORPORATE STRATEGY - LEISURE MANAGEMENT CONTRACT,TEL ELECTRICITY,D480,TEL ELECTRICITY,CORPORATE STRATEGY,UTILITIES
http://statistics.data.gov.uk/id/local-authority/43UM,WOKING BOROUGH COUNCIL,13/04/2016,0000395636/001,THAMESWEY MAINTENANCE SERVICES LIMITED,40007000,11870.68,HOUSING SERVICES - PLANT ROOM UPGRADE - TMSL,MAIN CONTRACTOR,Q200,MAIN CONTRACTOR,HOUSING SERVICES,WORKS (CONSTRUCTION REPAIR MAINTENANCE)
http://statistics.data.gov.uk/id/local-authority/43UM,WOKING BOROUGH COUNCIL,13/04/2016,0000395637/001,THAMESWEY MAINTENANCE SERVICES LIMITED,40007000,25357.32,HOUSING SERVICES - PLANT ROOM UPGRADE - TMSL,MAIN CONTRACTOR,Q200,MAIN CONTRACTOR,HOUSING SERVICES,WORKS (CONSTRUCTION REPAIR MAINTENANCE)
http://statistics.data.gov.uk/id/local-authority/43UM,WOKING BOROUGH COUNCIL,13/04/2016,0000395219/001,THE HALO WORKS LTD,01969000,4157.66,HOUSING SERVICES - HRA MARKET TESTING,CONSULTANTS,H670,CONSULTANTS,HOUSING SERVICES,CONSULTANCY
http://statistics.data.gov.uk/id/local-authority/43UM,WOKING BOROUGH COUNCIL,13/04/2016,0000395537/001,THE LIGHTBOX,01952400,1106.50,NEIGHBOURHOOD SERVICES - CELBT WOK-HGWELLS 150TH CELBTN,MAIN CONTRACTOR,Q200,MAIN CONTRACTOR,NEIGHBOURHOOD SERVICES,CATERING
http://statistics.data.gov.uk/id/local-authority/43UM,WOKING BOROUGH COUNCIL,13/04/2016,0000395303/001,THE MAYBURY CENTRE TRUST,00062600,143.39,NEIGHBOURHOOD SERVICES - EQUALITIES,PUBLICITY,H405,PUBLICITY,NEIGHBOURHOOD SERVICES,FINANCIAL SERVICES
http://statistics.data.gov.uk/id/local-authority/43UM,WOKING BOROUGH COUNCIL,13/04/2016,0040000679/001,THE MAYBURY CENTRE TRUST,00062600,7920.75,CORPORATE STRATEGY - GRANTS TO ORGANISATION,GRANTS,H100,GRANTS,CORPORATE STRATEGY,FINANCIAL SERVICES
http://statistics.data.gov.uk/id/local-authority/43UM,WOKING BOROUGH COUNCIL,13/04/2016,0000395484/001,THOMAS FATTORINI LTD,00121200,1418.75,CORPORATE STRATEGY - CIVIC EXPENSES,CIVIC REGALIA,H320,CIVIC REGALIA,CORPORATE STRATEGY,FACILITIES & MANAGEMENT SERVICES
http://statistics.data.gov.uk/id/local-authority/43UM,WOKING BOROUGH COUNCIL,13/04/2016,0000395257/001,THOMSON REUTERS,00027200,187.00,CORPORATE STRATEGY - LEGAL,BOOKS MAPS PLANS,G650,BOOKS MAPS PLANS,CORPORATE STRATEGY,LEGAL SERVICES
http://statistics.data.gov.uk/id/local-authority/43UM,WOKING BOROUGH COUNCIL,13/04/2016,GPC/668437059,TICKETOFFICESALE,PROCUREMENT CARD,67.80,CORPORATE STRATEGY - LEGAL,TRAVEL EXPENSES-OFFICERS,F600,TRAIN RM IT AND ZP EFA MEETING,ZEYNAB PATEL,PASSENGER RAILWAYS
http://statistics.data.gov.uk/id/local-authority/43UM,WOKING BOROUGH COUNCIL,13/04/2016,0000395561/001,TITANIC MANAGEMENT SERVICES,40300500,858.00,REVENUES AND BENEFITS - BENEFIT SERVICES,TEMPORARY STAFF,A110,TEMPORARY STAFF,REVENUES AND BENEFITS,HUMAN RESOURCES
http://statistics.data.gov.uk/id/local-authority/43UM,WOKING BOROUGH COUNCIL,13/04/2016,0000395058/001,TRACEY CLAYTON,01372800,250.00,INFORMATION TECHNOLOGY - ICT GENERAL REPLACEMENT 15/16,SERVICES,Q053,SERVICES,INFORMATION TECHNOLOGY,HUMAN RESOURCES
http://statistics.data.gov.uk/id/local-authority/43UM,WOKING BOROUGH COUNCIL,13/04/2016,0000395094/001,TUNSTALL HEALTHCARE (UK) LTD,00019000,1349.00,INDEPENDENT LIVING SERVICES - COMMUNITY ALARMS-HRA,EQUIPMENT REPAIR & MAINTENANCE,G120,EQUIPMENT REPAIR & MAINTENANCE,INDEPENDENT LIVING SERVICES,HEALTHCARE
http://statistics.data.gov.uk/id/local-authority/43UM,WOKING BOROUGH COUNCIL,13/04/2016,0000395094/002,TUNSTALL HEALTHCARE (UK) LTD,00019000,2703.00,INDEPENDENT LIVING SERVICES - COMMUNITY ALARMS-GF,NEW EQUIPMENT,G105,NEW EQUIPMENT,INDEPENDENT LIVING SERVICES,HEALTHCARE
http://statistics.data.gov.uk/id/local-authority/43UM,WOKING BOROUGH COUNCIL,13/04/2016,0000395094/003,TUNSTALL HEALTHCARE (UK) LTD,00019000,550.56,INDEPENDENT LIVING SERVICES - COMMUNITY ALARMS-GF,EQUIPMENT - BATTERIES,G181,EQUIPMENT - BATTERIES,INDEPENDENT LIVING SERVICES,HEALTHCARE
http://statistics.data.gov.uk/id/local-authority/43UM,WOKING BOROUGH COUNCIL,13/04/2016,0000395125/001,TUNSTALL HEALTHCARE (UK) LTD,00019000,134.00,INDEPENDENT LIVING SERVICES - COMMUNITY ALARMS-GF,EQUIPMENT - BATTERIES,G181,EQUIPMENT - BATTERIES,INDEPENDENT LIVING SERVICES,HEALTHCARE
http://statistics.data.gov.uk/id/local-authority/43UM,WOKING BOROUGH COUNCIL,13/04/2016,0000395311/001,TURNER & TOWNSEND PROJECT MANAGEMENT LTD,40356700,1204.17,HOUSING SERVICES - PFI BID,OTHER CONSULTANTS,Q430,OTHER CONSULTANTS,HOUSING SERVICES,WORKS (CONSTRUCTION REPAIR MAINTENANCE)
http://statistics.data.gov.uk/id/local-authority/43UM,WOKING BOROUGH COUNCIL,13/04/2016,0000395202/001,TV LICENSING,00056000,37.50,INDEPENDENT LIVING SERVICES - BROCKHILL EXTRA CARE,TV LICENCE,H703,TV LICENCE,INDEPENDENT LIVING SERVICES,UTILITIES
http://statistics.data.gov.uk/id/local-authority/43UM,WOKING BOROUGH COUNCIL,13/04/2016,0000394722/001,UNITY RECRUITMENT LTD,40160500,3255.84,NEIGHBOURHOOD SERVICES - REGULATION AND ENFORCEMENT,TEMPORARY STAFF,A110,TEMPORARY STAFF,NEIGHBOURHOOD SERVICES,HUMAN RESOURCES
http://statistics.data.gov.uk/id/local-authority/43UM,WOKING BOROUGH COUNCIL,13/04/2016,0000395068/001,VENN GROUP LIMITED,40383900,581.63,REVENUES AND BENEFITS - COUNCIL TAX,TEMPORARY STAFF,A110,TEMPORARY STAFF,REVENUES AND BENEFITS,HUMAN RESOURCES
http://statistics.data.gov.uk/id/local-authority/43UM,WOKING BOROUGH COUNCIL,13/04/2016,0000395069/001,VENN GROUP LIMITED,40383900,863.50,REVENUES AND BENEFITS - COUNCIL TAX,TEMPORARY STAFF,A110,TEMPORARY STAFF,REVENUES AND BENEFITS,HUMAN RESOURCES
http://statistics.data.gov.uk/id/local-authority/43UM,WOKING BOROUGH COUNCIL,13/04/2016,0000395070/001,VENN GROUP LIMITED,40383900,1100.00,REVENUES AND BENEFITS - COUNCIL TAX,TEMPORARY STAFF,A110,TEMPORARY STAFF,REVENUES AND BENEFITS,HUMAN RESOURCES
http://statistics.data.gov.uk/id/local-authority/43UM,WOKING BOROUGH COUNCIL,13/04/2016,0000395073/001,VENN GROUP LIMITED,40383900,953.63,REVENUES AND BENEFITS - COUNCIL TAX,TEMPORARY STAFF,A110,TEMPORARY STAFF,REVENUES AND BENEFITS,HUMAN RESOURCES
http://statistics.data.gov.uk/id/local-authority/43UM,WOKING BOROUGH COUNCIL,13/04/2016,0000395074/001,VENN GROUP LIMITED,40383900,940.50,REVENUES AND BENEFITS - COUNCIL TAX,TEMPORARY STAFF,A110,TEMPORARY STAFF,REVENUES AND BENEFITS,HUMAN RESOURCES
http://statistics.data.gov.uk/id/local-authority/43UM,WOKING BOROUGH COUNCIL,13/04/2016,0000395075/001,VENN GROUP LIMITED,40383900,1075.00,REVENUES AND BENEFITS - COUNCIL TAX,TEMPORARY STAFF,A110,TEMPORARY STAFF,REVENUES AND BENEFITS,HUMAN RESOURCES
http://statistics.data.gov.uk/id/local-authority/43UM,WOKING BOROUGH COUNCIL,13/04/2016,0000395221/001,VENTRUS NETWORKS LTD,40570600,1977.50,INFORMATION TECHNOLOGY - ICT GENERAL REPLACEMENT 15/16,ADDITIONAL EQUIPMENT,Q020,ADDITIONAL EQUIPMENT,INFORMATION TECHNOLOGY,INFORMATION COMMUNICATION TECHNOLOGY
http://statistics.data.gov.uk/id/local-authority/43UM,WOKING BOROUGH COUNCIL,13/04/2016,0000395439/001,VIRGIN MEDIA BUSINESS,00316500,67.96,H G WELLS - H G WELLS - FUNCTION ROOMS,NETWORK CIRCUITS,G800,NETWORK CIRCUITS,H G WELLS,INFORMATION COMMUNICATION TECHNOLOGY
http://statistics.data.gov.uk/id/local-authority/43UM,WOKING BOROUGH COUNCIL,13/04/2016,0000395440/001,VIRGIN MEDIA BUSINESS,00316500,329.70,INFORMATION TECHNOLOGY - COMMUNICATIONS,NETWORK CIRCUITS,G800,NETWORK CIRCUITS,INFORMATION TECHNOLOGY,INFORMATION COMMUNICATION TECHNOLOGY
http://statistics.data.gov.uk/id/local-authority/43UM,WOKING BOROUGH COUNCIL,13/04/2016,0000395440/002,VIRGIN MEDIA BUSINESS,00316500,826.05,INFORMATION TECHNOLOGY - COMMUNICATIONS,VOICE MAINTENANCE,G824,VOICE MAINTENANCE,INFORMATION TECHNOLOGY,INFORMATION COMMUNICATION TECHNOLOGY
http://statistics.data.gov.uk/id/local-authority/43UM,WOKING BOROUGH COUNCIL,13/04/2016,0000395759/001,VIRGIN MEDIA BUSINESS,00316500,80.00,HOUSING SERVICES - LANDLORDS EXPENSES,INTERNET PAYMENT CHARGES,H499,INTERNET PAYMENT CHARGES,HOUSING SERVICES,INFORMATION COMMUNICATION TECHNOLOGY
http://statistics.data.gov.uk/id/local-authority/43UM,WOKING BOROUGH COUNCIL,13/04/2016,0000395759/002,VIRGIN MEDIA BUSINESS,00316500,48.00,HOUSING SERVICES - LANDLORDS EXPENSES,INTERNET PAYMENT CHARGES,H499,INTERNET PAYMENT CHARGES,HOUSING SERVICES,INFORMATION COMMUNICATION TECHNOLOGY
http://statistics.data.gov.uk/id/local-authority/43UM,WOKING BOROUGH COUNCIL,13/04/2016,GPC/668097556,W M MORRISONS,PROCUREMENT CARD,23.05,H G WELLS - H G WELLS - CATERING,PROVISIONS-FOOD,G440,FOOD,LIVIA KALLAYOVA,GROCERY STORES SUPERMARKETS
http://statistics.data.gov.uk/id/local-authority/43UM,WOKING BOROUGH COUNCIL,13/04/2016,0000395114/001,WADDINGTON & LEDGER LTD,40503100,5380.00,CORPORATE STRATEGY - PUBLIC RELATIONS,PUBLICATIONS,G606,PUBLICATIONS,CORPORATE STRATEGY,FINANCIAL SERVICES
http://statistics.data.gov.uk/id/local-authority/43UM,WOKING BOROUGH COUNCIL,13/04/2016,0000395124/001,WCS,00064200,65.00,INDEPENDENT LIVING SERVICES - ST MARY'S DAY CENTRE,EQUIPMENT,G100,EQUIPMENT,INDEPENDENT LIVING SERVICES,CLEANING & JANITORIAL
http://statistics.data.gov.uk/id/local-authority/43UM,WOKING BOROUGH COUNCIL,13/04/2016,0000395180/001,WEST HORSLEY DAIRY,00147600,51.17,H G WELLS - H G WELLS - CATERING,PROVISIONS-FOOD,G440,PROVISIONS-FOOD,H G WELLS,CATERING
http://statistics.data.gov.uk/id/local-authority/43UM,WOKING BOROUGH COUNCIL,13/04/2016,0000395485/001,WHISTL UK LIMITED,00367900,202.88,CORPORATE STRATEGY - POSTAGE,POSTAGE - STANDARD TARIFF,G700,POSTAGE - STANDARD TARIFF,CORPORATE STRATEGY,MAIL SERVICES
http://statistics.data.gov.uk/id/local-authority/43UM,WOKING BOROUGH COUNCIL,13/04/2016,0000394793/001,WHITE KNIGHT LAUNDRY SERVICES LTD,01266400,13.94,H G WELLS - H G WELLS - FUNCTION ROOMS,LAUNDRY,G520,LAUNDRY,H G WELLS,CLEANING & JANITORIAL
http://statistics.data.gov.uk/id/local-authority/43UM,WOKING BOROUGH COUNCIL,13/04/2016,0000394793/002,WHITE KNIGHT LAUNDRY SERVICES LTD,01266400,0.94,H G WELLS - H G WELLS - CATERING,LAUNDRY,G520,LAUNDRY,H G WELLS,CLEANING & JANITORIAL
http://statistics.data.gov.uk/id/local-authority/43UM,WOKING BOROUGH COUNCIL,13/04/2016,0000394995/001,WHITE KNIGHT LAUNDRY SERVICES LTD,01266400,205.17,H G WELLS - H G WELLS - FUNCTION ROOMS,LAUNDRY,G520,LAUNDRY,H G WELLS,CLEANING & JANITORIAL
http://statistics.data.gov.uk/id/local-authority/43UM,WOKING BOROUGH COUNCIL,13/04/2016,0000394995/002,WHITE KNIGHT LAUNDRY SERVICES LTD,01266400,27.98,H G WELLS - H G WELLS - CATERING,LAUNDRY,G520,LAUNDRY,H G WELLS,CLEANING & JANITORIAL
http://statistics.data.gov.uk/id/local-authority/43UM,WOKING BOROUGH COUNCIL,13/04/2016,0000395756/001,WOKING ASSOC.OF VOLUNTARY SERVICE (WITS),00066500,99.00,HOUSING SERVICES - SYRIAN REFUGEE FAMILES,MISCELLANEOUS EXPENSES,Q660,MISCELLANEOUS EXPENSES,HOUSING SERVICES,HUMAN RESOURCES
http://statistics.data.gov.uk/id/local-authority/43UM,WOKING BOROUGH COUNCIL,13/04/2016,0000395088/001,WOKING ASSOCIATION OF VOLUNTARY SERVICE,00864600,150.00,INDEPENDENT LIVING SERVICES - PARKVIEW,GRANTS,H100,GRANTS,INDEPENDENT LIVING SERVICES,FINANCIAL SERVICES
http://statistics.data.gov.uk/id/local-authority/43UM,WOKING BOROUGH COUNCIL,13/04/2016,0040000676/001,WOKING CITIZENS ADVICE BUREAU,00013200,66500.00,CORPORATE STRATEGY - GRANTS TO ORGANISATION,GRANTS,H100,GRANTS,CORPORATE STRATEGY,FINANCIAL SERVICES
http://statistics.data.gov.uk/id/local-authority/43UM,WOKING BOROUGH COUNCIL,13/04/2016,0000395110/001,WOKING HOSPICE,00047300,366.93,CORPORATE STRATEGY - CIVIC SERVICE,PRINTING EXTERNAL,G600,PRINTING EXTERNAL,CORPORATE STRATEGY,FINANCIAL SERVICES
http://statistics.data.gov.uk/id/local-authority/43UM,WOKING BOROUGH COUNCIL,13/04/2016,0040000681/001,WOKING SHOPMOBILITY,00591100,3125.00,CORPORATE STRATEGY - GRANTS TO ORGANISATION,GRANTS,H100,GRANTS,CORPORATE STRATEGY,FINANCIAL SERVICES
http://statistics.data.gov.uk/id/local-authority/43UM,WOKING BOROUGH COUNCIL,13/04/2016,0000393512/001,WOKING TAXIS & WOKING CARS,00960100,55.00,INDEPENDENT LIVING SERVICES - MEALS SERVICE,STAFF SEASON TICKETS,A230,STAFF SEASON TICKETS,INDEPENDENT LIVING SERVICES,PUBLIC TRANSPORT
http://statistics.data.gov.uk/id/local-authority/43UM,WOKING BOROUGH COUNCIL,13/04/2016,0000394501/001,WOKING TAXIS & WOKING CARS,00960100,80.00,INDEPENDENT LIVING SERVICES - MEALS SERVICE,STAFF SEASON TICKETS,A230,STAFF SEASON TICKETS,INDEPENDENT LIVING SERVICES,PUBLIC TRANSPORT
http://statistics.data.gov.uk/id/local-authority/43UM,WOKING BOROUGH COUNCIL,13/04/2016,GPC/668094821,WWW.MONEYCLAIM.GOV,PROCUREMENT CARD,710.95,CORPORATE STRATEGY - LEGAL,COURT COSTS,H620,COURT FEE,MISS A J FRANCIS,GOVERNMENT SERVICES-NOT ELSEWHERE CLASSIFIED
http://statistics.data.gov.uk/id/local-authority/43UM,WOKING BOROUGH COUNCIL,13/04/2016,0000394708/001,WYG ENVIRONMENT PLANNING TRANSPORT LTD,40017300,3767.00,NEIGHBOURHOOD SERVICES - �GROUNDS MAINTENANCE PROCUREMEN,MAIN CONTRACTOR,Q200,MAIN CONTRACTOR,NEIGHBOURHOOD SERVICES,CONSULTANCY
http://statistics.data.gov.uk/id/local-authority/43UM,WOKING BOROUGH COUNCIL,13/04/2016,0040000682/001,YOUR SANCTUARY,00046000,4800.00,CORPORATE STRATEGY - GRANTS TO ORGANISATION,GRANTS,H100,GRANTS,CORPORATE STRATEGY,WORKS (CONSTRUCTION REPAIR MAINTENANCE)
http://statistics.data.gov.uk/id/local-authority/43UM,WOKING BOROUGH COUNCIL,14/04/2016,GPC/668434473,BOOTSWOKING,PROCUREMENT CARD,17.56,HOUSING SERVICES - SYRIAN REFUGEE FAMILES,MISCELLANEOUS EXPENSES,Q660,MEDICATION FOR VPR,ADAM THOMAS,DRUG STORES PHARMACIES
http://statistics.data.gov.uk/id/local-authority/43UM,WOKING BOROUGH COUNCIL,14/04/2016,GPC/668435349,C&E ELECTRICAL WHO,PROCUREMENT CARD,8.00,HOUSING SERVICES - HOME IMPS & BEN AGENCY,HANDYPERSON MATERIALS,G201,HANDY PERSON MATERIALS,IAN DEANE,ELECTRICAL AND SMALL APPLIANCE REPAIR SHOPS
http://statistics.data.gov.uk/id/local-authority/43UM,WOKING BOROUGH COUNCIL,14/04/2016,GPC/668435348,C&E ELECTRICAL WHO,PROCUREMENT CARD,10.40,HOUSING SERVICES - HOME IMPS & BEN AGENCY,HANDYPERSON MATERIALS,G201,HANDY PERSON MATERIALS,IAN DEANE,ELECTRICAL AND SMALL APPLIANCE REPAIR SHOPS
http://statistics.data.gov.uk/id/local-authority/43UM,WOKING BOROUGH COUNCIL,14/04/2016,GPC/668435486,COSTA COFFEE,PROCUREMENT CARD,4.50,INDEPENDENT LIVING SERVICES - FAMILY SUPPORT PROGRAMME,FAMILY ENABLING (FSP PROJECT),H137,REFRESHMENTS - FAMILY,JULIE COONEY,FAST-FOOD RESTAURANTS (QUICK PAYMENT SERVICE PILOT
http://statistics.data.gov.uk/id/local-authority/43UM,WOKING BOROUGH COUNCIL,14/04/2016,GPC/668435488,COSTA COFFEE,PROCUREMENT CARD,3.65,INDEPENDENT LIVING SERVICES - FAMILY SUPPORT PROGRAMME,FAMILY ENABLING (FSP PROJECT),H137,REFRESHMENTS FOR FAMILY,TANYA CULVER,FAST-FOOD RESTAURANTS (QUICK PAYMENT SERVICE PILOT
http://statistics.data.gov.uk/id/local-authority/43UM,WOKING BOROUGH COUNCIL,14/04/2016,GPC/668435487,COSTA COFFEE,PROCUREMENT CARD,10.65,INDEPENDENT LIVING SERVICES - FAMILY SUPPORT PROGRAMME,FAMILY ENABLING (FSP PROJECT),H137,REFRESHMENTS FOR FAMILY,TANYA CULVER,FAST-FOOD RESTAURANTS (QUICK PAYMENT SERVICE PILOT
http://statistics.data.gov.uk/id/local-authority/43UM,WOKING BOROUGH COUNCIL,14/04/2016,GPC/668433995,HAWKSMERE LTD,PROCUREMENT CARD,249.00,CORPORATE MANAGEMENT GROUP - STAFF TRAINING/GENERAL COSTS,TRAINING - CORPORATE,A910,RTPI CONFERENCE FEES,IAN M TOMES,SCHOOLS AND EDUCATIONAL SERVICES-NOT ELSEWHERE CLA
http://statistics.data.gov.uk/id/local-authority/43UM,WOKING BOROUGH COUNCIL,14/04/2016,GPC/668436583,POUNDLAND LTD 1228,PROCUREMENT CARD,9.00,H G WELLS - H G WELLS - FUNCTION ROOMS,EQUIPMENT,G100,BATTERIES FOR EQUIPMENT,MRS EGLE MECINSKAITE,DISCOUNT STORES
http://statistics.data.gov.uk/id/local-authority/43UM,WOKING BOROUGH COUNCIL,14/04/2016,GPC/668432640,REGISTER.COM 130253A4J,PROCUREMENT CARD,9.94,INFORMATION TECHNOLOGY - I.T.S. ICT,HOSTED SYSTEMS,G198,DOMAIN NAME RENEWAL,ADELE DEVON,CONTINUITY/SUBSCRIPTION MERCHANTS
http://statistics.data.gov.uk/id/local-authority/43UM,WOKING BOROUGH COUNCIL,14/04/2016,GPC/668436768,SAINSBURYS S/MKTS,PROCUREMENT CARD,4.80,H G WELLS - H G WELLS - CATERING,PROVISIONS-FOOD,G440,FOOD FOR EVENT,MRS EGLE MECINSKAITE,GROCERY STORES SUPERMARKETS
http://statistics.data.gov.uk/id/local-authority/43UM,WOKING BOROUGH COUNCIL,14/04/2016,GPC/668432725,SHBC PARKING,PROCUREMENT CARD,4.00,CORPORATE MANAGEMENT GROUP - STAFF TRAINING/GENERAL COSTS,TRAVEL EXPENSES-OFFICERS,F600,PARKING CAMBERLEY,MR TIMOTHY S LOWE,AUTOMOBILE PARKING LOTS AND GARAGES
http://statistics.data.gov.uk/id/local-authority/43UM,WOKING BOROUGH COUNCIL,14/04/2016,GPC/668795890,TANTE MARIE LTD,PROCUREMENT CARD,91.35,NEIGHBOURHOOD SERVICES - CELBT WOK- ADDTNL RESOURCE 14,MAIN CONTRACTOR,Q200,HG WELLS TALK,RIETTE THOMAS,FAST-FOOD RESTAURANTS (QUICK PAYMENT SERVICE PILOT
http://statistics.data.gov.uk/id/local-authority/43UM,WOKING BOROUGH COUNCIL,14/04/2016,GPC/668795990,TICKETOFFICESALE,PROCUREMENT CARD,58.00,CORPORATE MANAGEMENT GROUP - STAFF TRAINING/GENERAL COSTS,EQUIPMENT,G100,GRADUATE ROAD SHOW TRAVEL FOR AJ&SH,MISS SARAH DOLBEAR,PASSENGER RAILWAYS
http://statistics.data.gov.uk/id/local-authority/43UM,WOKING BOROUGH COUNCIL,14/04/2016,GPC/668434791,TRAINLINE,PROCUREMENT CARD,61.69,ASSET MANAGEMENT - BUILDING SERVICES,TRAVEL EXPENSES-OFFICERS,F600,TRAVEL,MR R D SMITH,PASSENGER RAILWAYS
http://statistics.data.gov.uk/id/local-authority/43UM,WOKING BOROUGH COUNCIL,14/04/2016,GPC/668432726,WWW.CIPS.ORG,PROCUREMENT CARD,178.50,CORPORATE MANAGEMENT GROUP - STAFF TRAINING/GENERAL COSTS,SUBSISTENCE-OFFICERS,H200,PROFESSIONAL SUBSCRIPTION,MR TIMOTHY S LOWE,MEMBERSHIP ORGANIZATIONS-NOT ELSEWHERE CLASSIFIED
http://statistics.data.gov.uk/id/local-authority/43UM,WOKING BOROUGH COUNCIL,14/04/2016,GPC/668432590,WWW.IRONMONGERYDIRECT.,PROCUREMENT CARD,137.50,HOUSING SERVICES - HOME IMPS & BEN AGENCY,HANDYPERSON MATERIALS,G201,HANDYMAN MATERIALS,HELEN KEMPSELL,GLASS PAINT WALLPAPER STORES
http://statistics.data.gov.uk/id/local-authority/43UM,WOKING BOROUGH COUNCIL,15/04/2016,0000393680/001,ALLSTAR BUSINESS SOLUTIONS LTD,01500600,50.34,INDEPENDENT LIVING SERVICES - MEALS ON WHEELS,PETROL,F200,PETROL,INDEPENDENT LIVING SERVICES,UTILITIES
http://statistics.data.gov.uk/id/local-authority/43UM,WOKING BOROUGH COUNCIL,15/04/2016,0000393680/002,ALLSTAR BUSINESS SOLUTIONS LTD,01500600,19.76,INDEPENDENT LIVING SERVICES - MEALS ON WHEELS,GAS,D420,GAS,INDEPENDENT LIVING SERVICES,UTILITIES
http://statistics.data.gov.uk/id/local-authority/43UM,WOKING BOROUGH COUNCIL,15/04/2016,0000393681/001,ALLSTAR BUSINESS SOLUTIONS LTD,01500600,31.03,INDEPENDENT LIVING SERVICES - MEALS ON WHEELS,PETROL,F200,PETROL,INDEPENDENT LIVING SERVICES,UTILITIES
http://statistics.data.gov.uk/id/local-authority/43UM,WOKING BOROUGH COUNCIL,15/04/2016,0000393681/002,ALLSTAR BUSINESS SOLUTIONS LTD,01500600,9.68,INDEPENDENT LIVING SERVICES - MEALS ON WHEELS,GAS,D420,GAS,INDEPENDENT LIVING SERVICES,UTILITIES
http://statistics.data.gov.uk/id/local-authority/43UM,WOKING BOROUGH COUNCIL,15/04/2016,0000393682/001,ALLSTAR BUSINESS SOLUTIONS LTD,01500600,162.76,INDEPENDENT LIVING SERVICES - MEALS ON WHEELS,PETROL,F200,PETROL,INDEPENDENT LIVING SERVICES,UTILITIES
http://statistics.data.gov.uk/id/local-authority/43UM,WOKING BOROUGH COUNCIL,15/04/2016,0000393682/002,ALLSTAR BUSINESS SOLUTIONS LTD,01500600,38.37,INDEPENDENT LIVING SERVICES - MEALS ON WHEELS,GAS,D420,GAS,INDEPENDENT LIVING SERVICES,UTILITIES
http://statistics.data.gov.uk/id/local-authority/43UM,WOKING BOROUGH COUNCIL,15/04/2016,GPC/668796710,ARGOS LTD,PROCUREMENT CARD,69.99,INDEPENDENT LIVING SERVICES - FAMILY SUPPORT PROGRAMME,FAMILY ENABLING (FSP PROJECT),H137,EQUIPMENT,ADAM THOMAS,DISCOUNT STORES
http://statistics.data.gov.uk/id/local-authority/43UM,WOKING BOROUGH COUNCIL,15/04/2016,0000395489/001,BARCLAYS CAPITAL,00132800,99020.55,FINANCIAL SERVICES - INTEREST PAYABLE & SIMILAR CHG,L.O.B.O. LOAN,U113,L.O.B.O. LOAN,FINANCIAL SERVICES,FINANCIAL SERVICES
http://statistics.data.gov.uk/id/local-authority/43UM,WOKING BOROUGH COUNCIL,15/04/2016,0000395466/001,DANSKE BANK,01657400,119075.34,FINANCIAL SERVICES - INTEREST PAYABLE & SIMILAR CHG,L.O.B.O. LOAN,U113,L.O.B.O. LOAN,FINANCIAL SERVICES,FINANCIAL SERVICES
http://statistics.data.gov.uk/id/local-authority/43UM,WOKING BOROUGH COUNCIL,15/04/2016,0000395859/001,DAVITT JONES BOULD,40370200,57499.90,ASSET MANAGEMENT - 1 GUILDFORD ROAD OPPORT PURCHASE,MAIN CONTRACTOR,Q200,MAIN CONTRACTOR,ASSET MANAGEMENT,LEGAL SERVICES
http://statistics.data.gov.uk/id/local-authority/43UM,WOKING BOROUGH COUNCIL,15/04/2016,0000395486/001,DEXIA PUBLIC FINANCE BANK,01657300,119075.34,FINANCIAL SERVICES - INTEREST PAYABLE & SIMILAR CHG,L.O.B.O. LOAN,U113,L.O.B.O. LOAN,FINANCIAL SERVICES,FINANCIAL SERVICES
http://statistics.data.gov.uk/id/local-authority/43UM,WOKING BOROUGH COUNCIL,15/04/2016,GPC/668432639,FOREIGN EXCHANGE FEE,PROCUREMENT CARD,0.27,INFORMATION TECHNOLOGY - I.T.S. ICT,HOSTED SYSTEMS,G198,DOMAIN NAME RENEWAL,ADELE DEVON,MISC-UNKNOWN
http://statistics.data.gov.uk/id/local-authority/43UM,WOKING BOROUGH COUNCIL,15/04/2016,0000395490/002,GREATER MANCHESTER COMBINED AUTHORITY,40538400,4339.73,FINANCIAL SERVICES - INTEREST PAYABLE & SIMILAR CHG,TEMP LOANS,U115,TEMP LOANS,FINANCIAL SERVICES,FINANCIAL SERVICES
http://statistics.data.gov.uk/id/local-authority/43UM,WOKING BOROUGH COUNCIL,15/04/2016,0000394551/001,HITACHI CAPITAL VEHICLE SOLUTIONS,40346500,1566.80,INDEPENDENT LIVING SERVICES - MEALS ON WHEELS,VEHICLE LEASING COSTS,F400,VEHICLE LEASING COSTS,INDEPENDENT LIVING SERVICES,VEHICLE MANAGEMENT
http://statistics.data.gov.uk/id/local-authority/43UM,WOKING BOROUGH COUNCIL,15/04/2016,0000395487/001,KENT COUNTY COUNCIL,40562700,1441.01,HOUSING SERVICES - TEMPORARY ACCOMMODATION,GAS,D420,GAS,HOUSING SERVICES,UTILITIES
http://statistics.data.gov.uk/id/local-authority/43UM,WOKING BOROUGH COUNCIL,15/04/2016,0000395488/001,KENT COUNTY COUNCIL,40562700,36616.52,HOUSING SERVICES - ENERGY,GAS,D420,GAS,HOUSING SERVICES,UTILITIES
http://statistics.data.gov.uk/id/local-authority/43UM,WOKING BOROUGH COUNCIL,15/04/2016,0000395462/001,PUBLIC WORKS LOAN BOARD,00021400,118750.00,FINANCIAL SERVICES - INTEREST PAYABLE & SIMILAR CHG,PWLB MATURITY LOAN,U112,PWLB MATURITY LOAN,FINANCIAL SERVICES,FINANCIAL SERVICES
http://statistics.data.gov.uk/id/local-authority/43UM,WOKING BOROUGH COUNCIL,15/04/2016,0000395463/001,PUBLIC WORKS LOAN BOARD,00021400,118750.00,FINANCIAL SERVICES - INTEREST PAYABLE & SIMILAR CHG,PWLB MATURITY LOAN,U112,PWLB MATURITY LOAN,FINANCIAL SERVICES,FINANCIAL SERVICES
http://statistics.data.gov.uk/id/local-authority/43UM,WOKING BOROUGH COUNCIL,15/04/2016,0000395464/001,PUBLIC WORKS LOAN BOARD,00021400,106500.00,FINANCIAL SERVICES - INTEREST PAYABLE & SIMILAR CHG,PWLB MATURITY LOAN,U112,PWLB MATURITY LOAN,FINANCIAL SERVICES,FINANCIAL SERVICES
http://statistics.data.gov.uk/id/local-authority/43UM,WOKING BOROUGH COUNCIL,15/04/2016,0000395465/001,PUBLIC WORKS LOAN BOARD,00021400,19400.41,FINANCIAL SERVICES - INTEREST PAYABLE & SIMILAR CHG,PWLB ANNUITY,U111,PWLB ANNUITY,FINANCIAL SERVICES,FINANCIAL SERVICES
http://statistics.data.gov.uk/id/local-authority/43UM,WOKING BOROUGH COUNCIL,15/04/2016,0000395800/001,PUBLIC WORKS LOAN BOARD,00021400,78200.00,FINANCIAL SERVICES - INTEREST PAYABLE & SIMILAR CHG,PWLB MATURITY LOAN,U112,PWLB MATURITY LOAN,FINANCIAL SERVICES,FINANCIAL SERVICES
http://statistics.data.gov.uk/id/local-authority/43UM,WOKING BOROUGH COUNCIL,15/04/2016,GPC/668795807,REGISTER.COM 1302804AJ,PROCUREMENT CARD,8.50,INFORMATION TECHNOLOGY - I.T.S. ICT,HOSTED SYSTEMS,G198,DOMAIN NAME RENEWAL,ADELE DEVON,CONTINUITY/SUBSCRIPTION MERCHANTS
http://statistics.data.gov.uk/id/local-authority/43UM,WOKING BOROUGH COUNCIL,15/04/2016,GPC/668798417,ROBERT DYAS HOLDNG LTD,PROCUREMENT CARD,29.98,ASSET MANAGEMENT - CIVIC OFFICES,VENDING SERVICES,G420,KETTLES,MR R D SMITH,HARDWARE STORES
http://statistics.data.gov.uk/id/local-authority/43UM,WOKING BOROUGH COUNCIL,15/04/2016,0000395505/001,RSP RAIL TRAVEL ACCOUNT,01121300,40.30,HOUSING SERVICES - HOUSING OPTIONS,REMOVAL EXPENSES,H775,REMOVAL EXPENSES,HOUSING SERVICES,PUBLIC TRANSPORT
http://statistics.data.gov.uk/id/local-authority/43UM,WOKING BOROUGH COUNCIL,15/04/2016,GPC/668798524,SAINSBURYS S/MKTS,PROCUREMENT CARD,16.05,H G WELLS - H G WELLS - CATERING,PROVISIONS-FOOD,G440,HG WELLS KITCHEN FOOD,MR S P SINCLAIR,GROCERY STORES SUPERMARKETS
http://statistics.data.gov.uk/id/local-authority/43UM,WOKING BOROUGH COUNCIL,15/04/2016,GPC/668798573,SELFSERVE TICKET,PROCUREMENT CARD,9.60,CORPORATE STRATEGY - LEGAL,TRAVEL EXPENSES-OFFICERS,F600,TRAIN TO COURT FOR TWO,HOLLY DAVIS,PASSENGER RAILWAYS
http://statistics.data.gov.uk/id/local-authority/43UM,WOKING BOROUGH COUNCIL,15/04/2016,0000395461/001,SKY BUSINESS,01119800,310.00,ASSET MANAGEMENT - CIVIC OFFICES,VIDEO EQUIPMENT - MAINTENANCE,G163,VIDEO EQUIPMENT - MAINTENANCE,ASSET MANAGEMENT,INFORMATION COMMUNICATION TECHNOLOGY
http://statistics.data.gov.uk/id/local-authority/43UM,WOKING BOROUGH COUNCIL,15/04/2016,0000395863/001,TANTE MARIE CULINARY ACADEMY,00978500,106199.09,ASSET MANAGEMENT - WOLSEY PLACE,VOID COST,D124,VOID COST,ASSET MANAGEMENT,FINANCIAL SERVICES
http://statistics.data.gov.uk/id/local-authority/43UM,WOKING BOROUGH COUNCIL,15/04/2016,0000395491/001,THAMESWEY HOUSING LIMITED,01704800,1000000.00,FINANCIAL SERVICES - TW HOUSING APR 2016,LONG TERM LOAN,S864,LONG TERM LOAN,FINANCIAL SERVICES,FINANCIAL SERVICES
http://statistics.data.gov.uk/id/local-authority/43UM,WOKING BOROUGH COUNCIL,15/04/2016,0000395676/001,THAMESWEY HOUSING LIMITED,01704800,915000.00,HOUSING SERVICES - AFFORDABLE HOUSING PURCHASE,MAIN CONTRACTOR,Q200,MAIN CONTRACTOR,HOUSING SERVICES,FINANCIAL SERVICES
http://statistics.data.gov.uk/id/local-authority/43UM,WOKING BOROUGH COUNCIL,15/04/2016,0000395677/001,THAMESWEY HOUSING LIMITED,01704800,1932000.00,HOUSING SERVICES - AFFORDABLE HOUSING PURCHASE,MAIN CONTRACTOR,Q200,MAIN CONTRACTOR,HOUSING SERVICES,FINANCIAL SERVICES
http://statistics.data.gov.uk/id/local-authority/43UM,WOKING BOROUGH COUNCIL,15/04/2016,GPC/668795998,TOOLSTATION LTD,PROCUREMENT CARD,16.50,ASSET MANAGEMENT - FACILITIES MANAGEMENT,FACILITIES MANAGEMENT REPAIRS,D908,TOOLS,MR D JONES,HARDWARE STORES
http://statistics.data.gov.uk/id/local-authority/43UM,WOKING BOROUGH COUNCIL,15/04/2016,GPC/668799224,WOKING TURNSTYLE LTD,PROCUREMENT CARD,3.00,CORPORATE STRATEGY - TOWN CENTRE FORUM,ECDEV BUSINESS ENGAGEMENT,H411,WOKING CHAMBER REFRESHMENT,SAM MARSHALL,THEATRICAL PRODUCTS (EXCEPT MOTION PICTURES) TICK
http://statistics.data.gov.uk/id/local-authority/43UM,WOKING BOROUGH COUNCIL,16/04/2016,GPC/668794632,AMAZON PRIME,PROCUREMENT CARD,79.00,NEIGHBOURHOOD SERVICES - ARTS DEVELOPMENT,PAYMENTS TO PROMOTERS,H640,PURCHASED IN ERROR REFUND DUE,GARY CORDERY,CONTINUITY/SUBSCRIPTION MERCHANTS
http://statistics.data.gov.uk/id/local-authority/43UM,WOKING BOROUGH COUNCIL,16/04/2016,GPC/668794794,AMAZON UK MARKETPLACE,PROCUREMENT CARD,48.33,INFORMATION TECHNOLOGY - ICT GENERAL REPLACEMENT 15/16,REPLACEMENT EQUIPMENT,Q010,2 BB 9720,STUART MILLAR,MISCELLANEOUS AND SPECIALTY RETAIL STORES
http://statistics.data.gov.uk/id/local-authority/43UM,WOKING BOROUGH COUNCIL,16/04/2016,GPC/668796176,WWW.CIPFA.ORG.UK,PROCUREMENT CARD,310.00,CORPORATE MANAGEMENT GROUP - CORPORATE MANAGEMENT GROUP,PROFESSIONAL FEES,A750,CIPFA MEMBERSHIP RENEWAL,RAY MORGAN,MEMBERSHIP ORGANIZATIONS-NOT ELSEWHERE CLASSIFIED
http://statistics.data.gov.uk/id/local-authority/43UM,WOKING BOROUGH COUNCIL,18/04/2016,GPC/669353431,COSTA COFFEE,PROCUREMENT CARD,7.05,INDEPENDENT LIVING SERVICES - FAMILY SUPPORT PROGRAMME,FAMILY ENABLING (FSP PROJECT),H137,REFRESHMENTS FOR FAMILY,TANYA CULVER,FAST-FOOD RESTAURANTS (QUICK PAYMENT SERVICE PILOT
http://statistics.data.gov.uk/id/local-authority/43UM,WOKING BOROUGH COUNCIL,18/04/2016,GPC/668795353,FOREIGN EXCHANGE FEE,PROCUREMENT CARD,0.23,INFORMATION TECHNOLOGY - I.T.S. ICT,HOSTED SYSTEMS,G198,DOMAIN NAME RENEWAL,ADELE DEVON,MISC-UNKNOWN
http://statistics.data.gov.uk/id/local-authority/43UM,WOKING BOROUGH COUNCIL,18/04/2016,GPC/669352901,GLOWTEC LTD,PROCUREMENT CARD,19.98,NEIGHBOURHOOD SERVICES - CPZ WBC FROM 25/7/05,LINES / SIGNS (ROAD MARKINGS),G141,GLOWTEC PAINT TO TRY FOR CAR PARK,FAOUZI SAFFAR,PAINTS VARNISHES AND SUPPLIES
http://statistics.data.gov.uk/id/local-authority/43UM,WOKING BOROUGH COUNCIL,18/04/2016,GPC/669351295,SHOECARE - WOKING,PROCUREMENT CARD,8.25,ASSET MANAGEMENT - PROPERTY SERVICES,R&M BUILDINGS - CONTRACTORS,D100,KEYS STEWARD HOUSE,VANESSA CLAIRE TABNER,SHOE REPAIR SHOPS SHOE SHINE PARLORS HAT CLEANIN
http://statistics.data.gov.uk/id/local-authority/43UM,WOKING BOROUGH COUNCIL,18/04/2016,GPC/669352897,TRAINLINE,PROCUREMENT CARD,50.49,NEIGHBOURHOOD SERVICES - REGULATION AND ENFORCEMENT,TRAVEL EXPENSES-OFFICERS,F600,TRAIN TRAVEL FOR 2 DAY COURSE,MRS K WATERS,PASSENGER RAILWAYS
http://statistics.data.gov.uk/id/local-authority/43UM,WOKING BOROUGH COUNCIL,18/04/2016,GPC/669641943,WWW.SURREY-CHAMBERS.CO.U,PROCUREMENT CARD,8.33,H G WELLS - H G WELLS - FUNCTION ROOMS,ADVERTISING,H400,NETWORKING,MRS M CHILCOTT,MEMBERSHIP ORGANIZATIONS-NOT ELSEWHERE CLASSIFIED
http://statistics.data.gov.uk/id/local-authority/43UM,WOKING BOROUGH COUNCIL,18/04/2016,GPC/669641943,WWW.SURREY-CHAMBERS.CO.U,PROCUREMENT CARD,1.67,H G WELLS - H G WELLS - FUNCTION ROOMS,ADVERTISING,H400,NETWORKING,MRS M CHILCOTT,MEMBERSHIP ORGANIZATIONS-NOT ELSEWHERE CLASSIFIED
http://statistics.data.gov.uk/id/local-authority/43UM,WOKING BOROUGH COUNCIL,18/04/2016,GPC/669641943,WWW.SURREY-CHAMBERS.CO.U,PROCUREMENT CARD,15.00,H G WELLS - H G WELLS - FUNCTION ROOMS,ADVERTISING,H400,NETWORKING,MRS M CHILCOTT,MEMBERSHIP ORGANIZATIONS-NOT ELSEWHERE CLASSIFIED
http://statistics.data.gov.uk/id/local-authority/43UM,WOKING BOROUGH COUNCIL,18/04/2016,GPC/669641943,WWW.SURREY-CHAMBERS.CO.U,PROCUREMENT CARD,3.00,H G WELLS - H G WELLS - FUNCTION ROOMS,ADVERTISING,H400,NETWORKING,MRS M CHILCOTT,MEMBERSHIP ORGANIZATIONS-NOT ELSEWHERE CLASSIFIED
http://statistics.data.gov.uk/id/local-authority/43UM,WOKING BOROUGH COUNCIL,19/04/2016,GPC/669639740,ARGOS LTD,PROCUREMENT CARD,29.97,INDEPENDENT LIVING SERVICES - HOME SUPPORT SERVICE,EQUIPMENT,G100,BATTERIES FOR SAFES,SEAN LEE,DISCOUNT STORES
http://statistics.data.gov.uk/id/local-authority/43UM,WOKING BOROUGH COUNCIL,19/04/2016,GPC/671207424,C BREWER & SONS,PROCUREMENT CARD,174.26,ASSET MANAGEMENT - FACILITIES MANAGEMENT,FACILITIES MANAGEMENT REPAIRS,D908,PAINT FOR HG WELLS,MR D JONES,BUILDING MATERIALS LUMBER STORES
http://statistics.data.gov.uk/id/local-authority/43UM,WOKING BOROUGH COUNCIL,19/04/2016,GPC/669637195,CHARTERED MANAGEME,PROCUREMENT CARD,201.00,NEIGHBOURHOOD SERVICES - NEIGHBOURHOOD SERV GENERAL EXP,SUBSCRIPTIONS,H110,SUBSCRIPTION,G D MCMANUS,MEMBERSHIP ORGANIZATIONS-NOT ELSEWHERE CLASSIFIED
http://statistics.data.gov.uk/id/local-authority/43UM,WOKING BOROUGH COUNCIL,19/04/2016,GPC/669637177,IZ  ITALIAN STREET FOODST,PROCUREMENT CARD,25.80,ASSET MANAGEMENT - WOLSEY PLACE,OFFICIAL HOSPITALITY,H310,WOLSEY PLACE MEETING LUNCH,VANESSA CLAIRE TABNER,EATING PLACES RESTAURANTS
http://statistics.data.gov.uk/id/local-authority/43UM,WOKING BOROUGH COUNCIL,19/04/2016,GPC/669637176,PRET A MANGER,PROCUREMENT CARD,4.65,ASSET MANAGEMENT - WOLSEY PLACE,OFFICIAL HOSPITALITY,H310,WOLSEY PLACE MEETING LUNCH,VANESSA CLAIRE TABNER,EATING PLACES RESTAURANTS
http://statistics.data.gov.uk/id/local-authority/43UM,WOKING BOROUGH COUNCIL,19/04/2016,GPC/669638282,SELFSERVE TICKET,PROCUREMENT CARD,34.40,CORPORATE STRATEGY - LEGAL,TRAVEL EXPENSES-OFFICERS,F600,TRAIN X 2 - MEETING,PETER BRYANT,PASSENGER RAILWAYS
